Workbook

Sheet INGRESO DE DATOS
O2: 24 years | P2: FALSE
O3: Coaseguro (Panamá) | P3: FALSE
O11: Descuento 24 años (por edad) | S11: Type | T11: Nuevo Negocio
O12: age | P12: Discount (%) | Q12: Parameter | T12: Renovación
O13: 24 | P13: 35 | Q13: =1-P13/100 -> 0.65 | T13: Renovación: a partir del 2020
O14: 25 | P14: 30 | Q14: =1-P14/100 -> 0.7 | T14: Renovación: Pólizas mayo - diciembre de 2024
O15: 26 | P15: 25 | Q15: 0.75
O16: 27 | P16: 20 | Q16: 0.8
O17: 28 | P17: 15 | Q17: 0.85
O18: 29 | P18: 6 | Q18: 0.94
O19: All ages | P19: 0 | Q19: 1 | S19: Type selected | T19: 1
H21: FALSE
O22: NEW BUSINESS DISCOUNT (ENTRADA MANUAL)
O23: Ultimate | P23: Elite | Q23: Premier | R23: Select | S23: Major Medical
O24: 15 | P24: 15 | Q24: 15 | R24: 15 | S24: 15
P26: PÓLIZAS 2020
O27: Ultimate | P27: Elite | Q27: Premier | R27: Select | S27: Major Medical
O28: 15 | P28: 15 | Q28: 15 | R28: 15 | S28: 15
O30: Descuento de 24 años: | P30: =IF(P2,_xlfn.SWITCH(C43,O13,Q13,O14,Q14,O15,Q15,O16,Q16,O17,Q17,O18,Q18,Q19),Q19) -> 1
O32: Descuento por variante de coaseguro | P32: =IF(P3=TRUE,0.15,1) -> 1
O35: Descuento si es nuevo negocio:
A37: Nombre del Asegurado Titular: | C37: John Doe | O37: NEW BUSINESS DISCOUNT (MULTIPLICATION FACTOR)
O38: Ultimate | P38: Elite | Q38: Premier | R38: Select | S38: Major Medical
A39: Número de adultos en la póliza: | C39: 2 | E39: Número de dependientes menores de 16 años: | H39: Número de dependientes menores de 10 años: | O39: =IF($T$19=1,(O24/100),IF($T$19=3,O28/100,IF($T$19=4,O53/100,0))) -> 0.15 | P39: =IF($T$19=1,(P24/100),IF($T$19=3,P28/100,IF($T$19=4,P53/100,0))) -> 0.15 | Q39: =IF($T$19=1,(Q24/100),IF($T$19=3,Q28/100,IF($T$19=4,Q53/100,0))) -> 0.15 | R39: =IF($T$19=1,(R24/100),IF($T$19=3,R28/100,IF($T$19=4,R53/100,0))) -> 0.15 | S39: =IF($T$19=1,(S24/100),IF($T$19=3,S28/100,IF($T$19=4,S53/100,0))) -> 0.15
A41: Número total de dependientes en la póliza: | C41: 2
E42: 1 | H42: 1 | O42: Descuento combinado 24 años y Nuevo Negocio
A43: Edad del Asegurado Titular: | C43: 32
A45: Edad del/la cónyuge: | C45: 46 | O45: NEW BUSINESS DISCOUNT
O46: Ultimate | P46: Elite | Q46: Premier | R46: Select | S46: Major Medical
O47: =(1-O39)*$P$30 -> 0.85 | P47: =(1-P39)*$P$30 -> 0.85 | Q47: =(1-Q39)*$P$30 -> 0.85 | R47: =(1-R39)*$P$30 -> 0.85 | S47: =(1-S39)*$P$30 -> 0.85
A49: Tarifas en US$ | Validas: 1 de enero de 2025
P51: PÓLIZAS 2024
O52: Ultimate | P52: Elite | Q52: Premier | R52: Select | S52: Major Medical
O53: 0 | P53: 0 | Q53: 15 | R53: 15 | S53: 0

Sheet Bupa Global Ultimate
C1: FALSE | H1: RESUMEN DE BENEFICIOS | W1: RESUMEN DE BENEFICIOS | AL1: RESUMEN DE BENEFICIOS
A5: Cotización de Seguro Médico Internacional Bupa Global Ultimate Health Plan Tarifas en US$ | Validas: 1 de enero de 2025
A13: Nombre del Asegurado Titular | B13: =+'INGRESO DE DATOS'!$C$37 -> John Doe
A15: Número de adultos en la póliza | B15: =+'INGRESO DE DATOS'!$C$39 -> 2
A17: Número de Dependientes en la póliza | B17: =+'INGRESO DE DATOS'!$C$41 -> 2 | C17: =IF('INGRESO DE DATOS'!$P$2=TRUE, "Cotización para dependiente de 24 años","") -> 
A19: Número de Dependientes menores de 16 años | B19: =+'INGRESO DE DATOS'!$E$42 -> 1
A21: Edad del Asegurado Titular | B21: =+'INGRESO DE DATOS'!$C$43 -> 32 | C21: Edad del/la conyuge | E21: =+'INGRESO DE DATOS'!$C$45 -> 46
A23: Fecha de la cotización | B23: =NOW() -> 2025-04-08T10:00:12.220
A26: DEDUCIBLES | C26: PLAN 1 | D26: PLAN 2 | E26: PLAN 3
A27: En el país de residencia | C27: $0 | D27: 1000 | E27: 2000
A28: Fuera del país de residencia | C28: $0 | D28: 1000 | E28: 2000
A30: TARIFAS ANUALES
A31: Prima para Asegurado Titular | C31: =VLOOKUP($B$21,Tablas!$A$912:$G$978,3,TRUE) -> 17763.3 | D31: =VLOOKUP($B$21,Tablas!$A$912:$G$978,4,TRUE) -> 11459.7 | E31: =VLOOKUP($B$21,Tablas!$A$912:$G$978,5,TRUE) -> 9493.65
A32: Prima para conyuge | C32: =IF($B$15=1,0,(VLOOKUP($E$21,Tablas!$A$912:$G$978,3,TRUE))) -> 24424.75 | D32: =IF($B$15=1,0,(VLOOKUP($E$21,Tablas!$A$912:$G$978,4,TRUE))) -> 15759 | E32: =IF($B$15=1,0,(VLOOKUP($E$21,Tablas!$A$912:$G$978,5,TRUE))) -> 13015.2
A33: Prima para hijo (s) | C33: =IF($B$15=1, (IF($B$17=0, 0, (IF($B$19>$B$17, (VLOOKUP($B$17,Tablas!$A$979:$G$981,3,TRUE)), (IF($B$17>4,(IF($B$19=0, (VLOOKUP(3,Tablas!$A$979:$G$981,3,TRUE)), (IF($B$19=1, (VLOOKUP(3,Tablas!$A$979:$G$981,3,TRUE)), (IF($B$19=2, (VLOOKUP(3,Tablas!$A$979:$G$981,3,TRUE)), (VLOOKUP(3,Tablas!$A$979:$G$981,3,TRUE)))))))), (IF($B$17=4,(IF(4-$B$19=0,(VLOOKUP(2,Tablas!$A$979:$G$981,3,TRUE)), (IF(4-$B$19=1,(VLOOKUP(2,Tablas!$A$979:$G$981,3,TRUE)), (IF(4-$B$19=2, (VLOOKUP(2,Tablas!$A$979:$G$981,3,TRUE)), (VLOOKUP(3,Tablas!$A$979:$G$981,3,TRUE)))))))), (IF($B$17=3,(IF(3-$B$19=0,(VLOOKUP(1,Tablas!$A$979:$G$981,3,TRUE)), (IF(3-$B$19=1,(VLOOKUP(1,Tablas!$A$979:$G$981,3,TRUE)), (IF(3-$B$19=2, (VLOOKUP(2,Tablas!$A$979:$G$981,3,TRUE)), (VLOOKUP(3,Tablas!$A$979:$G$981,3,TRUE)))))))), (IF($B$17=2,(IF(2-$B$19=0, 0, (IF(2-$B$19=1,(VLOOKUP(1,Tablas!$A$979:$G$981,3,TRUE)), (IF(2-$B$19=2, (VLOOKUP(2,Tablas!$A$979:$G$981,3,TRUE)), 0)))))), (IF($B$17=1,(IF(1-$B$19=0, 0, (IF(1-$B$19=1,(VLOOKUP(1,Tablas!$A$979:$G$981,3,TRUE)),0)))),0)))))))))))))), (IF($B$17=0, 0, (IF($B$19>$B$17, (VLOOKUP($B$17,Tablas!$A$979:$G$981,3,TRUE)), (IF($B$17=4,(IF(4-$B$19=0, 0, (IF(4-$B$19=1, (VLOOKUP(1,Tablas!$A$979:$G$981,3,TRUE)), (IF(4-$B$19=2, (VLOOKUP(2,Tablas!$A$979:$G$981,3,TRUE)), (IF(4-$B$19=3, (VLOOKUP(3,Tablas!$A$979:$G$981,3,TRUE)), (IF(4-$B$19=4, (VLOOKUP(3,Tablas!$A$979:$G$981,3,TRUE)), 0)))))))))), (IF($B$17=5,(IF(5-$B$19=0, (VLOOKUP(1,Tablas!$A$979:$G$981,3,TRUE)), (IF(5-$B$19=1, (VLOOKUP(1,Tablas!$A$979:$G$981,3,TRUE)), (IF(5-$B$19=2, (VLOOKUP(2,Tablas!$A$979:$G$981,3,TRUE)), (IF(5-$B$19=3, (VLOOKUP(3,Tablas!$A$979:$G$981,3,TRUE)), (IF(5-$B$19=4, (VLOOKUP(3,Tablas!$A$979:$G$981,3,TRUE)), (VLOOKUP(3,Tablas!$A$979:$G$981,3,TRUE)))))))))))), (IF($B$17=6,(IF(6-$B$19=0, (VLOOKUP(2,Tablas!$A$979:$G$981,3,TRUE)), (IF(6-$B$19=1, (VLOOKUP(2,Tablas!$A$979:$G$981,3,TRUE)), (IF(6-$B$19=2, (VLOOKUP(2,Tablas!$A$979:$G$981,3,TRUE)), (IF(6-$B$19=3, (VLOOKUP(3,Tablas!$A$979:$G$981,3,TRUE)), (IF(6-$B$19=4, (VLOOKUP(3,Tablas!$A$979:$G$981,3,TRUE)), (VLOOKUP(3,Tablas!$A$979:$G$981,3,TRUE)))))))))))), (IF($B$17>6,(IF(7-$B$19=0, (VLOOKUP(3,Tablas!$A$979:$G$981,3,TRUE)), (IF(7-$B$19=1, (VLOOKUP(3,Tablas!$A$979:$G$981,3,TRUE)), (IF(7-$B$19=2, (VLOOKUP(3,Tablas!$A$979:$G$981,3,TRUE)), (IF(7-$B$19=3, (VLOOKUP(3,Tablas!$A$979:$G$981,3,TRUE)), (IF(7-$B$19=4, (VLOOKUP(3,Tablas!$A$979:$G$981,3,TRUE)), (VLOOKUP(3,Tablas!$A$979:$G$981,3,TRUE)))))))))))), (IF($B$17=3,(IF(3-$B$19=0,0, (IF(3-$B$19=1,(VLOOKUP(1,Tablas!$A$979:$G$981,3,TRUE)), (IF(3-$B$19=2, (VLOOKUP(2,Tablas!$A$979:$G$981,3,TRUE)), (VLOOKUP(3,Tablas!$A$979:$G$981,3,TRUE)))))))), (IF($B$17=2,(IF(2-$B$19=0, 0, (IF(2-$B$19=1,(VLOOKUP(1,Tablas!$A$979:$G$981,3,TRUE)), (IF(2-$B$19=2, (VLOOKUP(2,Tablas!$A$979:$G$981,3,TRUE)), 0)))))), (IF($B$17=1,(IF(1-$B$19=0, 0, (IF(1-$B$19=1,(VLOOKUP(1,Tablas!$A$979:$G$981,3,TRUE)),0)))),0))))))))))))))))))) -> 6253.45 | D33: =IF($B$15=1, (IF($B$17=0, 0, (IF($B$19>$B$17, (VLOOKUP($B$17,Tablas!$A$979:$G$981,4,TRUE)), (IF($B$17>4,(IF($B$19=0, (VLOOKUP(3,Tablas!$A$979:$G$981,4,TRUE)), (IF($B$19=1, (VLOOKUP(3,Tablas!$A$979:$G$981,4,TRUE)), (IF($B$19=2, (VLOOKUP(3,Tablas!$A$979:$G$981,4,TRUE)), (VLOOKUP(3,Tablas!$A$979:$G$981,4,TRUE)))))))), (IF($B$17=4,(IF(4-$B$19=0,(VLOOKUP(2,Tablas!$A$979:$G$981,4,TRUE)), (IF(4-$B$19=1,(VLOOKUP(2,Tablas!$A$979:$G$981,4,TRUE)), (IF(4-$B$19=2, (VLOOKUP(2,Tablas!$A$979:$G$981,4,TRUE)), (VLOOKUP(3,Tablas!$A$979:$G$981,4,TRUE)))))))), (IF($B$17=3,(IF(3-$B$19=0,(VLOOKUP(1,Tablas!$A$979:$G$981,4,TRUE)), (IF(3-$B$19=1,(VLOOKUP(1,Tablas!$A$979:$G$981,4,TRUE)), (IF(3-$B$19=2, (VLOOKUP(2,Tablas!$A$979:$G$981,4,TRUE)), (VLOOKUP(3,Tablas!$A$979:$G$981,4,TRUE)))))))), (IF($B$17=2,(IF(2-$B$19=0, 0, (IF(2-$B$19=1,(VLOOKUP(1,Tablas!$A$979:$G$981,4,TRUE)), (IF(2-$B$19=2, (VLOOKUP(2,Tablas!$A$979:$G$981,4,TRUE)), 0)))))), (IF($B$17=1,(IF(1-$B$19=0, 0, (IF(1-$B$19=1,(VLOOKUP(1,Tablas!$A$979:$G$981,4,TRUE)),0)))),0)))))))))))))), (IF($B$17=0, 0, (IF($B$19>$B$17, (VLOOKUP($B$17,Tablas!$A$979:$G$981,4,TRUE)), (IF($B$17=4,(IF(4-$B$19=0, 0, (IF(4-$B$19=1, (VLOOKUP(1,Tablas!$A$979:$G$981,4,TRUE)), (IF(4-$B$19=2, (VLOOKUP(2,Tablas!$A$979:$G$981,4,TRUE)), (IF(4-$B$19=3, (VLOOKUP(3,Tablas!$A$979:$G$981,4,TRUE)), (IF(4-$B$19=4, (VLOOKUP(3,Tablas!$A$979:$G$981,4,TRUE)), 0)))))))))), (IF($B$17=5,(IF(5-$B$19=0, (VLOOKUP(1,Tablas!$A$979:$G$981,4,TRUE)), (IF(5-$B$19=1, (VLOOKUP(1,Tablas!$A$979:$G$981,4,TRUE)), (IF(5-$B$19=2, (VLOOKUP(2,Tablas!$A$979:$G$981,4,TRUE)), (IF(5-$B$19=3, (VLOOKUP(3,Tablas!$A$979:$G$981,4,TRUE)), (IF(5-$B$19=4, (VLOOKUP(3,Tablas!$A$979:$G$981,4,TRUE)), (VLOOKUP(3,Tablas!$A$979:$G$981,4,TRUE)))))))))))), (IF($B$17=6,(IF(6-$B$19=0, (VLOOKUP(2,Tablas!$A$979:$G$981,4,TRUE)), (IF(6-$B$19=1, (VLOOKUP(2,Tablas!$A$979:$G$981,4,TRUE)), (IF(6-$B$19=2, (VLOOKUP(2,Tablas!$A$979:$G$981,4,TRUE)), (IF(6-$B$19=3, (VLOOKUP(3,Tablas!$A$979:$G$981,4,TRUE)), (IF(6-$B$19=4, (VLOOKUP(3,Tablas!$A$979:$G$981,4,TRUE)), (VLOOKUP(3,Tablas!$A$979:$G$981,4,TRUE)))))))))))), (IF($B$17>6,(IF(7-$B$19=0, (VLOOKUP(3,Tablas!$A$979:$G$981,4,TRUE)), (IF(7-$B$19=1, (VLOOKUP(3,Tablas!$A$979:$G$981,4,TRUE)), (IF(7-$B$19=2, (VLOOKUP(3,Tablas!$A$979:$G$981,4,TRUE)), (IF(7-$B$19=3, (VLOOKUP(3,Tablas!$A$979:$G$981,4,TRUE)), (IF(7-$B$19=4, (VLOOKUP(3,Tablas!$A$979:$G$981,4,TRUE)), (VLOOKUP(3,Tablas!$A$979:$G$981,4,TRUE)))))))))))), (IF($B$17=3,(IF(3-$B$19=0,0, (IF(3-$B$19=1,(VLOOKUP(1,Tablas!$A$979:$G$981,4,TRUE)), (IF(3-$B$19=2, (VLOOKUP(2,Tablas!$A$979:$G$981,4,TRUE)), (VLOOKUP(3,Tablas!$A$979:$G$981,4,TRUE)))))))), (IF($B$17=2,(IF(2-$B$19=0, 0, (IF(2-$B$19=1,(VLOOKUP(1,Tablas!$A$979:$G$981,4,TRUE)), (IF(2-$B$19=2, (VLOOKUP(2,Tablas!$A$979:$G$981,4,TRUE)), 0)))))), (IF($B$17=1,(IF(1-$B$19=0, 0, (IF(1-$B$19=1,(VLOOKUP(1,Tablas!$A$979:$G$981,4,TRUE)),0)))),0))))))))))))))))))) -> 4035.8 | E33: =IF($B$15=1, (IF($B$17=0, 0, (IF($B$19>$B$17, (VLOOKUP($B$17,Tablas!$A$979:$G$981,5,TRUE)), (IF($B$17>4,(IF($B$19=0, (VLOOKUP(3,Tablas!$A$979:$G$981,5,TRUE)), (IF($B$19=1, (VLOOKUP(3,Tablas!$A$979:$G$981,5,TRUE)), (IF($B$19=2, (VLOOKUP(3,Tablas!$A$979:$G$981,5,TRUE)), (VLOOKUP(3,Tablas!$A$979:$G$981,5,TRUE)))))))), (IF($B$17=4,(IF(4-$B$19=0,(VLOOKUP(2,Tablas!$A$979:$G$981,5,TRUE)), (IF(4-$B$19=1,(VLOOKUP(2,Tablas!$A$979:$G$981,5,TRUE)), (IF(4-$B$19=2, (VLOOKUP(2,Tablas!$A$979:$G$981,5,TRUE)), (VLOOKUP(3,Tablas!$A$979:$G$981,5,TRUE)))))))), (IF($B$17=3,(IF(3-$B$19=0,(VLOOKUP(1,Tablas!$A$979:$G$981,5,TRUE)), (IF(3-$B$19=1,(VLOOKUP(1,Tablas!$A$979:$G$981,5,TRUE)), (IF(3-$B$19=2, (VLOOKUP(2,Tablas!$A$979:$G$981,5,TRUE)), (VLOOKUP(3,Tablas!$A$979:$G$981,5,TRUE)))))))), (IF($B$17=2,(IF(2-$B$19=0, 0, (IF(2-$B$19=1,(VLOOKUP(1,Tablas!$A$979:$G$981,5,TRUE)), (IF(2-$B$19=2, (VLOOKUP(2,Tablas!$A$979:$G$981,5,TRUE)), 0)))))), (IF($B$17=1,(IF(1-$B$19=0, 0, (IF(1-$B$19=1,(VLOOKUP(1,Tablas!$A$979:$G$981,5,TRUE)),0)))),0)))))))))))))), (IF($B$17=0, 0, (IF($B$19>$B$17, (VLOOKUP($B$17,Tablas!$A$979:$G$981,5,TRUE)), (IF($B$17=4,(IF(4-$B$19=0, 0, (IF(4-$B$19=1, (VLOOKUP(1,Tablas!$A$979:$G$981,5,TRUE)), (IF(4-$B$19=2, (VLOOKUP(2,Tablas!$A$979:$G$981,5,TRUE)), (IF(4-$B$19=3, (VLOOKUP(3,Tablas!$A$979:$G$981,5,TRUE)), (IF(4-$B$19=4, (VLOOKUP(3,Tablas!$A$979:$G$981,5,TRUE)), 0)))))))))), (IF($B$17=5,(IF(5-$B$19=0, (VLOOKUP(1,Tablas!$A$979:$G$981,5,TRUE)), (IF(5-$B$19=1, (VLOOKUP(1,Tablas!$A$979:$G$981,5,TRUE)), (IF(5-$B$19=2, (VLOOKUP(2,Tablas!$A$979:$G$981,5,TRUE)), (IF(5-$B$19=3, (VLOOKUP(3,Tablas!$A$979:$G$981,5,TRUE)), (IF(5-$B$19=4, (VLOOKUP(3,Tablas!$A$979:$G$981,5,TRUE)), (VLOOKUP(3,Tablas!$A$979:$G$981,5,TRUE)))))))))))), (IF($B$17=6,(IF(6-$B$19=0, (VLOOKUP(2,Tablas!$A$979:$G$981,5,TRUE)), (IF(6-$B$19=1, (VLOOKUP(2,Tablas!$A$979:$G$981,5,TRUE)), (IF(6-$B$19=2, (VLOOKUP(2,Tablas!$A$979:$G$981,5,TRUE)), (IF(6-$B$19=3, (VLOOKUP(3,Tablas!$A$979:$G$981,5,TRUE)), (IF(6-$B$19=4, (VLOOKUP(3,Tablas!$A$979:$G$981,5,TRUE)), (VLOOKUP(3,Tablas!$A$979:$G$981,5,TRUE)))))))))))), (IF($B$17>6,(IF(7-$B$19=0, (VLOOKUP(3,Tablas!$A$979:$G$981,5,TRUE)), (IF(7-$B$19=1, (VLOOKUP(3,Tablas!$A$979:$G$981,5,TRUE)), (IF(7-$B$19=2, (VLOOKUP(3,Tablas!$A$979:$G$981,5,TRUE)), (IF(7-$B$19=3, (VLOOKUP(3,Tablas!$A$979:$G$981,5,TRUE)), (IF(7-$B$19=4, (VLOOKUP(3,Tablas!$A$979:$G$981,5,TRUE)), (VLOOKUP(3,Tablas!$A$979:$G$981,5,TRUE)))))))))))), (IF($B$17=3,(IF(3-$B$19=0,0, (IF(3-$B$19=1,(VLOOKUP(1,Tablas!$A$979:$G$981,5,TRUE)), (IF(3-$B$19=2, (VLOOKUP(2,Tablas!$A$979:$G$981,5,TRUE)), (VLOOKUP(3,Tablas!$A$979:$G$981,5,TRUE)))))))), (IF($B$17=2,(IF(2-$B$19=0, 0, (IF(2-$B$19=1,(VLOOKUP(1,Tablas!$A$979:$G$981,5,TRUE)), (IF(2-$B$19=2, (VLOOKUP(2,Tablas!$A$979:$G$981,5,TRUE)), 0)))))), (IF($B$17=1,(IF(1-$B$19=0, 0, (IF(1-$B$19=1,(VLOOKUP(1,Tablas!$A$979:$G$981,5,TRUE)),0)))),0))))))))))))))))))) -> 3382.15
A34: Total de Prima neta | C34: =SUM(C31:C33) -> 48441.5 | D34: =SUM(D31:D33) -> 31254.5 | E34: =SUM(E31:E33) -> 25891
A35: Tarifa administrativa anual | C35: 75 | D35: 75 | E35: 75
A36: VAT (5%) | C36: =(C34+C35)*5% -> 2425.825 | D36: =(D34+D35)*5% -> 1566.475 | E36: =(E34+E35)*5% -> 1298.3
A37: ITBMS (7%) | C37: 0 | D37: 0 | E37: 0
A38: TOTAL ANUAL | C38: =SUM(C34:C37) -> 50942.325 | D38: =SUM(D34:D37) -> 32895.975 | E38: =SUM(E34:E37) -> 27264.3
A39: Ahorros en tarifas de prima para Dependientes | C39: =IF($B$15=1,IF($B$17=0,0,IF($B$19=0,0,IF($B$19=1,(VLOOKUP(1,Tablas!$A$979:$G$981,3,TRUE)),(VLOOKUP(2,Tablas!$A$979:$G$981,3,TRUE))))), IF($B$17=0,0,IF($B$19=0,0,IF($B$19=1,(VLOOKUP(1,Tablas!$A$979:$G$981,3,TRUE)),IF($B$19=2,(VLOOKUP(2,Tablas!$A$979:$G$981,3,TRUE)), (VLOOKUP(3,Tablas!$A$979:$G$981,3,TRUE))))))) -> 6253.45 | D39: =IF($B$15=1,IF($B$17=0,0,IF($B$19=0,0,IF($B$19=1,(VLOOKUP(1,Tablas!$A$979:$G$981,4,TRUE)),(VLOOKUP(2,Tablas!$A$979:$G$981,4,TRUE))))), IF($B$17=0,0,IF($B$19=0,0,IF($B$19=1,(VLOOKUP(1,Tablas!$A$979:$G$981,4,TRUE)),IF($B$19=2,(VLOOKUP(2,Tablas!$A$979:$G$981,4,TRUE)), (VLOOKUP(3,Tablas!$A$979:$G$981,4,TRUE))))))) -> 4035.8 | E39: =IF($B$15=1,IF($B$17=0,0,IF($B$19=0,0,IF($B$19=1,(VLOOKUP(1,Tablas!$A$979:$G$981,5,TRUE)),(VLOOKUP(2,Tablas!$A$979:$G$981,5,TRUE))))), IF($B$17=0,0,IF($B$19=0,0,IF($B$19=1,(VLOOKUP(1,Tablas!$A$979:$G$981,5,TRUE)),IF($B$19=2,(VLOOKUP(2,Tablas!$A$979:$G$981,5,TRUE)), (VLOOKUP(3,Tablas!$A$979:$G$981,5,TRUE))))))) -> 3382.15
A41: TARIFAS SEMIANUALES
A42: Prima para Asegurado Titular | C42: =VLOOKUP($B$21,Tablas!$A$1439:$G$1505,3,TRUE) -> 9414.549 | D42: =VLOOKUP($B$21,Tablas!$A$1439:$G$1505,4,TRUE) -> 6073.641 | E42: =VLOOKUP($B$21,Tablas!$A$1439:$G$1505,5,TRUE) -> 5031.6345
A43: Prima para conyuge | C43: =IF($B$15=1,0,(VLOOKUP($E$21,Tablas!$A$1439:$G$1505,3,TRUE))) -> 12945.1175 | D43: =IF($B$15=1,0,(VLOOKUP($E$21,Tablas!$A$1439:$G$1505,4,TRUE))) -> 8352.27 | E43: =IF($B$15=1,0,(VLOOKUP($E$21,Tablas!$A$1439:$G$1505,5,TRUE))) -> 6898.056
A44: Prima para hijo (s) | C44: =IF($B$15=1, (IF($B$17=0, 0, (IF($B$19>$B$17, (VLOOKUP($B$17,Tablas!$A$1506:$G$1508,3,TRUE)), (IF($B$17>4,(IF($B$19=0, (VLOOKUP(3,Tablas!$A$1506:$G$1508,3,TRUE)), (IF($B$19=1, (VLOOKUP(3,Tablas!$A$1506:$G$1508,3,TRUE)), (IF($B$19=2, (VLOOKUP(3,Tablas!$A$1506:$G$1508,3,TRUE)), (VLOOKUP(3,Tablas!$A$1506:$G$1508,3,TRUE)))))))), (IF($B$17=4,(IF(4-$B$19=0,(VLOOKUP(2,Tablas!$A$1506:$G$1508,3,TRUE)), (IF(4-$B$19=1,(VLOOKUP(2,Tablas!$A$1506:$G$1508,3,TRUE)), (IF(4-$B$19=2, (VLOOKUP(2,Tablas!$A$1506:$G$1508,3,TRUE)), (VLOOKUP(3,Tablas!$A$1506:$G$1508,3,TRUE)))))))), (IF($B$17=3,(IF(3-$B$19=0,(VLOOKUP(1,Tablas!$A$1506:$G$1508,3,TRUE)), (IF(3-$B$19=1,(VLOOKUP(1,Tablas!$A$1506:$G$1508,3,TRUE)), (IF(3-$B$19=2, (VLOOKUP(2,Tablas!$A$1506:$G$1508,3,TRUE)), (VLOOKUP(3,Tablas!$A$1506:$G$1508,3,TRUE)))))))), (IF($B$17=2,(IF(2-$B$19=0, 0, (IF(2-$B$19=1,(VLOOKUP(1,Tablas!$A$1506:$G$1508,3,TRUE)), (IF(2-$B$19=2, (VLOOKUP(2,Tablas!$A$1506:$G$1508,3,TRUE)), 0)))))), (IF($B$17=1,(IF(1-$B$19=0, 0, (IF(1-$B$19=1,(VLOOKUP(1,Tablas!$A$1506:$G$1508,3,TRUE)),0)))),0)))))))))))))), (IF($B$17=0, 0, (IF($B$19>$B$17, (VLOOKUP($B$17,Tablas!$A$1506:$G$1508,3,TRUE)), (IF($B$17=4,(IF(4-$B$19=0, 0, (IF(4-$B$19=1, (VLOOKUP(1,Tablas!$A$1506:$G$1508,3,TRUE)), (IF(4-$B$19=2, (VLOOKUP(2,Tablas!$A$1506:$G$1508,3,TRUE)), (IF(4-$B$19=3, (VLOOKUP(3,Tablas!$A$1506:$G$1508,3,TRUE)), (IF(4-$B$19=4, (VLOOKUP(3,Tablas!$A$1506:$G$1508,3,TRUE)), 0)))))))))), (IF($B$17=5,(IF(5-$B$19=0, (VLOOKUP(1,Tablas!$A$1506:$G$1508,3,TRUE)), (IF(5-$B$19=1, (VLOOKUP(1,Tablas!$A$1506:$G$1508,3,TRUE)), (IF(5-$B$19=2, (VLOOKUP(2,Tablas!$A$1506:$G$1508,3,TRUE)), (IF(5-$B$19=3, (VLOOKUP(3,Tablas!$A$1506:$G$1508,3,TRUE)), (IF(5-$B$19=4, (VLOOKUP(3,Tablas!$A$1506:$G$1508,3,TRUE)), (VLOOKUP(3,Tablas!$A$1506:$G$1508,3,TRUE)))))))))))), (IF($B$17=6,(IF(6-$B$19=0, (VLOOKUP(2,Tablas!$A$1506:$G$1508,3,TRUE)), (IF(6-$B$19=1, (VLOOKUP(2,Tablas!$A$1506:$G$1508,3,TRUE)), (IF(6-$B$19=2, (VLOOKUP(2,Tablas!$A$1506:$G$1508,3,TRUE)), (IF(6-$B$19=3, (VLOOKUP(3,Tablas!$A$1506:$G$1508,3,TRUE)), (IF(6-$B$19=4, (VLOOKUP(3,Tablas!$A$1506:$G$1508,3,TRUE)), (VLOOKUP(3,Tablas!$A$1506:$G$1508,3,TRUE)))))))))))), (IF($B$17>6,(IF(7-$B$19=0, (VLOOKUP(3,Tablas!$A$1506:$G$1508,3,TRUE)), (IF(7-$B$19=1, (VLOOKUP(3,Tablas!$A$1506:$G$1508,3,TRUE)), (IF(7-$B$19=2, (VLOOKUP(3,Tablas!$A$1506:$G$1508,3,TRUE)), (IF(7-$B$19=3, (VLOOKUP(3,Tablas!$A$1506:$G$1508,3,TRUE)), (IF(7-$B$19=4, (VLOOKUP(3,Tablas!$A$1506:$G$1508,3,TRUE)), (VLOOKUP(3,Tablas!$A$1506:$G$1508,3,TRUE)))))))))))), (IF($B$17=3,(IF(3-$B$19=0,0, (IF(3-$B$19=1,(VLOOKUP(1,Tablas!$A$1506:$G$1508,3,TRUE)), (IF(3-$B$19=2, (VLOOKUP(2,Tablas!$A$1506:$G$1508,3,TRUE)), (VLOOKUP(3,Tablas!$A$1506:$G$1508,3,TRUE)))))))), (IF($B$17=2,(IF(2-$B$19=0, 0, (IF(2-$B$19=1,(VLOOKUP(1,Tablas!$A$1506:$G$1508,3,TRUE)), (IF(2-$B$19=2, (VLOOKUP(2,Tablas!$A$1506:$G$1508,3,TRUE)), 0)))))), (IF($B$17=1,(IF(1-$B$19=0, 0, (IF(1-$B$19=1,(VLOOKUP(1,Tablas!$A$1506:$G$1508,3,TRUE)),0)))),0))))))))))))))))))) -> 3314.3285 | D44: =IF($B$15=1, (IF($B$17=0, 0, (IF($B$19>$B$17, (VLOOKUP($B$17,Tablas!$A$1506:$G$1508,4,TRUE)), (IF($B$17>4,(IF($B$19=0, (VLOOKUP(3,Tablas!$A$1506:$G$1508,4,TRUE)), (IF($B$19=1, (VLOOKUP(3,Tablas!$A$1506:$G$1508,4,TRUE)), (IF($B$19=2, (VLOOKUP(3,Tablas!$A$1506:$G$1508,4,TRUE)), (VLOOKUP(3,Tablas!$A$1506:$G$1508,4,TRUE)))))))), (IF($B$17=4,(IF(4-$B$19=0,(VLOOKUP(2,Tablas!$A$1506:$G$1508,4,TRUE)), (IF(4-$B$19=1,(VLOOKUP(2,Tablas!$A$1506:$G$1508,4,TRUE)), (IF(4-$B$19=2, (VLOOKUP(2,Tablas!$A$1506:$G$1508,4,TRUE)), (VLOOKUP(3,Tablas!$A$1506:$G$1508,4,TRUE)))))))), (IF($B$17=3,(IF(3-$B$19=0,(VLOOKUP(1,Tablas!$A$1506:$G$1508,4,TRUE)), (IF(3-$B$19=1,(VLOOKUP(1,Tablas!$A$1506:$G$1508,4,TRUE)), (IF(3-$B$19=2, (VLOOKUP(2,Tablas!$A$1506:$G$1508,4,TRUE)), (VLOOKUP(3,Tablas!$A$1506:$G$1508,4,TRUE)))))))), (IF($B$17=2,(IF(2-$B$19=0, 0, (IF(2-$B$19=1,(VLOOKUP(1,Tablas!$A$1506:$G$1508,4,TRUE)), (IF(2-$B$19=2, (VLOOKUP(2,Tablas!$A$1506:$G$1508,4,TRUE)), 0)))))), (IF($B$17=1,(IF(1-$B$19=0, 0, (IF(1-$B$19=1,(VLOOKUP(1,Tablas!$A$1506:$G$1508,4,TRUE)),0)))),0)))))))))))))), (IF($B$17=0, 0, (IF($B$19>$B$17, (VLOOKUP($B$17,Tablas!$A$1506:$G$1508,4,TRUE)), (IF($B$17=4,(IF(4-$B$19=0, 0, (IF(4-$B$19=1, (VLOOKUP(1,Tablas!$A$1506:$G$1508,4,TRUE)), (IF(4-$B$19=2, (VLOOKUP(2,Tablas!$A$1506:$G$1508,4,TRUE)), (IF(4-$B$19=3, (VLOOKUP(3,Tablas!$A$1506:$G$1508,4,TRUE)), (IF(4-$B$19=4, (VLOOKUP(3,Tablas!$A$1506:$G$1508,4,TRUE)), 0)))))))))), (IF($B$17=5,(IF(5-$B$19=0, (VLOOKUP(1,Tablas!$A$1506:$G$1508,4,TRUE)), (IF(5-$B$19=1, (VLOOKUP(1,Tablas!$A$1506:$G$1508,4,TRUE)), (IF(5-$B$19=2, (VLOOKUP(2,Tablas!$A$1506:$G$1508,4,TRUE)), (IF(5-$B$19=3, (VLOOKUP(3,Tablas!$A$1506:$G$1508,4,TRUE)), (IF(5-$B$19=4, (VLOOKUP(3,Tablas!$A$1506:$G$1508,4,TRUE)), (VLOOKUP(3,Tablas!$A$1506:$G$1508,4,TRUE)))))))))))), (IF($B$17=6,(IF(6-$B$19=0, (VLOOKUP(2,Tablas!$A$1506:$G$1508,4,TRUE)), (IF(6-$B$19=1, (VLOOKUP(2,Tablas!$A$1506:$G$1508,4,TRUE)), (IF(6-$B$19=2, (VLOOKUP(2,Tablas!$A$1506:$G$1508,4,TRUE)), (IF(6-$B$19=3, (VLOOKUP(3,Tablas!$A$1506:$G$1508,4,TRUE)), (IF(6-$B$19=4, (VLOOKUP(3,Tablas!$A$1506:$G$1508,4,TRUE)), (VLOOKUP(3,Tablas!$A$1506:$G$1508,4,TRUE)))))))))))), (IF($B$17>6,(IF(7-$B$19=0, (VLOOKUP(3,Tablas!$A$1506:$G$1508,4,TRUE)), (IF(7-$B$19=1, (VLOOKUP(3,Tablas!$A$1506:$G$1508,4,TRUE)), (IF(7-$B$19=2, (VLOOKUP(3,Tablas!$A$1506:$G$1508,4,TRUE)), (IF(7-$B$19=3, (VLOOKUP(3,Tablas!$A$1506:$G$1508,4,TRUE)), (IF(7-$B$19=4, (VLOOKUP(3,Tablas!$A$1506:$G$1508,4,TRUE)), (VLOOKUP(3,Tablas!$A$1506:$G$1508,4,TRUE)))))))))))), (IF($B$17=3,(IF(3-$B$19=0,0, (IF(3-$B$19=1,(VLOOKUP(1,Tablas!$A$1506:$G$1508,4,TRUE)), (IF(3-$B$19=2, (VLOOKUP(2,Tablas!$A$1506:$G$1508,4,TRUE)), (VLOOKUP(3,Tablas!$A$1506:$G$1508,4,TRUE)))))))), (IF($B$17=2,(IF(2-$B$19=0, 0, (IF(2-$B$19=1,(VLOOKUP(1,Tablas!$A$1506:$G$1508,4,TRUE)), (IF(2-$B$19=2, (VLOOKUP(2,Tablas!$A$1506:$G$1508,4,TRUE)), 0)))))), (IF($B$17=1,(IF(1-$B$19=0, 0, (IF(1-$B$19=1,(VLOOKUP(1,Tablas!$A$1506:$G$1508,4,TRUE)),0)))),0))))))))))))))))))) -> 2138.974 | E44: =IF($B$15=1, (IF($B$17=0, 0, (IF($B$19>$B$17, (VLOOKUP($B$17,Tablas!$A$1506:$G$1508,5,TRUE)), (IF($B$17>4,(IF($B$19=0, (VLOOKUP(3,Tablas!$A$1506:$G$1508,5,TRUE)), (IF($B$19=1, (VLOOKUP(3,Tablas!$A$1506:$G$1508,5,TRUE)), (IF($B$19=2, (VLOOKUP(3,Tablas!$A$1506:$G$1508,5,TRUE)), (VLOOKUP(3,Tablas!$A$1506:$G$1508,5,TRUE)))))))), (IF($B$17=4,(IF(4-$B$19=0,(VLOOKUP(2,Tablas!$A$1506:$G$1508,5,TRUE)), (IF(4-$B$19=1,(VLOOKUP(2,Tablas!$A$1506:$G$1508,5,TRUE)), (IF(4-$B$19=2, (VLOOKUP(2,Tablas!$A$1506:$G$1508,5,TRUE)), (VLOOKUP(3,Tablas!$A$1506:$G$1508,5,TRUE)))))))), (IF($B$17=3,(IF(3-$B$19=0,(VLOOKUP(1,Tablas!$A$1506:$G$1508,5,TRUE)), (IF(3-$B$19=1,(VLOOKUP(1,Tablas!$A$1506:$G$1508,5,TRUE)), (IF(3-$B$19=2, (VLOOKUP(2,Tablas!$A$1506:$G$1508,5,TRUE)), (VLOOKUP(3,Tablas!$A$1506:$G$1508,5,TRUE)))))))), (IF($B$17=2,(IF(2-$B$19=0, 0, (IF(2-$B$19=1,(VLOOKUP(1,Tablas!$A$1506:$G$1508,5,TRUE)), (IF(2-$B$19=2, (VLOOKUP(2,Tablas!$A$1506:$G$1508,5,TRUE)), 0)))))), (IF($B$17=1,(IF(1-$B$19=0, 0, (IF(1-$B$19=1,(VLOOKUP(1,Tablas!$A$1506:$G$1508,5,TRUE)),0)))),0)))))))))))))), (IF($B$17=0, 0, (IF($B$19>$B$17, (VLOOKUP($B$17,Tablas!$A$1506:$G$1508,5,TRUE)), (IF($B$17=4,(IF(4-$B$19=0, 0, (IF(4-$B$19=1, (VLOOKUP(1,Tablas!$A$1506:$G$1508,5,TRUE)), (IF(4-$B$19=2, (VLOOKUP(2,Tablas!$A$1506:$G$1508,5,TRUE)), (IF(4-$B$19=3, (VLOOKUP(3,Tablas!$A$1506:$G$1508,5,TRUE)), (IF(4-$B$19=4, (VLOOKUP(3,Tablas!$A$1506:$G$1508,5,TRUE)), 0)))))))))), (IF($B$17=5,(IF(5-$B$19=0, (VLOOKUP(1,Tablas!$A$1506:$G$1508,5,TRUE)), (IF(5-$B$19=1, (VLOOKUP(1,Tablas!$A$1506:$G$1508,5,TRUE)), (IF(5-$B$19=2, (VLOOKUP(2,Tablas!$A$1506:$G$1508,5,TRUE)), (IF(5-$B$19=3, (VLOOKUP(3,Tablas!$A$1506:$G$1508,5,TRUE)), (IF(5-$B$19=4, (VLOOKUP(3,Tablas!$A$1506:$G$1508,5,TRUE)), (VLOOKUP(3,Tablas!$A$1506:$G$1508,5,TRUE)))))))))))), (IF($B$17=6,(IF(6-$B$19=0, (VLOOKUP(2,Tablas!$A$1506:$G$1508,5,TRUE)), (IF(6-$B$19=1, (VLOOKUP(2,Tablas!$A$1506:$G$1508,5,TRUE)), (IF(6-$B$19=2, (VLOOKUP(2,Tablas!$A$1506:$G$1508,5,TRUE)), (IF(6-$B$19=3, (VLOOKUP(3,Tablas!$A$1506:$G$1508,5,TRUE)), (IF(6-$B$19=4, (VLOOKUP(3,Tablas!$A$1506:$G$1508,5,TRUE)), (VLOOKUP(3,Tablas!$A$1506:$G$1508,5,TRUE)))))))))))), (IF($B$17>6,(IF(7-$B$19=0, (VLOOKUP(3,Tablas!$A$1506:$G$1508,5,TRUE)), (IF(7-$B$19=1, (VLOOKUP(3,Tablas!$A$1506:$G$1508,5,TRUE)), (IF(7-$B$19=2, (VLOOKUP(3,Tablas!$A$1506:$G$1508,5,TRUE)), (IF(7-$B$19=3, (VLOOKUP(3,Tablas!$A$1506:$G$1508,5,TRUE)), (IF(7-$B$19=4, (VLOOKUP(3,Tablas!$A$1506:$G$1508,5,TRUE)), (VLOOKUP(3,Tablas!$A$1506:$G$1508,5,TRUE)))))))))))), (IF($B$17=3,(IF(3-$B$19=0,0, (IF(3-$B$19=1,(VLOOKUP(1,Tablas!$A$1506:$G$1508,5,TRUE)), (IF(3-$B$19=2, (VLOOKUP(2,Tablas!$A$1506:$G$1508,5,TRUE)), (VLOOKUP(3,Tablas!$A$1506:$G$1508,5,TRUE)))))))), (IF($B$17=2,(IF(2-$B$19=0, 0, (IF(2-$B$19=1,(VLOOKUP(1,Tablas!$A$1506:$G$1508,5,TRUE)), (IF(2-$B$19=2, (VLOOKUP(2,Tablas!$A$1506:$G$1508,5,TRUE)), 0)))))), (IF($B$17=1,(IF(1-$B$19=0, 0, (IF(1-$B$19=1,(VLOOKUP(1,Tablas!$A$1506:$G$1508,5,TRUE)),0)))),0))))))))))))))))))) -> 1792.5395
A45: Total de Prima neta | C45: =SUM(C42:C44) -> 25673.995 | D45: =SUM(D42:D44) -> 16564.885 | E45: =SUM(E42:E44) -> 13722.23
A46: Tarifa administrativa anual | C46: 75 | D46: 75 | E46: 75
A47: VAT (5%) | C47: =(C45+C46)*5% -> 1287.44975 | D47: =(D45+D46)*5% -> 831.99425 | E47: =(E45+E46)*5% -> 689.8615
A48: ITBMS (7%) | C48: 0 | D48: 0 | E48: 0
A49: TOTAL de primera cuota | C49: =SUM(C45:C48) -> 27036.44475 | D49: =SUM(D45:D48) -> 17471.87925 | E49: =SUM(E45:E48) -> 14487.0915
A50: Costo de segunda cuota | C50: =C45*1.05 -> 26957.69475 | D50: =D45*1.05 -> 17393.12925 | E50: =E45*1.05 -> 14408.3415
A51: TOTAL ANUAL | C51: =C49+C50 -> 53994.1395 | D51: =D49+D50 -> 34865.0085 | E51: =E49+E50 -> 28895.433
A52: Ahorros en tarifas de prima para Dependientes | C52: =IF($B$15=1,IF($B$17=0,0,IF($B$19=0,0,IF($B$19=1,(VLOOKUP(1,Tablas!$A$1506:$G$1508,3,TRUE)),(VLOOKUP(2,Tablas!$A$1506:$G$1508,3,TRUE))))), IF($B$17=0,0,IF($B$19=0,0,IF($B$19=1,(VLOOKUP(1,Tablas!$A$1506:$G$1508,3,TRUE)),IF($B$19=2,(VLOOKUP(2,Tablas!$A$1506:$G$1508,3,TRUE)), (VLOOKUP(3,Tablas!$A$1506:$G$1508,3,TRUE))))))) -> 3314.3285 | D52: =IF($B$15=1,IF($B$17=0,0,IF($B$19=0,0,IF($B$19=1,(VLOOKUP(1,Tablas!$A$1506:$G$1508,4,TRUE)),(VLOOKUP(2,Tablas!$A$1506:$G$1508,4,TRUE))))), IF($B$17=0,0,IF($B$19=0,0,IF($B$19=1,(VLOOKUP(1,Tablas!$A$1506:$G$1508,4,TRUE)),IF($B$19=2,(VLOOKUP(2,Tablas!$A$1506:$G$1508,4,TRUE)), (VLOOKUP(3,Tablas!$A$1506:$G$1508,4,TRUE))))))) -> 2138.974 | E52: =IF($B$15=1,IF($B$17=0,0,IF($B$19=0,0,IF($B$19=1,(VLOOKUP(1,Tablas!$A$1506:$G$1508,5,TRUE)),(VLOOKUP(2,Tablas!$A$1506:$G$1508,5,TRUE))))), IF($B$17=0,0,IF($B$19=0,0,IF($B$19=1,(VLOOKUP(1,Tablas!$A$1506:$G$1508,5,TRUE)),IF($B$19=2,(VLOOKUP(2,Tablas!$A$1506:$G$1508,5,TRUE)), (VLOOKUP(3,Tablas!$A$1506:$G$1508,5,TRUE))))))) -> 1792.5395
A54: TARIFAS TRIMESTRALES
A55: Prima para Asegurado Titular | C55: =VLOOKUP($B$21,Tablas!$A$1061:$G$1127,3,TRUE) -> 4884.9075 | D55: =VLOOKUP($B$21,Tablas!$A$1061:$G$1127,4,TRUE) -> 3151.4175 | E55: =VLOOKUP($B$21,Tablas!$A$1061:$G$1127,5,TRUE) -> 2610.75375
A56: Prima para conyuge | C56: =IF($B$15=1,0,(VLOOKUP($E$21,Tablas!$A$1061:$G$1127,3,TRUE))) -> 6716.80625 | D56: =IF($B$15=1,0,(VLOOKUP($E$21,Tablas!$A$1061:$G$1127,4,TRUE))) -> 4333.725 | E56: =IF($B$15=1,0,(VLOOKUP($E$21,Tablas!$A$1061:$G$1127,5,TRUE))) -> 3579.18
A57: Prima para hijo (s) | C57: =IF($B$15=1, (IF($B$17=0, 0, (IF($B$19>$B$17, (VLOOKUP($B$17,Tablas!$A$1128:$G$1130,3,TRUE)), (IF($B$17>4,(IF($B$19=0, (VLOOKUP(3,Tablas!$A$1128:$G$1130,3,TRUE)), (IF($B$19=1, (VLOOKUP(3,Tablas!$A$1128:$G$1130,3,TRUE)), (IF($B$19=2, (VLOOKUP(3,Tablas!$A$1128:$G$1130,3,TRUE)), (VLOOKUP(3,Tablas!$A$1128:$G$1130,3,TRUE)))))))), (IF($B$17=4,(IF(4-$B$19=0,(VLOOKUP(2,Tablas!$A$1128:$G$1130,3,TRUE)), (IF(4-$B$19=1,(VLOOKUP(2,Tablas!$A$1128:$G$1130,3,TRUE)), (IF(4-$B$19=2, (VLOOKUP(2,Tablas!$A$1128:$G$1130,3,TRUE)), (VLOOKUP(3,Tablas!$A$1128:$G$1130,3,TRUE)))))))), (IF($B$17=3,(IF(3-$B$19=0,(VLOOKUP(1,Tablas!$A$1128:$G$1130,3,TRUE)), (IF(3-$B$19=1,(VLOOKUP(1,Tablas!$A$1128:$G$1130,3,TRUE)), (IF(3-$B$19=2, (VLOOKUP(2,Tablas!$A$1128:$G$1130,3,TRUE)), (VLOOKUP(3,Tablas!$A$1128:$G$1130,3,TRUE)))))))), (IF($B$17=2,(IF(2-$B$19=0, 0, (IF(2-$B$19=1,(VLOOKUP(1,Tablas!$A$1128:$G$1130,3,TRUE)), (IF(2-$B$19=2, (VLOOKUP(2,Tablas!$A$1128:$G$1130,3,TRUE)), 0)))))), (IF($B$17=1,(IF(1-$B$19=0, 0, (IF(1-$B$19=1,(VLOOKUP(1,Tablas!$A$1128:$G$1130,3,TRUE)),0)))),0)))))))))))))), (IF($B$17=0, 0, (IF($B$19>$B$17, (VLOOKUP($B$17,Tablas!$A$1128:$G$1130,3,TRUE)), (IF($B$17=4,(IF(4-$B$19=0, 0, (IF(4-$B$19=1, (VLOOKUP(1,Tablas!$A$1128:$G$1130,3,TRUE)), (IF(4-$B$19=2, (VLOOKUP(2,Tablas!$A$1128:$G$1130,3,TRUE)), (IF(4-$B$19=3, (VLOOKUP(3,Tablas!$A$1128:$G$1130,3,TRUE)), (IF(4-$B$19=4, (VLOOKUP(3,Tablas!$A$1128:$G$1130,3,TRUE)), 0)))))))))), (IF($B$17=5,(IF(5-$B$19=0, (VLOOKUP(1,Tablas!$A$1128:$G$1130,3,TRUE)), (IF(5-$B$19=1, (VLOOKUP(1,Tablas!$A$1128:$G$1130,3,TRUE)), (IF(5-$B$19=2, (VLOOKUP(2,Tablas!$A$1128:$G$1130,3,TRUE)), (IF(5-$B$19=3, (VLOOKUP(3,Tablas!$A$1128:$G$1130,3,TRUE)), (IF(5-$B$19=4, (VLOOKUP(3,Tablas!$A$1128:$G$1130,3,TRUE)), (VLOOKUP(3,Tablas!$A$1128:$G$1130,3,TRUE)))))))))))), (IF($B$17=6,(IF(6-$B$19=0, (VLOOKUP(2,Tablas!$A$1128:$G$1130,3,TRUE)), (IF(6-$B$19=1, (VLOOKUP(2,Tablas!$A$1128:$G$1130,3,TRUE)), (IF(6-$B$19=2, (VLOOKUP(2,Tablas!$A$1128:$G$1130,3,TRUE)), (IF(6-$B$19=3, (VLOOKUP(3,Tablas!$A$1128:$G$1130,3,TRUE)), (IF(6-$B$19=4, (VLOOKUP(3,Tablas!$A$1128:$G$1130,3,TRUE)), (VLOOKUP(3,Tablas!$A$1128:$G$1130,3,TRUE)))))))))))), (IF($B$17>6,(IF(7-$B$19=0, (VLOOKUP(3,Tablas!$A$1128:$G$1130,3,TRUE)), (IF(7-$B$19=1, (VLOOKUP(3,Tablas!$A$1128:$G$1130,3,TRUE)), (IF(7-$B$19=2, (VLOOKUP(3,Tablas!$A$1128:$G$1130,3,TRUE)), (IF(7-$B$19=3, (VLOOKUP(3,Tablas!$A$1128:$G$1130,3,TRUE)), (IF(7-$B$19=4, (VLOOKUP(3,Tablas!$A$1128:$G$1130,3,TRUE)), (VLOOKUP(3,Tablas!$A$1128:$G$1130,3,TRUE)))))))))))), (IF($B$17=3,(IF(3-$B$19=0,0, (IF(3-$B$19=1,(VLOOKUP(1,Tablas!$A$1128:$G$1130,3,TRUE)), (IF(3-$B$19=2, (VLOOKUP(2,Tablas!$A$1128:$G$1130,3,TRUE)), (VLOOKUP(3,Tablas!$A$1128:$G$1130,3,TRUE)))))))), (IF($B$17=2,(IF(2-$B$19=0, 0, (IF(2-$B$19=1,(VLOOKUP(1,Tablas!$A$1128:$G$1130,3,TRUE)), (IF(2-$B$19=2, (VLOOKUP(2,Tablas!$A$1128:$G$1130,3,TRUE)), 0)))))), (IF($B$17=1,(IF(1-$B$19=0, 0, (IF(1-$B$19=1,(VLOOKUP(1,Tablas!$A$1128:$G$1130,3,TRUE)),0)))),0))))))))))))))))))) -> 1719.69875 | D57: =IF($B$15=1, (IF($B$17=0, 0, (IF($B$19>$B$17, (VLOOKUP($B$17,Tablas!$A$1128:$G$1130,4,TRUE)), (IF($B$17>4,(IF($B$19=0, (VLOOKUP(3,Tablas!$A$1128:$G$1130,4,TRUE)), (IF($B$19=1, (VLOOKUP(3,Tablas!$A$1128:$G$1130,4,TRUE)), (IF($B$19=2, (VLOOKUP(3,Tablas!$A$1128:$G$1130,4,TRUE)), (VLOOKUP(3,Tablas!$A$1128:$G$1130,4,TRUE)))))))), (IF($B$17=4,(IF(4-$B$19=0,(VLOOKUP(2,Tablas!$A$1128:$G$1130,4,TRUE)), (IF(4-$B$19=1,(VLOOKUP(2,Tablas!$A$1128:$G$1130,4,TRUE)), (IF(4-$B$19=2, (VLOOKUP(2,Tablas!$A$1128:$G$1130,4,TRUE)), (VLOOKUP(3,Tablas!$A$1128:$G$1130,4,TRUE)))))))), (IF($B$17=3,(IF(3-$B$19=0,(VLOOKUP(1,Tablas!$A$1128:$G$1130,4,TRUE)), (IF(3-$B$19=1,(VLOOKUP(1,Tablas!$A$1128:$G$1130,4,TRUE)), (IF(3-$B$19=2, (VLOOKUP(2,Tablas!$A$1128:$G$1130,4,TRUE)), (VLOOKUP(3,Tablas!$A$1128:$G$1130,4,TRUE)))))))), (IF($B$17=2,(IF(2-$B$19=0, 0, (IF(2-$B$19=1,(VLOOKUP(1,Tablas!$A$1128:$G$1130,4,TRUE)), (IF(2-$B$19=2, (VLOOKUP(2,Tablas!$A$1128:$G$1130,4,TRUE)), 0)))))), (IF($B$17=1,(IF(1-$B$19=0, 0, (IF(1-$B$19=1,(VLOOKUP(1,Tablas!$A$1128:$G$1130,4,TRUE)),0)))),0)))))))))))))), (IF($B$17=0, 0, (IF($B$19>$B$17, (VLOOKUP($B$17,Tablas!$A$1128:$G$1130,4,TRUE)), (IF($B$17=4,(IF(4-$B$19=0, 0, (IF(4-$B$19=1, (VLOOKUP(1,Tablas!$A$1128:$G$1130,4,TRUE)), (IF(4-$B$19=2, (VLOOKUP(2,Tablas!$A$1128:$G$1130,4,TRUE)), (IF(4-$B$19=3, (VLOOKUP(3,Tablas!$A$1128:$G$1130,4,TRUE)), (IF(4-$B$19=4, (VLOOKUP(3,Tablas!$A$1128:$G$1130,4,TRUE)), 0)))))))))), (IF($B$17=5,(IF(5-$B$19=0, (VLOOKUP(1,Tablas!$A$1128:$G$1130,4,TRUE)), (IF(5-$B$19=1, (VLOOKUP(1,Tablas!$A$1128:$G$1130,4,TRUE)), (IF(5-$B$19=2, (VLOOKUP(2,Tablas!$A$1128:$G$1130,4,TRUE)), (IF(5-$B$19=3, (VLOOKUP(3,Tablas!$A$1128:$G$1130,4,TRUE)), (IF(5-$B$19=4, (VLOOKUP(3,Tablas!$A$1128:$G$1130,4,TRUE)), (VLOOKUP(3,Tablas!$A$1128:$G$1130,4,TRUE)))))))))))), (IF($B$17=6,(IF(6-$B$19=0, (VLOOKUP(2,Tablas!$A$1128:$G$1130,4,TRUE)), (IF(6-$B$19=1, (VLOOKUP(2,Tablas!$A$1128:$G$1130,4,TRUE)), (IF(6-$B$19=2, (VLOOKUP(2,Tablas!$A$1128:$G$1130,4,TRUE)), (IF(6-$B$19=3, (VLOOKUP(3,Tablas!$A$1128:$G$1130,4,TRUE)), (IF(6-$B$19=4, (VLOOKUP(3,Tablas!$A$1128:$G$1130,4,TRUE)), (VLOOKUP(3,Tablas!$A$1128:$G$1130,4,TRUE)))))))))))), (IF($B$17>6,(IF(7-$B$19=0, (VLOOKUP(3,Tablas!$A$1128:$G$1130,4,TRUE)), (IF(7-$B$19=1, (VLOOKUP(3,Tablas!$A$1128:$G$1130,4,TRUE)), (IF(7-$B$19=2, (VLOOKUP(3,Tablas!$A$1128:$G$1130,4,TRUE)), (IF(7-$B$19=3, (VLOOKUP(3,Tablas!$A$1128:$G$1130,4,TRUE)), (IF(7-$B$19=4, (VLOOKUP(3,Tablas!$A$1128:$G$1130,4,TRUE)), (VLOOKUP(3,Tablas!$A$1128:$G$1130,4,TRUE)))))))))))), (IF($B$17=3,(IF(3-$B$19=0,0, (IF(3-$B$19=1,(VLOOKUP(1,Tablas!$A$1128:$G$1130,4,TRUE)), (IF(3-$B$19=2, (VLOOKUP(2,Tablas!$A$1128:$G$1130,4,TRUE)), (VLOOKUP(3,Tablas!$A$1128:$G$1130,4,TRUE)))))))), (IF($B$17=2,(IF(2-$B$19=0, 0, (IF(2-$B$19=1,(VLOOKUP(1,Tablas!$A$1128:$G$1130,4,TRUE)), (IF(2-$B$19=2, (VLOOKUP(2,Tablas!$A$1128:$G$1130,4,TRUE)), 0)))))), (IF($B$17=1,(IF(1-$B$19=0, 0, (IF(1-$B$19=1,(VLOOKUP(1,Tablas!$A$1128:$G$1130,4,TRUE)),0)))),0))))))))))))))))))) -> 1109.845 | E57: =IF($B$15=1, (IF($B$17=0, 0, (IF($B$19>$B$17, (VLOOKUP($B$17,Tablas!$A$1128:$G$1130,5,TRUE)), (IF($B$17>4,(IF($B$19=0, (VLOOKUP(3,Tablas!$A$1128:$G$1130,5,TRUE)), (IF($B$19=1, (VLOOKUP(3,Tablas!$A$1128:$G$1130,5,TRUE)), (IF($B$19=2, (VLOOKUP(3,Tablas!$A$1128:$G$1130,5,TRUE)), (VLOOKUP(3,Tablas!$A$1128:$G$1130,5,TRUE)))))))), (IF($B$17=4,(IF(4-$B$19=0,(VLOOKUP(2,Tablas!$A$1128:$G$1130,5,TRUE)), (IF(4-$B$19=1,(VLOOKUP(2,Tablas!$A$1128:$G$1130,5,TRUE)), (IF(4-$B$19=2, (VLOOKUP(2,Tablas!$A$1128:$G$1130,5,TRUE)), (VLOOKUP(3,Tablas!$A$1128:$G$1130,5,TRUE)))))))), (IF($B$17=3,(IF(3-$B$19=0,(VLOOKUP(1,Tablas!$A$1128:$G$1130,5,TRUE)), (IF(3-$B$19=1,(VLOOKUP(1,Tablas!$A$1128:$G$1130,5,TRUE)), (IF(3-$B$19=2, (VLOOKUP(2,Tablas!$A$1128:$G$1130,5,TRUE)), (VLOOKUP(3,Tablas!$A$1128:$G$1130,5,TRUE)))))))), (IF($B$17=2,(IF(2-$B$19=0, 0, (IF(2-$B$19=1,(VLOOKUP(1,Tablas!$A$1128:$G$1130,5,TRUE)), (IF(2-$B$19=2, (VLOOKUP(2,Tablas!$A$1128:$G$1130,5,TRUE)), 0)))))), (IF($B$17=1,(IF(1-$B$19=0, 0, (IF(1-$B$19=1,(VLOOKUP(1,Tablas!$A$1128:$G$1130,5,TRUE)),0)))),0)))))))))))))), (IF($B$17=0, 0, (IF($B$19>$B$17, (VLOOKUP($B$17,Tablas!$A$1128:$G$1130,5,TRUE)), (IF($B$17=4,(IF(4-$B$19=0, 0, (IF(4-$B$19=1, (VLOOKUP(1,Tablas!$A$1128:$G$1130,5,TRUE)), (IF(4-$B$19=2, (VLOOKUP(2,Tablas!$A$1128:$G$1130,5,TRUE)), (IF(4-$B$19=3, (VLOOKUP(3,Tablas!$A$1128:$G$1130,5,TRUE)), (IF(4-$B$19=4, (VLOOKUP(3,Tablas!$A$1128:$G$1130,5,TRUE)), 0)))))))))), (IF($B$17=5,(IF(5-$B$19=0, (VLOOKUP(1,Tablas!$A$1128:$G$1130,5,TRUE)), (IF(5-$B$19=1, (VLOOKUP(1,Tablas!$A$1128:$G$1130,5,TRUE)), (IF(5-$B$19=2, (VLOOKUP(2,Tablas!$A$1128:$G$1130,5,TRUE)), (IF(5-$B$19=3, (VLOOKUP(3,Tablas!$A$1128:$G$1130,5,TRUE)), (IF(5-$B$19=4, (VLOOKUP(3,Tablas!$A$1128:$G$1130,5,TRUE)), (VLOOKUP(3,Tablas!$A$1128:$G$1130,5,TRUE)))))))))))), (IF($B$17=6,(IF(6-$B$19=0, (VLOOKUP(2,Tablas!$A$1128:$G$1130,5,TRUE)), (IF(6-$B$19=1, (VLOOKUP(2,Tablas!$A$1128:$G$1130,5,TRUE)), (IF(6-$B$19=2, (VLOOKUP(2,Tablas!$A$1128:$G$1130,5,TRUE)), (IF(6-$B$19=3, (VLOOKUP(3,Tablas!$A$1128:$G$1130,5,TRUE)), (IF(6-$B$19=4, (VLOOKUP(3,Tablas!$A$1128:$G$1130,5,TRUE)), (VLOOKUP(3,Tablas!$A$1128:$G$1130,5,TRUE)))))))))))), (IF($B$17>6,(IF(7-$B$19=0, (VLOOKUP(3,Tablas!$A$1128:$G$1130,5,TRUE)), (IF(7-$B$19=1, (VLOOKUP(3,Tablas!$A$1128:$G$1130,5,TRUE)), (IF(7-$B$19=2, (VLOOKUP(3,Tablas!$A$1128:$G$1130,5,TRUE)), (IF(7-$B$19=3, (VLOOKUP(3,Tablas!$A$1128:$G$1130,5,TRUE)), (IF(7-$B$19=4, (VLOOKUP(3,Tablas!$A$1128:$G$1130,5,TRUE)), (VLOOKUP(3,Tablas!$A$1128:$G$1130,5,TRUE)))))))))))), (IF($B$17=3,(IF(3-$B$19=0,0, (IF(3-$B$19=1,(VLOOKUP(1,Tablas!$A$1128:$G$1130,5,TRUE)), (IF(3-$B$19=2, (VLOOKUP(2,Tablas!$A$1128:$G$1130,5,TRUE)), (VLOOKUP(3,Tablas!$A$1128:$G$1130,5,TRUE)))))))), (IF($B$17=2,(IF(2-$B$19=0, 0, (IF(2-$B$19=1,(VLOOKUP(1,Tablas!$A$1128:$G$1130,5,TRUE)), (IF(2-$B$19=2, (VLOOKUP(2,Tablas!$A$1128:$G$1130,5,TRUE)), 0)))))), (IF($B$17=1,(IF(1-$B$19=0, 0, (IF(1-$B$19=1,(VLOOKUP(1,Tablas!$A$1128:$G$1130,5,TRUE)),0)))),0))))))))))))))))))) -> 930.09125
A58: Total de Prima neta | C58: =SUM(C55:C57) -> 13321.4125 | D58: =SUM(D55:D57) -> 8594.9875 | E58: =SUM(E55:E57) -> 7120.025
A59: Tarifa administrativa anual | C59: 75 | D59: 75 | E59: 75
A60: VAT (5%) | C60: =(C58+C59)*5% -> 669.820625 | D60: =(D58+D59)*5% -> 433.499375 | E60: =(E58+E59)*5% -> 359.75125
A61: ITBMS (7%) | C61: 0 | D61: 0 | E61: 0
A62: TOTAL de primera cuota | C62: =SUM(C58:C61) -> 14066.23313 | D62: =SUM(D58:D61) -> 9103.486875 | E62: =SUM(E58:E61) -> 7554.77625
A63: Costo de tarifa trimestral 2 a 4 | C63: =C58*1.05 -> 13987.48313 | D63: =D58*1.05 -> 9024.736875 | E63: =E58*1.05 -> 7476.02625
A64: TOTAL ANUAL | C64: =C62+(C63*3) -> 56028.6825 | D64: =D62+(D63*3) -> 36177.6975 | E64: =E62+(E63*3) -> 29982.855
A65: Ahorros en tarifas de prima para Dependientes | C65: =IF($B$15=1,IF($B$17=0,0,IF($B$19=0,0,IF($B$19=1,(VLOOKUP(1,Tablas!$A$1128:$G$1130,3,TRUE)),(VLOOKUP(2,Tablas!$A$1128:$G$1130,3,TRUE))))), IF($B$17=0,0,IF($B$19=0,0,IF($B$19=1,(VLOOKUP(1,Tablas!$A$1128:$G$1130,3,TRUE)),IF($B$19=2,(VLOOKUP(2,Tablas!$A$1128:$G$1130,3,TRUE)), (VLOOKUP(3,Tablas!$A$1128:$G$1130,3,TRUE))))))) -> 1719.69875 | D65: =IF($B$15=1,IF($B$17=0,0,IF($B$19=0,0,IF($B$19=1,(VLOOKUP(1,Tablas!$A$1128:$G$1130,4,TRUE)),(VLOOKUP(2,Tablas!$A$1128:$G$1130,4,TRUE))))), IF($B$17=0,0,IF($B$19=0,0,IF($B$19=1,(VLOOKUP(1,Tablas!$A$1128:$G$1130,4,TRUE)),IF($B$19=2,(VLOOKUP(2,Tablas!$A$1128:$G$1130,4,TRUE)), (VLOOKUP(3,Tablas!$A$1128:$G$1130,4,TRUE))))))) -> 1109.845 | E65: =IF($B$15=1,IF($B$17=0,0,IF($B$19=0,0,IF($B$19=1,(VLOOKUP(1,Tablas!$A$1128:$G$1130,5,TRUE)),(VLOOKUP(2,Tablas!$A$1128:$G$1130,5,TRUE))))), IF($B$17=0,0,IF($B$19=0,0,IF($B$19=1,(VLOOKUP(1,Tablas!$A$1128:$G$1130,5,TRUE)),IF($B$19=2,(VLOOKUP(2,Tablas!$A$1128:$G$1130,5,TRUE)), (VLOOKUP(3,Tablas!$A$1128:$G$1130,5,TRUE))))))) -> 930.09125
A67: TARIFAS MENSUALES
A68: Prima para Asegurado Titular | C68: =VLOOKUP($B$21,Tablas!$A$986:$G$1052,3,TRUE) -> 1657.908 | D68: =VLOOKUP($B$21,Tablas!$A$986:$G$1052,4,TRUE) -> 1069.572 | E68: =VLOOKUP($B$21,Tablas!$A$986:$G$1052,5,TRUE) -> 886.074
A69: Prima para conyuge | C69: =IF($B$15=1,0,(VLOOKUP($E$21,Tablas!$A$986:$G$1052,3,TRUE))) -> 2279.643333 | D69: =IF($B$15=1,0,(VLOOKUP($E$21,Tablas!$A$986:$G$1052,4,TRUE))) -> 1470.84 | E69: =IF($B$15=1,0,(VLOOKUP($E$21,Tablas!$A$986:$G$1052,5,TRUE))) -> 1214.752
A70: Prima para hijo (s) | C70: =IF($B$15=1, (IF($B$17=0, 0, (IF($B$19>$B$17, (VLOOKUP($B$17,Tablas!$A$1053:$G$1055,3,TRUE)), (IF($B$17>4,(IF($B$19=0, (VLOOKUP(3,Tablas!$A$1053:$G$1055,3,TRUE)), (IF($B$19=1, (VLOOKUP(3,Tablas!$A$1053:$G$1055,3,TRUE)), (IF($B$19=2, (VLOOKUP(3,Tablas!$A$1053:$G$1055,3,TRUE)), (VLOOKUP(3,Tablas!$A$1053:$G$1055,3,TRUE)))))))), (IF($B$17=4,(IF(4-$B$19=0,(VLOOKUP(2,Tablas!$A$1053:$G$1055,3,TRUE)), (IF(4-$B$19=1,(VLOOKUP(2,Tablas!$A$1053:$G$1055,3,TRUE)), (IF(4-$B$19=2, (VLOOKUP(2,Tablas!$A$1053:$G$1055,3,TRUE)), (VLOOKUP(3,Tablas!$A$1053:$G$1055,3,TRUE)))))))), (IF($B$17=3,(IF(3-$B$19=0,(VLOOKUP(1,Tablas!$A$1053:$G$1055,3,TRUE)), (IF(3-$B$19=1,(VLOOKUP(1,Tablas!$A$1053:$G$1055,3,TRUE)), (IF(3-$B$19=2, (VLOOKUP(2,Tablas!$A$1053:$G$1055,3,TRUE)), (VLOOKUP(3,Tablas!$A$1053:$G$1055,3,TRUE)))))))), (IF($B$17=2,(IF(2-$B$19=0, 0, (IF(2-$B$19=1,(VLOOKUP(1,Tablas!$A$1053:$G$1055,3,TRUE)), (IF(2-$B$19=2, (VLOOKUP(2,Tablas!$A$1053:$G$1055,3,TRUE)), 0)))))), (IF($B$17=1,(IF(1-$B$19=0, 0, (IF(1-$B$19=1,(VLOOKUP(1,Tablas!$A$1053:$G$1055,3,TRUE)),0)))),0)))))))))))))), (IF($B$17=0, 0, (IF($B$19>$B$17, (VLOOKUP($B$17,Tablas!$A$1053:$G$1055,3,TRUE)), (IF($B$17=4,(IF(4-$B$19=0, 0, (IF(4-$B$19=1, (VLOOKUP(1,Tablas!$A$1053:$G$1055,3,TRUE)), (IF(4-$B$19=2, (VLOOKUP(2,Tablas!$A$1053:$G$1055,3,TRUE)), (IF(4-$B$19=3, (VLOOKUP(3,Tablas!$A$1053:$G$1055,3,TRUE)), (IF(4-$B$19=4, (VLOOKUP(3,Tablas!$A$1053:$G$1055,3,TRUE)), 0)))))))))), (IF($B$17=5,(IF(5-$B$19=0, (VLOOKUP(1,Tablas!$A$1053:$G$1055,3,TRUE)), (IF(5-$B$19=1, (VLOOKUP(1,Tablas!$A$1053:$G$1055,3,TRUE)), (IF(5-$B$19=2, (VLOOKUP(2,Tablas!$A$1053:$G$1055,3,TRUE)), (IF(5-$B$19=3, (VLOOKUP(3,Tablas!$A$1053:$G$1055,3,TRUE)), (IF(5-$B$19=4, (VLOOKUP(3,Tablas!$A$1053:$G$1055,3,TRUE)), (VLOOKUP(3,Tablas!$A$1053:$G$1055,3,TRUE)))))))))))), (IF($B$17=6,(IF(6-$B$19=0, (VLOOKUP(2,Tablas!$A$1053:$G$1055,3,TRUE)), (IF(6-$B$19=1, (VLOOKUP(2,Tablas!$A$1053:$G$1055,3,TRUE)), (IF(6-$B$19=2, (VLOOKUP(2,Tablas!$A$1053:$G$1055,3,TRUE)), (IF(6-$B$19=3, (VLOOKUP(3,Tablas!$A$1053:$G$1055,3,TRUE)), (IF(6-$B$19=4, (VLOOKUP(3,Tablas!$A$1053:$G$1055,3,TRUE)), (VLOOKUP(3,Tablas!$A$1053:$G$1055,3,TRUE)))))))))))), (IF($B$17>6,(IF(7-$B$19=0, (VLOOKUP(3,Tablas!$A$1053:$G$1055,3,TRUE)), (IF(7-$B$19=1, (VLOOKUP(3,Tablas!$A$1053:$G$1055,3,TRUE)), (IF(7-$B$19=2, (VLOOKUP(3,Tablas!$A$1053:$G$1055,3,TRUE)), (IF(7-$B$19=3, (VLOOKUP(3,Tablas!$A$1053:$G$1055,3,TRUE)), (IF(7-$B$19=4, (VLOOKUP(3,Tablas!$A$1053:$G$1055,3,TRUE)), (VLOOKUP(3,Tablas!$A$1053:$G$1055,3,TRUE)))))))))))), (IF($B$17=3,(IF(3-$B$19=0,0, (IF(3-$B$19=1,(VLOOKUP(1,Tablas!$A$1053:$G$1055,3,TRUE)), (IF(3-$B$19=2, (VLOOKUP(2,Tablas!$A$1053:$G$1055,3,TRUE)), (VLOOKUP(3,Tablas!$A$1053:$G$1055,3,TRUE)))))))), (IF($B$17=2,(IF(2-$B$19=0, 0, (IF(2-$B$19=1,(VLOOKUP(1,Tablas!$A$1053:$G$1055,3,TRUE)), (IF(2-$B$19=2, (VLOOKUP(2,Tablas!$A$1053:$G$1055,3,TRUE)), 0)))))), (IF($B$17=1,(IF(1-$B$19=0, 0, (IF(1-$B$19=1,(VLOOKUP(1,Tablas!$A$1053:$G$1055,3,TRUE)),0)))),0))))))))))))))))))) -> 583.6553333 | D70: =IF($B$15=1, (IF($B$17=0, 0, (IF($B$19>$B$17, (VLOOKUP($B$17,Tablas!$A$1053:$G$1055,4,TRUE)), (IF($B$17>4,(IF($B$19=0, (VLOOKUP(3,Tablas!$A$1053:$G$1055,4,TRUE)), (IF($B$19=1, (VLOOKUP(3,Tablas!$A$1053:$G$1055,4,TRUE)), (IF($B$19=2, (VLOOKUP(3,Tablas!$A$1053:$G$1055,4,TRUE)), (VLOOKUP(3,Tablas!$A$1053:$G$1055,4,TRUE)))))))), (IF($B$17=4,(IF(4-$B$19=0,(VLOOKUP(2,Tablas!$A$1053:$G$1055,4,TRUE)), (IF(4-$B$19=1,(VLOOKUP(2,Tablas!$A$1053:$G$1055,4,TRUE)), (IF(4-$B$19=2, (VLOOKUP(2,Tablas!$A$1053:$G$1055,4,TRUE)), (VLOOKUP(3,Tablas!$A$1053:$G$1055,4,TRUE)))))))), (IF($B$17=3,(IF(3-$B$19=0,(VLOOKUP(1,Tablas!$A$1053:$G$1055,4,TRUE)), (IF(3-$B$19=1,(VLOOKUP(1,Tablas!$A$1053:$G$1055,4,TRUE)), (IF(3-$B$19=2, (VLOOKUP(2,Tablas!$A$1053:$G$1055,4,TRUE)), (VLOOKUP(3,Tablas!$A$1053:$G$1055,4,TRUE)))))))), (IF($B$17=2,(IF(2-$B$19=0, 0, (IF(2-$B$19=1,(VLOOKUP(1,Tablas!$A$1053:$G$1055,4,TRUE)), (IF(2-$B$19=2, (VLOOKUP(2,Tablas!$A$1053:$G$1055,4,TRUE)), 0)))))), (IF($B$17=1,(IF(1-$B$19=0, 0, (IF(1-$B$19=1,(VLOOKUP(1,Tablas!$A$1053:$G$1055,4,TRUE)),0)))),0)))))))))))))), (IF($B$17=0, 0, (IF($B$19>$B$17, (VLOOKUP($B$17,Tablas!$A$1053:$G$1055,4,TRUE)), (IF($B$17=4,(IF(4-$B$19=0, 0, (IF(4-$B$19=1, (VLOOKUP(1,Tablas!$A$1053:$G$1055,4,TRUE)), (IF(4-$B$19=2, (VLOOKUP(2,Tablas!$A$1053:$G$1055,4,TRUE)), (IF(4-$B$19=3, (VLOOKUP(3,Tablas!$A$1053:$G$1055,4,TRUE)), (IF(4-$B$19=4, (VLOOKUP(3,Tablas!$A$1053:$G$1055,4,TRUE)), 0)))))))))), (IF($B$17=5,(IF(5-$B$19=0, (VLOOKUP(1,Tablas!$A$1053:$G$1055,4,TRUE)), (IF(5-$B$19=1, (VLOOKUP(1,Tablas!$A$1053:$G$1055,4,TRUE)), (IF(5-$B$19=2, (VLOOKUP(2,Tablas!$A$1053:$G$1055,4,TRUE)), (IF(5-$B$19=3, (VLOOKUP(3,Tablas!$A$1053:$G$1055,4,TRUE)), (IF(5-$B$19=4, (VLOOKUP(3,Tablas!$A$1053:$G$1055,4,TRUE)), (VLOOKUP(3,Tablas!$A$1053:$G$1055,4,TRUE)))))))))))), (IF($B$17=6,(IF(6-$B$19=0, (VLOOKUP(2,Tablas!$A$1053:$G$1055,4,TRUE)), (IF(6-$B$19=1, (VLOOKUP(2,Tablas!$A$1053:$G$1055,4,TRUE)), (IF(6-$B$19=2, (VLOOKUP(2,Tablas!$A$1053:$G$1055,4,TRUE)), (IF(6-$B$19=3, (VLOOKUP(3,Tablas!$A$1053:$G$1055,4,TRUE)), (IF(6-$B$19=4, (VLOOKUP(3,Tablas!$A$1053:$G$1055,4,TRUE)), (VLOOKUP(3,Tablas!$A$1053:$G$1055,4,TRUE)))))))))))), (IF($B$17>6,(IF(7-$B$19=0, (VLOOKUP(3,Tablas!$A$1053:$G$1055,4,TRUE)), (IF(7-$B$19=1, (VLOOKUP(3,Tablas!$A$1053:$G$1055,4,TRUE)), (IF(7-$B$19=2, (VLOOKUP(3,Tablas!$A$1053:$G$1055,4,TRUE)), (IF(7-$B$19=3, (VLOOKUP(3,Tablas!$A$1053:$G$1055,4,TRUE)), (IF(7-$B$19=4, (VLOOKUP(3,Tablas!$A$1053:$G$1055,4,TRUE)), (VLOOKUP(3,Tablas!$A$1053:$G$1055,4,TRUE)))))))))))), (IF($B$17=3,(IF(3-$B$19=0,0, (IF(3-$B$19=1,(VLOOKUP(1,Tablas!$A$1053:$G$1055,4,TRUE)), (IF(3-$B$19=2, (VLOOKUP(2,Tablas!$A$1053:$G$1055,4,TRUE)), (VLOOKUP(3,Tablas!$A$1053:$G$1055,4,TRUE)))))))), (IF($B$17=2,(IF(2-$B$19=0, 0, (IF(2-$B$19=1,(VLOOKUP(1,Tablas!$A$1053:$G$1055,4,TRUE)), (IF(2-$B$19=2, (VLOOKUP(2,Tablas!$A$1053:$G$1055,4,TRUE)), 0)))))), (IF($B$17=1,(IF(1-$B$19=0, 0, (IF(1-$B$19=1,(VLOOKUP(1,Tablas!$A$1053:$G$1055,4,TRUE)),0)))),0))))))))))))))))))) -> 376.6746667 | E70: =IF($B$15=1, (IF($B$17=0, 0, (IF($B$19>$B$17, (VLOOKUP($B$17,Tablas!$A$1053:$G$1055,5,TRUE)), (IF($B$17>4,(IF($B$19=0, (VLOOKUP(3,Tablas!$A$1053:$G$1055,5,TRUE)), (IF($B$19=1, (VLOOKUP(3,Tablas!$A$1053:$G$1055,5,TRUE)), (IF($B$19=2, (VLOOKUP(3,Tablas!$A$1053:$G$1055,5,TRUE)), (VLOOKUP(3,Tablas!$A$1053:$G$1055,5,TRUE)))))))), (IF($B$17=4,(IF(4-$B$19=0,(VLOOKUP(2,Tablas!$A$1053:$G$1055,5,TRUE)), (IF(4-$B$19=1,(VLOOKUP(2,Tablas!$A$1053:$G$1055,5,TRUE)), (IF(4-$B$19=2, (VLOOKUP(2,Tablas!$A$1053:$G$1055,5,TRUE)), (VLOOKUP(3,Tablas!$A$1053:$G$1055,5,TRUE)))))))), (IF($B$17=3,(IF(3-$B$19=0,(VLOOKUP(1,Tablas!$A$1053:$G$1055,5,TRUE)), (IF(3-$B$19=1,(VLOOKUP(1,Tablas!$A$1053:$G$1055,5,TRUE)), (IF(3-$B$19=2, (VLOOKUP(2,Tablas!$A$1053:$G$1055,5,TRUE)), (VLOOKUP(3,Tablas!$A$1053:$G$1055,5,TRUE)))))))), (IF($B$17=2,(IF(2-$B$19=0, 0, (IF(2-$B$19=1,(VLOOKUP(1,Tablas!$A$1053:$G$1055,5,TRUE)), (IF(2-$B$19=2, (VLOOKUP(2,Tablas!$A$1053:$G$1055,5,TRUE)), 0)))))), (IF($B$17=1,(IF(1-$B$19=0, 0, (IF(1-$B$19=1,(VLOOKUP(1,Tablas!$A$1053:$G$1055,5,TRUE)),0)))),0)))))))))))))), (IF($B$17=0, 0, (IF($B$19>$B$17, (VLOOKUP($B$17,Tablas!$A$1053:$G$1055,5,TRUE)), (IF($B$17=4,(IF(4-$B$19=0, 0, (IF(4-$B$19=1, (VLOOKUP(1,Tablas!$A$1053:$G$1055,5,TRUE)), (IF(4-$B$19=2, (VLOOKUP(2,Tablas!$A$1053:$G$1055,5,TRUE)), (IF(4-$B$19=3, (VLOOKUP(3,Tablas!$A$1053:$G$1055,5,TRUE)), (IF(4-$B$19=4, (VLOOKUP(3,Tablas!$A$1053:$G$1055,5,TRUE)), 0)))))))))), (IF($B$17=5,(IF(5-$B$19=0, (VLOOKUP(1,Tablas!$A$1053:$G$1055,5,TRUE)), (IF(5-$B$19=1, (VLOOKUP(1,Tablas!$A$1053:$G$1055,5,TRUE)), (IF(5-$B$19=2, (VLOOKUP(2,Tablas!$A$1053:$G$1055,5,TRUE)), (IF(5-$B$19=3, (VLOOKUP(3,Tablas!$A$1053:$G$1055,5,TRUE)), (IF(5-$B$19=4, (VLOOKUP(3,Tablas!$A$1053:$G$1055,5,TRUE)), (VLOOKUP(3,Tablas!$A$1053:$G$1055,5,TRUE)))))))))))), (IF($B$17=6,(IF(6-$B$19=0, (VLOOKUP(2,Tablas!$A$1053:$G$1055,5,TRUE)), (IF(6-$B$19=1, (VLOOKUP(2,Tablas!$A$1053:$G$1055,5,TRUE)), (IF(6-$B$19=2, (VLOOKUP(2,Tablas!$A$1053:$G$1055,5,TRUE)), (IF(6-$B$19=3, (VLOOKUP(3,Tablas!$A$1053:$G$1055,5,TRUE)), (IF(6-$B$19=4, (VLOOKUP(3,Tablas!$A$1053:$G$1055,5,TRUE)), (VLOOKUP(3,Tablas!$A$1053:$G$1055,5,TRUE)))))))))))), (IF($B$17>6,(IF(7-$B$19=0, (VLOOKUP(3,Tablas!$A$1053:$G$1055,5,TRUE)), (IF(7-$B$19=1, (VLOOKUP(3,Tablas!$A$1053:$G$1055,5,TRUE)), (IF(7-$B$19=2, (VLOOKUP(3,Tablas!$A$1053:$G$1055,5,TRUE)), (IF(7-$B$19=3, (VLOOKUP(3,Tablas!$A$1053:$G$1055,5,TRUE)), (IF(7-$B$19=4, (VLOOKUP(3,Tablas!$A$1053:$G$1055,5,TRUE)), (VLOOKUP(3,Tablas!$A$1053:$G$1055,5,TRUE)))))))))))), (IF($B$17=3,(IF(3-$B$19=0,0, (IF(3-$B$19=1,(VLOOKUP(1,Tablas!$A$1053:$G$1055,5,TRUE)), (IF(3-$B$19=2, (VLOOKUP(2,Tablas!$A$1053:$G$1055,5,TRUE)), (VLOOKUP(3,Tablas!$A$1053:$G$1055,5,TRUE)))))))), (IF($B$17=2,(IF(2-$B$19=0, 0, (IF(2-$B$19=1,(VLOOKUP(1,Tablas!$A$1053:$G$1055,5,TRUE)), (IF(2-$B$19=2, (VLOOKUP(2,Tablas!$A$1053:$G$1055,5,TRUE)), 0)))))), (IF($B$17=1,(IF(1-$B$19=0, 0, (IF(1-$B$19=1,(VLOOKUP(1,Tablas!$A$1053:$G$1055,5,TRUE)),0)))),0))))))))))))))))))) -> 315.6673333
A71: Total de Prima neta | C71: =SUM(C68:C70) -> 4521.206667 | D71: =SUM(D68:D70) -> 2917.086667 | E71: =SUM(E68:E70) -> 2416.493333
A72: Tarifa administrativa anual | C72: 75 | D72: 75 | E72: 75
A73: VAT (5%) | C73: =(C71+C72)*5% -> 229.8103333 | D73: =(D71+D72)*5% -> 149.6043333 | E73: =(E71+E72)*5% -> 124.5746667
A74: ITBMS (7%) | C74: 0 | D74: 0 | E74: 0
A75: TOTAL de primera cuota | C75: =SUM(C71:C74) -> 4826.017 | D75: =SUM(D71:D74) -> 3141.691 | E75: =SUM(E71:E74) -> 2616.068
A76: Costo de Tarifa mensual de 2 a 12 | C76: =C71*1.05 -> 4747.267 | D76: =D71*1.05 -> 3062.941 | E76: =E71*1.05 -> 2537.318
A77: TOTAL ANUAL | C77: =C75+(C76*11) -> 57045.954 | D77: =D75+(D76*11) -> 36834.042 | E77: =E75+(E76*11) -> 30526.566
A78: Ahorros en tarifas de prima para Dependientes | C78: =IF($B$15=1,IF($B$17=0,0,IF($B$19=0,0,IF($B$19=1,(VLOOKUP(1,Tablas!$A$1053:$G$1055,3,TRUE)),(VLOOKUP(2,Tablas!$A$1053:$G$1055,3,TRUE))))), IF($B$17=0,0,IF($B$19=0,0,IF($B$19=1,(VLOOKUP(1,Tablas!$A$1053:$G$1055,3,TRUE)),IF($B$19=2,(VLOOKUP(2,Tablas!$A$1053:$G$1055,3,TRUE)), (VLOOKUP(3,Tablas!$A$1053:$G$1055,3,TRUE))))))) -> 583.6553333 | D78: =IF($B$15=1,IF($B$17=0,0,IF($B$19=0,0,IF($B$19=1,(VLOOKUP(1,Tablas!$A$1053:$G$1055,4,TRUE)),(VLOOKUP(2,Tablas!$A$1053:$G$1055,4,TRUE))))), IF($B$17=0,0,IF($B$19=0,0,IF($B$19=1,(VLOOKUP(1,Tablas!$A$1053:$G$1055,4,TRUE)),IF($B$19=2,(VLOOKUP(2,Tablas!$A$1053:$G$1055,4,TRUE)), (VLOOKUP(3,Tablas!$A$1053:$G$1055,4,TRUE))))))) -> 376.6746667 | E78: =IF($B$15=1,IF($B$17=0,0,IF($B$19=0,0,IF($B$19=1,(VLOOKUP(1,Tablas!$A$1053:$G$1055,5,TRUE)),(VLOOKUP(2,Tablas!$A$1053:$G$1055,5,TRUE))))), IF($B$17=0,0,IF($B$19=0,0,IF($B$19=1,(VLOOKUP(1,Tablas!$A$1053:$G$1055,5,TRUE)),IF($B$19=2,(VLOOKUP(2,Tablas!$A$1053:$G$1055,5,TRUE)), (VLOOKUP(3,Tablas!$A$1053:$G$1055,5,TRUE))))))) -> 315.6673333
A80: Este presupuesto solamente tiene carácter informativo y en ningún momento expresa compromiso legal para suministrarle cobertura de seguro. La emisión de una póliza de seguro Bupa está sujeta a todas las evaluaciones de riesgo por parte de Bupa y a la recepción de todos los pagos de prima requeridos.

Sheet Bupa Global Elite
K1: RESUMEN DE BENEFICIOS | Z1: RESUMEN DE BENEFICIOS | AO1: RESUMEN DE BENEFICIOS
A5: Cotización de Seguro Médico Internacional Bupa Global Elite Health Plan Tarifas en US$ | Validas: 1 de enero de 2025
A13: Nombre del Asegurado Titular | B13: =+'INGRESO DE DATOS'!$C$37 -> John Doe
A15: Número de adultos en la póliza | B15: =+'INGRESO DE DATOS'!$C$39 -> 2
A17: Número de Dependientes en la póliza | B17: =+'INGRESO DE DATOS'!$C$41 -> 2 | C17: =IF('INGRESO DE DATOS'!$P$2=TRUE, "Cotización para dependiente de 24 años","") -> 
A19: Número de Dependientes menores de 10 años | B19: =+'INGRESO DE DATOS'!$H$42 -> 1
A21: Edad del Asegurado Titular | B21: =+'INGRESO DE DATOS'!$C$43 -> 32 | E21: Edad del/la conyuge | G21: =+'INGRESO DE DATOS'!$C$45 -> 46
A23: Fecha de la cotización | B23: =NOW() -> 2025-04-08T10:00:12.220
A25: =IF('INGRESO DE DATOS'!P3=TRUE,"Variante con coaseguro fuera del país de residencia: SI","Variante con coaseguro fuera del país de residencia: NO") -> Variante con coaseguro fuera del país de residencia: NO
A27: DEDUCIBlES | C27: PLAN 1 | D27: PLAN 2 | E27: PLAN 3 | F27: PLAN 4 | G27: PLAN 5 | H27: PLAN 6
A28: En el país de residencia | C28: 1000 | D28: 2000 | E28: 3500 | F28: 5000 | G28: 10000 | H28: 20000
A29: Fuera del país de residencia | C29: 1000 | D29: 2000 | E29: 3500 | F29: 5000 | G29: 10000 | H29: 20000
A31: TARIFAS ANUALES
A32: Prima para Asegurado Titular | C32: =VLOOKUP($B$21,Tablas!$A$6:$G$72,3,TRUE) -> 9348.3 | D32: =VLOOKUP($B$21,Tablas!$A$6:$G$72,4,TRUE) -> 6619.8 | E32: =VLOOKUP($B$21,Tablas!$A$6:$G$72,5,TRUE) -> 5395.8 | F32: =VLOOKUP($B$21,Tablas!$A$6:$G$72,6,TRUE) -> 4678.4 | G32: =VLOOKUP($B$21,Tablas!$A$6:$G$72,7,TRUE) -> 3564.05 | H32: =VLOOKUP($B$21,Tablas!$A$6:$H$72,8,TRUE) -> 2851.75
A33: Prima para conyuge | C33: =IF($B$15=1,0,(VLOOKUP($G$21,Tablas!$A$6:$G$72,3,TRUE))) -> 12854.55 | D33: =IF($B$15=1,0,(VLOOKUP($G$21,Tablas!$A$6:$G$72,4,TRUE))) -> 9074.6 | E33: =IF($B$15=1,0,(VLOOKUP($G$21,Tablas!$A$6:$G$72,5,TRUE))) -> 7305.75 | F33: =IF($B$15=1,0,(VLOOKUP($G$21,Tablas!$A$6:$G$72,6,TRUE))) -> 6335.9 | G33: =IF($B$15=1,0,(VLOOKUP($G$21,Tablas!$A$6:$G$72,7,TRUE))) -> 4826.3 | H33: =IF($B$15=1,0,(VLOOKUP($G$21,Tablas!$A$6:$H$72,8,TRUE))) -> 3861.55
A34: Prima para hijo (s) | C34: =IF($B$15=1, (IF($B$17=0, 0, (IF($B$19>$B$17, (VLOOKUP($B$17,Tablas!$A$73:$G$75,3,TRUE)), (IF($B$17>4,(IF($B$19=0, (VLOOKUP(3,Tablas!$A$73:$G$75,3,TRUE)), (IF($B$19=1, (VLOOKUP(3,Tablas!$A$73:$G$75,3,TRUE)), (IF($B$19=2, (VLOOKUP(3,Tablas!$A$73:$G$75,3,TRUE)), (VLOOKUP(3,Tablas!$A$73:$G$75,3,TRUE)))))))), (IF($B$17=4,(IF(4-$B$19=0,(VLOOKUP(2,Tablas!$A$73:$G$75,3,TRUE)), (IF(4-$B$19=1,(VLOOKUP(2,Tablas!$A$73:$G$75,3,TRUE)), (IF(4-$B$19=2, (VLOOKUP(2,Tablas!$A$73:$G$75,3,TRUE)), (VLOOKUP(3,Tablas!$A$73:$G$75,3,TRUE)))))))), (IF($B$17=3,(IF(3-$B$19=0,(VLOOKUP(1,Tablas!$A$73:$G$75,3,TRUE)), (IF(3-$B$19=1,(VLOOKUP(1,Tablas!$A$73:$G$75,3,TRUE)), (IF(3-$B$19=2, (VLOOKUP(2,Tablas!$A$73:$G$75,3,TRUE)), (VLOOKUP(3,Tablas!$A$73:$G$75,3,TRUE)))))))), (IF($B$17=2,(IF(2-$B$19=0, 0, (IF(2-$B$19=1,(VLOOKUP(1,Tablas!$A$73:$G$75,3,TRUE)), (IF(2-$B$19=2, (VLOOKUP(2,Tablas!$A$73:$G$75,3,TRUE)), 0)))))), (IF($B$17=1,(IF(1-$B$19=0, 0, (IF(1-$B$19=1,(VLOOKUP(1,Tablas!$A$73:$G$75,3,TRUE)),0)))),0)))))))))))))), (IF($B$17=0, 0, (IF($B$19>$B$17, (VLOOKUP($B$17,Tablas!$A$73:$G$75,3,TRUE)), (IF($B$17=4,(IF(4-$B$19=0, 0, (IF(4-$B$19=1, (VLOOKUP(1,Tablas!$A$73:$G$75,3,TRUE)), (IF(4-$B$19=2, (VLOOKUP(2,Tablas!$A$73:$G$75,3,TRUE)), (IF(4-$B$19=3, (VLOOKUP(3,Tablas!$A$73:$G$75,3,TRUE)), (IF(4-$B$19=4, (VLOOKUP(3,Tablas!$A$73:$G$75,3,TRUE)), 0)))))))))), (IF($B$17=5,(IF(5-$B$19=0, (VLOOKUP(1,Tablas!$A$73:$G$75,3,TRUE)), (IF(5-$B$19=1, (VLOOKUP(1,Tablas!$A$73:$G$75,3,TRUE)), (IF(5-$B$19=2, (VLOOKUP(2,Tablas!$A$73:$G$75,3,TRUE)), (IF(5-$B$19=3, (VLOOKUP(3,Tablas!$A$73:$G$75,3,TRUE)), (IF(5-$B$19=4, (VLOOKUP(3,Tablas!$A$73:$G$75,3,TRUE)), (VLOOKUP(3,Tablas!$A$73:$G$75,3,TRUE)))))))))))), (IF($B$17=6,(IF(6-$B$19=0, (VLOOKUP(2,Tablas!$A$73:$G$75,3,TRUE)), (IF(6-$B$19=1, (VLOOKUP(2,Tablas!$A$73:$G$75,3,TRUE)), (IF(6-$B$19=2, (VLOOKUP(2,Tablas!$A$73:$G$75,3,TRUE)), (IF(6-$B$19=3, (VLOOKUP(3,Tablas!$A$73:$G$75,3,TRUE)), (IF(6-$B$19=4, (VLOOKUP(3,Tablas!$A$73:$G$75,3,TRUE)), (VLOOKUP(3,Tablas!$A$73:$G$75,3,TRUE)))))))))))), (IF($B$17>6,(IF(7-$B$19=0, (VLOOKUP(3,Tablas!$A$73:$G$75,3,TRUE)), (IF(7-$B$19=1, (VLOOKUP(3,Tablas!$A$73:$G$75,3,TRUE)), (IF(7-$B$19=2, (VLOOKUP(3,Tablas!$A$73:$G$75,3,TRUE)), (IF(7-$B$19=3, (VLOOKUP(3,Tablas!$A$73:$G$75,3,TRUE)), (IF(7-$B$19=4, (VLOOKUP(3,Tablas!$A$73:$G$75,3,TRUE)), (VLOOKUP(3,Tablas!$A$73:$G$75,3,TRUE)))))))))))), (IF($B$17=3,(IF(3-$B$19=0,0, (IF(3-$B$19=1,(VLOOKUP(1,Tablas!$A$73:$G$75,3,TRUE)), (IF(3-$B$19=2, (VLOOKUP(2,Tablas!$A$73:$G$75,3,TRUE)), (VLOOKUP(3,Tablas!$A$73:$G$75,3,TRUE)))))))), (IF($B$17=2,(IF(2-$B$19=0, 0, (IF(2-$B$19=1,(VLOOKUP(1,Tablas!$A$73:$G$75,3,TRUE)), (IF(2-$B$19=2, (VLOOKUP(2,Tablas!$A$73:$G$75,3,TRUE)), 0)))))), (IF($B$17=1,(IF(1-$B$19=0, 0, (IF(1-$B$19=1,(VLOOKUP(1,Tablas!$A$73:$G$75,3,TRUE)),0)))),0))))))))))))))))))) -> 3292.9 | D34: =IF($B$15=1, (IF($B$17=0, 0, (IF($B$19>$B$17, (VLOOKUP($B$17,Tablas!$A$73:$G$75,4,TRUE)), (IF($B$17>4,(IF($B$19=0, (VLOOKUP(3,Tablas!$A$73:$G$75,4,TRUE)), (IF($B$19=1, (VLOOKUP(3,Tablas!$A$73:$G$75,4,TRUE)), (IF($B$19=2, (VLOOKUP(3,Tablas!$A$73:$G$75,4,TRUE)), (VLOOKUP(3,Tablas!$A$73:$G$75,4,TRUE)))))))), (IF($B$17=4,(IF(4-$B$19=0,(VLOOKUP(2,Tablas!$A$73:$G$75,4,TRUE)), (IF(4-$B$19=1,(VLOOKUP(2,Tablas!$A$73:$G$75,4,TRUE)), (IF(4-$B$19=2, (VLOOKUP(2,Tablas!$A$73:$G$75,4,TRUE)), (VLOOKUP(3,Tablas!$A$73:$G$75,4,TRUE)))))))), (IF($B$17=3,(IF(3-$B$19=0,(VLOOKUP(1,Tablas!$A$73:$G$75,4,TRUE)), (IF(3-$B$19=1,(VLOOKUP(1,Tablas!$A$73:$G$75,4,TRUE)), (IF(3-$B$19=2, (VLOOKUP(2,Tablas!$A$73:$G$75,4,TRUE)), (VLOOKUP(3,Tablas!$A$73:$G$75,4,TRUE)))))))), (IF($B$17=2,(IF(2-$B$19=0, 0, (IF(2-$B$19=1,(VLOOKUP(1,Tablas!$A$73:$G$75,4,TRUE)), (IF(2-$B$19=2, (VLOOKUP(2,Tablas!$A$73:$G$75,4,TRUE)), 0)))))), (IF($B$17=1,(IF(1-$B$19=0, 0, (IF(1-$B$19=1,(VLOOKUP(1,Tablas!$A$73:$G$75,4,TRUE)),0)))),0)))))))))))))), (IF($B$17=0, 0, (IF($B$19>$B$17, (VLOOKUP($B$17,Tablas!$A$73:$G$75,4,TRUE)), (IF($B$17=4,(IF(4-$B$19=0, 0, (IF(4-$B$19=1, (VLOOKUP(1,Tablas!$A$73:$G$75,4,TRUE)), (IF(4-$B$19=2, (VLOOKUP(2,Tablas!$A$73:$G$75,4,TRUE)), (IF(4-$B$19=3, (VLOOKUP(3,Tablas!$A$73:$G$75,4,TRUE)), (IF(4-$B$19=4, (VLOOKUP(3,Tablas!$A$73:$G$75,4,TRUE)), 0)))))))))), (IF($B$17=5,(IF(5-$B$19=0, (VLOOKUP(1,Tablas!$A$73:$G$75,4,TRUE)), (IF(5-$B$19=1, (VLOOKUP(1,Tablas!$A$73:$G$75,4,TRUE)), (IF(5-$B$19=2, (VLOOKUP(2,Tablas!$A$73:$G$75,4,TRUE)), (IF(5-$B$19=3, (VLOOKUP(3,Tablas!$A$73:$G$75,4,TRUE)), (IF(5-$B$19=4, (VLOOKUP(3,Tablas!$A$73:$G$75,4,TRUE)), (VLOOKUP(3,Tablas!$A$73:$G$75,4,TRUE)))))))))))), (IF($B$17=6,(IF(6-$B$19=0, (VLOOKUP(2,Tablas!$A$73:$G$75,4,TRUE)), (IF(6-$B$19=1, (VLOOKUP(2,Tablas!$A$73:$G$75,4,TRUE)), (IF(6-$B$19=2, (VLOOKUP(2,Tablas!$A$73:$G$75,4,TRUE)), (IF(6-$B$19=3, (VLOOKUP(3,Tablas!$A$73:$G$75,4,TRUE)), (IF(6-$B$19=4, (VLOOKUP(3,Tablas!$A$73:$G$75,4,TRUE)), (VLOOKUP(3,Tablas!$A$73:$G$75,4,TRUE)))))))))))), (IF($B$17>6,(IF(7-$B$19=0, (VLOOKUP(3,Tablas!$A$73:$G$75,4,TRUE)), (IF(7-$B$19=1, (VLOOKUP(3,Tablas!$A$73:$G$75,4,TRUE)), (IF(7-$B$19=2, (VLOOKUP(3,Tablas!$A$73:$G$75,4,TRUE)), (IF(7-$B$19=3, (VLOOKUP(3,Tablas!$A$73:$G$75,4,TRUE)), (IF(7-$B$19=4, (VLOOKUP(3,Tablas!$A$73:$G$75,4,TRUE)), (VLOOKUP(3,Tablas!$A$73:$G$75,4,TRUE)))))))))))), (IF($B$17=3,(IF(3-$B$19=0,0, (IF(3-$B$19=1,(VLOOKUP(1,Tablas!$A$73:$G$75,4,TRUE)), (IF(3-$B$19=2, (VLOOKUP(2,Tablas!$A$73:$G$75,4,TRUE)), (VLOOKUP(3,Tablas!$A$73:$G$75,4,TRUE)))))))), (IF($B$17=2,(IF(2-$B$19=0, 0, (IF(2-$B$19=1,(VLOOKUP(1,Tablas!$A$73:$G$75,4,TRUE)), (IF(2-$B$19=2, (VLOOKUP(2,Tablas!$A$73:$G$75,4,TRUE)), 0)))))), (IF($B$17=1,(IF(1-$B$19=0, 0, (IF(1-$B$19=1,(VLOOKUP(1,Tablas!$A$73:$G$75,4,TRUE)),0)))),0))))))))))))))))))) -> 2357.9 | E34: =IF($B$15=1, (IF($B$17=0, 0, (IF($B$19>$B$17, (VLOOKUP($B$17,Tablas!$A$73:$G$75,5,TRUE)), (IF($B$17>4,(IF($B$19=0, (VLOOKUP(3,Tablas!$A$73:$G$75,5,TRUE)), (IF($B$19=1, (VLOOKUP(3,Tablas!$A$73:$G$75,5,TRUE)), (IF($B$19=2, (VLOOKUP(3,Tablas!$A$73:$G$75,5,TRUE)), (VLOOKUP(3,Tablas!$A$73:$G$75,5,TRUE)))))))), (IF($B$17=4,(IF(4-$B$19=0,(VLOOKUP(2,Tablas!$A$73:$G$75,5,TRUE)), (IF(4-$B$19=1,(VLOOKUP(2,Tablas!$A$73:$G$75,5,TRUE)), (IF(4-$B$19=2, (VLOOKUP(2,Tablas!$A$73:$G$75,5,TRUE)), (VLOOKUP(3,Tablas!$A$73:$G$75,5,TRUE)))))))), (IF($B$17=3,(IF(3-$B$19=0,(VLOOKUP(1,Tablas!$A$73:$G$75,5,TRUE)), (IF(3-$B$19=1,(VLOOKUP(1,Tablas!$A$73:$G$75,5,TRUE)), (IF(3-$B$19=2, (VLOOKUP(2,Tablas!$A$73:$G$75,5,TRUE)), (VLOOKUP(3,Tablas!$A$73:$G$75,5,TRUE)))))))), (IF($B$17=2,(IF(2-$B$19=0, 0, (IF(2-$B$19=1,(VLOOKUP(1,Tablas!$A$73:$G$75,5,TRUE)), (IF(2-$B$19=2, (VLOOKUP(2,Tablas!$A$73:$G$75,5,TRUE)), 0)))))), (IF($B$17=1,(IF(1-$B$19=0, 0, (IF(1-$B$19=1,(VLOOKUP(1,Tablas!$A$73:$G$75,5,TRUE)),0)))),0)))))))))))))), (IF($B$17=0, 0, (IF($B$19>$B$17, (VLOOKUP($B$17,Tablas!$A$73:$G$75,5,TRUE)), (IF($B$17=4,(IF(4-$B$19=0, 0, (IF(4-$B$19=1, (VLOOKUP(1,Tablas!$A$73:$G$75,5,TRUE)), (IF(4-$B$19=2, (VLOOKUP(2,Tablas!$A$73:$G$75,5,TRUE)), (IF(4-$B$19=3, (VLOOKUP(3,Tablas!$A$73:$G$75,5,TRUE)), (IF(4-$B$19=4, (VLOOKUP(3,Tablas!$A$73:$G$75,5,TRUE)), 0)))))))))), (IF($B$17=5,(IF(5-$B$19=0, (VLOOKUP(1,Tablas!$A$73:$G$75,5,TRUE)), (IF(5-$B$19=1, (VLOOKUP(1,Tablas!$A$73:$G$75,5,TRUE)), (IF(5-$B$19=2, (VLOOKUP(2,Tablas!$A$73:$G$75,5,TRUE)), (IF(5-$B$19=3, (VLOOKUP(3,Tablas!$A$73:$G$75,5,TRUE)), (IF(5-$B$19=4, (VLOOKUP(3,Tablas!$A$73:$G$75,5,TRUE)), (VLOOKUP(3,Tablas!$A$73:$G$75,5,TRUE)))))))))))), (IF($B$17=6,(IF(6-$B$19=0, (VLOOKUP(2,Tablas!$A$73:$G$75,5,TRUE)), (IF(6-$B$19=1, (VLOOKUP(2,Tablas!$A$73:$G$75,5,TRUE)), (IF(6-$B$19=2, (VLOOKUP(2,Tablas!$A$73:$G$75,5,TRUE)), (IF(6-$B$19=3, (VLOOKUP(3,Tablas!$A$73:$G$75,5,TRUE)), (IF(6-$B$19=4, (VLOOKUP(3,Tablas!$A$73:$G$75,5,TRUE)), (VLOOKUP(3,Tablas!$A$73:$G$75,5,TRUE)))))))))))), (IF($B$17>6,(IF(7-$B$19=0, (VLOOKUP(3,Tablas!$A$73:$G$75,5,TRUE)), (IF(7-$B$19=1, (VLOOKUP(3,Tablas!$A$73:$G$75,5,TRUE)), (IF(7-$B$19=2, (VLOOKUP(3,Tablas!$A$73:$G$75,5,TRUE)), (IF(7-$B$19=3, (VLOOKUP(3,Tablas!$A$73:$G$75,5,TRUE)), (IF(7-$B$19=4, (VLOOKUP(3,Tablas!$A$73:$G$75,5,TRUE)), (VLOOKUP(3,Tablas!$A$73:$G$75,5,TRUE)))))))))))), (IF($B$17=3,(IF(3-$B$19=0,0, (IF(3-$B$19=1,(VLOOKUP(1,Tablas!$A$73:$G$75,5,TRUE)), (IF(3-$B$19=2, (VLOOKUP(2,Tablas!$A$73:$G$75,5,TRUE)), (VLOOKUP(3,Tablas!$A$73:$G$75,5,TRUE)))))))), (IF($B$17=2,(IF(2-$B$19=0, 0, (IF(2-$B$19=1,(VLOOKUP(1,Tablas!$A$73:$G$75,5,TRUE)), (IF(2-$B$19=2, (VLOOKUP(2,Tablas!$A$73:$G$75,5,TRUE)), 0)))))), (IF($B$17=1,(IF(1-$B$19=0, 0, (IF(1-$B$19=1,(VLOOKUP(1,Tablas!$A$73:$G$75,5,TRUE)),0)))),0))))))))))))))))))) -> 1962.65 | F34: =IF($B$15=1, (IF($B$17=0, 0, (IF($B$19>$B$17, (VLOOKUP($B$17,Tablas!$A$73:$G$75,6,TRUE)), (IF($B$17>4,(IF($B$19=0, (VLOOKUP(3,Tablas!$A$73:$G$75,6,TRUE)), (IF($B$19=1, (VLOOKUP(3,Tablas!$A$73:$G$75,6,TRUE)), (IF($B$19=2, (VLOOKUP(3,Tablas!$A$73:$G$75,6,TRUE)), (VLOOKUP(3,Tablas!$A$73:$G$75,6,TRUE)))))))), (IF($B$17=4,(IF(4-$B$19=0,(VLOOKUP(2,Tablas!$A$73:$G$75,6,TRUE)), (IF(4-$B$19=1,(VLOOKUP(2,Tablas!$A$73:$G$75,6,TRUE)), (IF(4-$B$19=2, (VLOOKUP(2,Tablas!$A$73:$G$75,6,TRUE)), (VLOOKUP(3,Tablas!$A$73:$G$75,6,TRUE)))))))), (IF($B$17=3,(IF(3-$B$19=0,(VLOOKUP(1,Tablas!$A$73:$G$75,6,TRUE)), (IF(3-$B$19=1,(VLOOKUP(1,Tablas!$A$73:$G$75,6,TRUE)), (IF(3-$B$19=2, (VLOOKUP(2,Tablas!$A$73:$G$75,6,TRUE)), (VLOOKUP(3,Tablas!$A$73:$G$75,6,TRUE)))))))), (IF($B$17=2,(IF(2-$B$19=0, 0, (IF(2-$B$19=1,(VLOOKUP(1,Tablas!$A$73:$G$75,6,TRUE)), (IF(2-$B$19=2, (VLOOKUP(2,Tablas!$A$73:$G$75,6,TRUE)), 0)))))), (IF($B$17=1,(IF(1-$B$19=0, 0, (IF(1-$B$19=1,(VLOOKUP(1,Tablas!$A$73:$G$75,6,TRUE)),0)))),0)))))))))))))), (IF($B$17=0, 0, (IF($B$19>$B$17, (VLOOKUP($B$17,Tablas!$A$73:$G$75,6,TRUE)), (IF($B$17=4,(IF(4-$B$19=0, 0, (IF(4-$B$19=1, (VLOOKUP(1,Tablas!$A$73:$G$75,6,TRUE)), (IF(4-$B$19=2, (VLOOKUP(2,Tablas!$A$73:$G$75,6,TRUE)), (IF(4-$B$19=3, (VLOOKUP(3,Tablas!$A$73:$G$75,6,TRUE)), (IF(4-$B$19=4, (VLOOKUP(3,Tablas!$A$73:$G$75,6,TRUE)), 0)))))))))), (IF($B$17=5,(IF(5-$B$19=0, (VLOOKUP(1,Tablas!$A$73:$G$75,6,TRUE)), (IF(5-$B$19=1, (VLOOKUP(1,Tablas!$A$73:$G$75,6,TRUE)), (IF(5-$B$19=2, (VLOOKUP(2,Tablas!$A$73:$G$75,6,TRUE)), (IF(5-$B$19=3, (VLOOKUP(3,Tablas!$A$73:$G$75,6,TRUE)), (IF(5-$B$19=4, (VLOOKUP(3,Tablas!$A$73:$G$75,6,TRUE)), (VLOOKUP(3,Tablas!$A$73:$G$75,6,TRUE)))))))))))), (IF($B$17=6,(IF(6-$B$19=0, (VLOOKUP(2,Tablas!$A$73:$G$75,6,TRUE)), (IF(6-$B$19=1, (VLOOKUP(2,Tablas!$A$73:$G$75,6,TRUE)), (IF(6-$B$19=2, (VLOOKUP(2,Tablas!$A$73:$G$75,6,TRUE)), (IF(6-$B$19=3, (VLOOKUP(3,Tablas!$A$73:$G$75,6,TRUE)), (IF(6-$B$19=4, (VLOOKUP(3,Tablas!$A$73:$G$75,6,TRUE)), (VLOOKUP(3,Tablas!$A$73:$G$75,6,TRUE)))))))))))), (IF($B$17>6,(IF(7-$B$19=0, (VLOOKUP(3,Tablas!$A$73:$G$75,6,TRUE)), (IF(7-$B$19=1, (VLOOKUP(3,Tablas!$A$73:$G$75,6,TRUE)), (IF(7-$B$19=2, (VLOOKUP(3,Tablas!$A$73:$G$75,6,TRUE)), (IF(7-$B$19=3, (VLOOKUP(3,Tablas!$A$73:$G$75,6,TRUE)), (IF(7-$B$19=4, (VLOOKUP(3,Tablas!$A$73:$G$75,6,TRUE)), (VLOOKUP(3,Tablas!$A$73:$G$75,6,TRUE)))))))))))), (IF($B$17=3,(IF(3-$B$19=0,0, (IF(3-$B$19=1,(VLOOKUP(1,Tablas!$A$73:$G$75,6,TRUE)), (IF(3-$B$19=2, (VLOOKUP(2,Tablas!$A$73:$G$75,6,TRUE)), (VLOOKUP(3,Tablas!$A$73:$G$75,6,TRUE)))))))), (IF($B$17=2,(IF(2-$B$19=0, 0, (IF(2-$B$19=1,(VLOOKUP(1,Tablas!$A$73:$G$75,6,TRUE)), (IF(2-$B$19=2, (VLOOKUP(2,Tablas!$A$73:$G$75,6,TRUE)), 0)))))), (IF($B$17=1,(IF(1-$B$19=0, 0, (IF(1-$B$19=1,(VLOOKUP(1,Tablas!$A$73:$G$75,6,TRUE)),0)))),0))))))))))))))))))) -> 1701.7 | G34: =IF($B$15=1, (IF($B$17=0, 0, (IF($B$19>$B$17, (VLOOKUP($B$17,Tablas!$A$73:$G$75,7,TRUE)), (IF($B$17>4,(IF($B$19=0, (VLOOKUP(3,Tablas!$A$73:$G$75,7,TRUE)), (IF($B$19=1, (VLOOKUP(3,Tablas!$A$73:$G$75,7,TRUE)), (IF($B$19=2, (VLOOKUP(3,Tablas!$A$73:$G$75,7,TRUE)), (VLOOKUP(3,Tablas!$A$73:$G$75,7,TRUE)))))))), (IF($B$17=4,(IF(4-$B$19=0,(VLOOKUP(2,Tablas!$A$73:$G$75,7,TRUE)), (IF(4-$B$19=1,(VLOOKUP(2,Tablas!$A$73:$G$75,7,TRUE)), (IF(4-$B$19=2, (VLOOKUP(2,Tablas!$A$73:$G$75,7,TRUE)), (VLOOKUP(3,Tablas!$A$73:$G$75,7,TRUE)))))))), (IF($B$17=3,(IF(3-$B$19=0,(VLOOKUP(1,Tablas!$A$73:$G$75,7,TRUE)), (IF(3-$B$19=1,(VLOOKUP(1,Tablas!$A$73:$G$75,7,TRUE)), (IF(3-$B$19=2, (VLOOKUP(2,Tablas!$A$73:$G$75,7,TRUE)), (VLOOKUP(3,Tablas!$A$73:$G$75,7,TRUE)))))))), (IF($B$17=2,(IF(2-$B$19=0, 0, (IF(2-$B$19=1,(VLOOKUP(1,Tablas!$A$73:$G$75,7,TRUE)), (IF(2-$B$19=2, (VLOOKUP(2,Tablas!$A$73:$G$75,7,TRUE)), 0)))))), (IF($B$17=1,(IF(1-$B$19=0, 0, (IF(1-$B$19=1,(VLOOKUP(1,Tablas!$A$73:$G$75,7,TRUE)),0)))),0)))))))))))))), (IF($B$17=0, 0, (IF($B$19>$B$17, (VLOOKUP($B$17,Tablas!$A$73:$G$75,7,TRUE)), (IF($B$17=4,(IF(4-$B$19=0, 0, (IF(4-$B$19=1, (VLOOKUP(1,Tablas!$A$73:$G$75,7,TRUE)), (IF(4-$B$19=2, (VLOOKUP(2,Tablas!$A$73:$G$75,7,TRUE)), (IF(4-$B$19=3, (VLOOKUP(3,Tablas!$A$73:$G$75,7,TRUE)), (IF(4-$B$19=4, (VLOOKUP(3,Tablas!$A$73:$G$75,7,TRUE)), 0)))))))))), (IF($B$17=5,(IF(5-$B$19=0, (VLOOKUP(1,Tablas!$A$73:$G$75,7,TRUE)), (IF(5-$B$19=1, (VLOOKUP(1,Tablas!$A$73:$G$75,7,TRUE)), (IF(5-$B$19=2, (VLOOKUP(2,Tablas!$A$73:$G$75,7,TRUE)), (IF(5-$B$19=3, (VLOOKUP(3,Tablas!$A$73:$G$75,7,TRUE)), (IF(5-$B$19=4, (VLOOKUP(3,Tablas!$A$73:$G$75,7,TRUE)), (VLOOKUP(3,Tablas!$A$73:$G$75,7,TRUE)))))))))))), (IF($B$17=6,(IF(6-$B$19=0, (VLOOKUP(2,Tablas!$A$73:$G$75,7,TRUE)), (IF(6-$B$19=1, (VLOOKUP(2,Tablas!$A$73:$G$75,7,TRUE)), (IF(6-$B$19=2, (VLOOKUP(2,Tablas!$A$73:$G$75,7,TRUE)), (IF(6-$B$19=3, (VLOOKUP(3,Tablas!$A$73:$G$75,7,TRUE)), (IF(6-$B$19=4, (VLOOKUP(3,Tablas!$A$73:$G$75,7,TRUE)), (VLOOKUP(3,Tablas!$A$73:$G$75,7,TRUE)))))))))))), (IF($B$17>6,(IF(7-$B$19=0, (VLOOKUP(3,Tablas!$A$73:$G$75,7,TRUE)), (IF(7-$B$19=1, (VLOOKUP(3,Tablas!$A$73:$G$75,7,TRUE)), (IF(7-$B$19=2, (VLOOKUP(3,Tablas!$A$73:$G$75,7,TRUE)), (IF(7-$B$19=3, (VLOOKUP(3,Tablas!$A$73:$G$75,7,TRUE)), (IF(7-$B$19=4, (VLOOKUP(3,Tablas!$A$73:$G$75,7,TRUE)), (VLOOKUP(3,Tablas!$A$73:$G$75,7,TRUE)))))))))))), (IF($B$17=3,(IF(3-$B$19=0,0, (IF(3-$B$19=1,(VLOOKUP(1,Tablas!$A$73:$G$75,7,TRUE)), (IF(3-$B$19=2, (VLOOKUP(2,Tablas!$A$73:$G$75,7,TRUE)), (VLOOKUP(3,Tablas!$A$73:$G$75,7,TRUE)))))))), (IF($B$17=2,(IF(2-$B$19=0, 0, (IF(2-$B$19=1,(VLOOKUP(1,Tablas!$A$73:$G$75,7,TRUE)), (IF(2-$B$19=2, (VLOOKUP(2,Tablas!$A$73:$G$75,7,TRUE)), 0)))))), (IF($B$17=1,(IF(1-$B$19=0, 0, (IF(1-$B$19=1,(VLOOKUP(1,Tablas!$A$73:$G$75,7,TRUE)),0)))),0))))))))))))))))))) -> 1297.95 | H34: =IF($B$15=1, (IF($B$17=0, 0, (IF($B$19>$B$17, (VLOOKUP($B$17,Tablas!$A$73:$H$75,8,TRUE)), (IF($B$17>4,(IF($B$19=0, (VLOOKUP(3,Tablas!$A$73:$G$75,7,TRUE)), (IF($B$19=1, (VLOOKUP(3,Tablas!$A$73:$G$75,7,TRUE)), (IF($B$19=2, (VLOOKUP(3,Tablas!$A$73:$G$75,7,TRUE)), (VLOOKUP(3,Tablas!$A$73:$G$75,7,TRUE)))))))), (IF($B$17=4,(IF(4-$B$19=0,(VLOOKUP(2,Tablas!$A$73:$G$75,7,TRUE)), (IF(4-$B$19=1,(VLOOKUP(2,Tablas!$A$73:$G$75,7,TRUE)), (IF(4-$B$19=2, (VLOOKUP(2,Tablas!$A$73:$G$75,7,TRUE)), (VLOOKUP(3,Tablas!$A$73:$G$75,7,TRUE)))))))), (IF($B$17=3,(IF(3-$B$19=0,(VLOOKUP(1,Tablas!$A$73:$G$75,7,TRUE)), (IF(3-$B$19=1,(VLOOKUP(1,Tablas!$A$73:$G$75,7,TRUE)), (IF(3-$B$19=2, (VLOOKUP(2,Tablas!$A$73:$G$75,7,TRUE)), (VLOOKUP(3,Tablas!$A$73:$G$75,7,TRUE)))))))), (IF($B$17=2,(IF(2-$B$19=0, 0, (IF(2-$B$19=1,(VLOOKUP(1,Tablas!$A$73:$G$75,7,TRUE)), (IF(2-$B$19=2, (VLOOKUP(2,Tablas!$A$73:$G$75,7,TRUE)), 0)))))), (IF($B$17=1,(IF(1-$B$19=0, 0, (IF(1-$B$19=1,(VLOOKUP(1,Tablas!$A$73:$G$75,7,TRUE)),0)))),0)))))))))))))), (IF($B$17=0, 0, (IF($B$19>$B$17, (VLOOKUP($B$17,Tablas!$A$73:$G$75,7,TRUE)), (IF($B$17=4,(IF(4-$B$19=0, 0, (IF(4-$B$19=1, (VLOOKUP(1,Tablas!$A$73:$G$75,7,TRUE)), (IF(4-$B$19=2, (VLOOKUP(2,Tablas!$A$73:$G$75,7,TRUE)), (IF(4-$B$19=3, (VLOOKUP(3,Tablas!$A$73:$G$75,7,TRUE)), (IF(4-$B$19=4, (VLOOKUP(3,Tablas!$A$73:$G$75,7,TRUE)), 0)))))))))), (IF($B$17=5,(IF(5-$B$19=0, (VLOOKUP(1,Tablas!$A$73:$G$75,7,TRUE)), (IF(5-$B$19=1, (VLOOKUP(1,Tablas!$A$73:$G$75,7,TRUE)), (IF(5-$B$19=2, (VLOOKUP(2,Tablas!$A$73:$G$75,7,TRUE)), (IF(5-$B$19=3, (VLOOKUP(3,Tablas!$A$73:$G$75,7,TRUE)), (IF(5-$B$19=4, (VLOOKUP(3,Tablas!$A$73:$G$75,7,TRUE)), (VLOOKUP(3,Tablas!$A$73:$G$75,7,TRUE)))))))))))), (IF($B$17=6,(IF(6-$B$19=0, (VLOOKUP(2,Tablas!$A$73:$G$75,7,TRUE)), (IF(6-$B$19=1, (VLOOKUP(2,Tablas!$A$73:$G$75,7,TRUE)), (IF(6-$B$19=2, (VLOOKUP(2,Tablas!$A$73:$G$75,7,TRUE)), (IF(6-$B$19=3, (VLOOKUP(3,Tablas!$A$73:$G$75,7,TRUE)), (IF(6-$B$19=4, (VLOOKUP(3,Tablas!$A$73:$G$75,7,TRUE)), (VLOOKUP(3,Tablas!$A$73:$G$75,7,TRUE)))))))))))), (IF($B$17>6,(IF(7-$B$19=0, (VLOOKUP(3,Tablas!$A$73:$G$75,7,TRUE)), (IF(7-$B$19=1, (VLOOKUP(3,Tablas!$A$73:$G$75,7,TRUE)), (IF(7-$B$19=2, (VLOOKUP(3,Tablas!$A$73:$G$75,7,TRUE)), (IF(7-$B$19=3, (VLOOKUP(3,Tablas!$A$73:$G$75,7,TRUE)), (IF(7-$B$19=4, (VLOOKUP(3,Tablas!$A$73:$G$75,7,TRUE)), (VLOOKUP(3,Tablas!$A$73:$G$75,7,TRUE)))))))))))), (IF($B$17=3,(IF(3-$B$19=0,0, (IF(3-$B$19=1,(VLOOKUP(1,Tablas!$A$73:$G$75,7,TRUE)), (IF(3-$B$19=2, (VLOOKUP(2,Tablas!$A$73:$G$75,7,TRUE)), (VLOOKUP(3,Tablas!$A$73:$G$75,7,TRUE)))))))), (IF($B$17=2,(IF(2-$B$19=0, 0, (IF(2-$B$19=1,(VLOOKUP(1,Tablas!$A$73:$G$75,7,TRUE)), (IF(2-$B$19=2, (VLOOKUP(2,Tablas!$A$73:$G$75,7,TRUE)), 0)))))), (IF($B$17=1,(IF(1-$B$19=0, 0, (IF(1-$B$19=1,(VLOOKUP(1,Tablas!$A$73:$G$75,7,TRUE)),0)))),0))))))))))))))))))) -> 1297.95
A35: Total de Prima neta | C35: =SUM(C32:C34) -> 25495.75 | D35: 18052.3 | E35: 14664.2 | F35: 12716 | G35: 9688.3 | H35: 8011.25
A36: Ajuste por la variante con coaseguro fuera del país de residencia | C36: =IF('INGRESO DE DATOS'!$P$3,C35*-15%,0) -> 0 | D36: =IF('INGRESO DE DATOS'!$P$3,D35*-15%,0) -> 0 | E36: =IF('INGRESO DE DATOS'!$P$3,E35*-15%,0) -> 0 | F36: =IF('INGRESO DE DATOS'!$P$3,F35*-15%,0) -> 0 | G36: =IF('INGRESO DE DATOS'!$P$3,G35*-15%,0) -> 0 | H36: =IF('INGRESO DE DATOS'!$P$3,H35*-15%,0) -> 0
A37: Tarifa administrativa annual | C37: 75 | D37: 75 | E37: 75 | F37: 75 | G37: 75 | H37: 75
A38: VAT (5%) : | C38: =(C35+C36+C37)*5% -> 1278.5375 | D38: 906.365 | E38: 736.96 | F38: 639.55 | G38: 488.165 | H38: 404.3125
A39: ITBMS (7%) | C39: 0 | D39: 0 | E39: 0 | F39: 0 | G39: 0 | H39: 0
A40: TOTAL ANUAL | C40: =SUM(C35:C39) -> 26849.2875 | D40: 19033.665 | E40: 15476.16 | F40: 13430.55 | G40: 10251.465 | H40: 8490.5625
A41: Ahorros en tarifas de prima para Dependientes | C41: =IF($B$15=1,IF($B$17=0,0,IF($B$19=0,0,IF($B$19=1,(VLOOKUP(1,Tablas!$A$73:$G$75,3,TRUE)),(VLOOKUP(2,Tablas!$A$73:$G$75,3,TRUE))))), IF($B$17=0,0,IF($B$19=0,0,IF($B$19=1,(VLOOKUP(1,Tablas!$A$73:$G$75,3,TRUE)),IF($B$19=2,(VLOOKUP(2,Tablas!$A$73:$G$75,3,TRUE)), (VLOOKUP(3,Tablas!$A$73:$G$75,3,TRUE))))))) -> 3292.9 | D41: =IF($B$15=1,IF($B$17=0,0,IF($B$19=0,0,IF($B$19=1,(VLOOKUP(1,Tablas!$A$73:$G$75,4,TRUE)),(VLOOKUP(2,Tablas!$A$73:$G$75,4,TRUE))))), IF($B$17=0,0,IF($B$19=0,0,IF($B$19=1,(VLOOKUP(1,Tablas!$A$73:$G$75,4,TRUE)),IF($B$19=2,(VLOOKUP(2,Tablas!$A$73:$G$75,4,TRUE)), (VLOOKUP(3,Tablas!$A$73:$G$75,4,TRUE))))))) -> 2357.9 | E41: =IF($B$15=1,IF($B$17=0,0,IF($B$19=0,0,IF($B$19=1,(VLOOKUP(1,Tablas!$A$73:$G$75,5,TRUE)),(VLOOKUP(2,Tablas!$A$73:$G$75,5,TRUE))))), IF($B$17=0,0,IF($B$19=0,0,IF($B$19=1,(VLOOKUP(1,Tablas!$A$73:$G$75,5,TRUE)),IF($B$19=2,(VLOOKUP(2,Tablas!$A$73:$G$75,5,TRUE)), (VLOOKUP(3,Tablas!$A$73:$G$75,5,TRUE))))))) -> 1962.65 | F41: =IF($B$15=1,IF($B$17=0,0,IF($B$19=0,0,IF($B$19=1,(VLOOKUP(1,Tablas!$A$73:$G$75,6,TRUE)),(VLOOKUP(2,Tablas!$A$73:$G$75,6,TRUE))))), IF($B$17=0,0,IF($B$19=0,0,IF($B$19=1,(VLOOKUP(1,Tablas!$A$73:$G$75,6,TRUE)),IF($B$19=2,(VLOOKUP(2,Tablas!$A$73:$G$75,6,TRUE)), (VLOOKUP(3,Tablas!$A$73:$G$75,6,TRUE))))))) -> 1701.7 | G41: =IF($B$15=1,IF($B$17=0,0,IF($B$19=0,0,IF($B$19=1,(VLOOKUP(1,Tablas!$A$73:$G$75,7,TRUE)),(VLOOKUP(2,Tablas!$A$73:$G$75,7,TRUE))))), IF($B$17=0,0,IF($B$19=0,0,IF($B$19=1,(VLOOKUP(1,Tablas!$A$73:$G$75,7,TRUE)),IF($B$19=2,(VLOOKUP(2,Tablas!$A$73:$G$75,7,TRUE)), (VLOOKUP(3,Tablas!$A$73:$G$75,7,TRUE))))))) -> 1297.95 | H41: =IF($B$15=1,IF($B$17=0,0,IF($B$19=0,0,IF($B$19=1,(VLOOKUP(1,Tablas!$A$73:$G$75,7,TRUE)),(VLOOKUP(2,Tablas!$A$73:$G$75,7,TRUE))))), IF($B$17=0,0,IF($B$19=0,0,IF($B$19=1,(VLOOKUP(1,Tablas!$A$73:$G$75,7,TRUE)),IF($B$19=2,(VLOOKUP(2,Tablas!$A$73:$G$75,7,TRUE)), (VLOOKUP(3,Tablas!$A$73:$G$75,7,TRUE))))))) -> 1297.95
A43: TARIFAS SEMIANUALES
A44: Prima para Asegurado Titular | C44: =VLOOKUP($B$21,Tablas!$A$458:$G$524,3,TRUE) -> 4954.599 | D44: =VLOOKUP($B$21,Tablas!$A$458:$G$524,4,TRUE) -> 3508.494 | E44: =VLOOKUP($B$21,Tablas!$A$458:$G$524,5,TRUE) -> 2859.774 | F44: =VLOOKUP($B$21,Tablas!$A$458:$G$524,6,TRUE) -> 2479.552 | G44: =VLOOKUP($B$21,Tablas!$A$458:$G$524,7,TRUE) -> 1888.9465 | H44: =VLOOKUP($B$21,Tablas!$A$458:$H$524,8,TRUE) -> 1511.4275
A45: Prima para conyuge | C45: =IF($B$15=1,0,(VLOOKUP($G$21,Tablas!$A$458:$G$524,3,TRUE))) -> 6812.9115 | D45: =IF($B$15=1,0,(VLOOKUP($G$21,Tablas!$A$458:$G$524,4,TRUE))) -> 4809.538 | E45: =IF($B$15=1,0,(VLOOKUP($G$21,Tablas!$A$458:$G$524,5,TRUE))) -> 3872.0475 | F45: =IF($B$15=1,0,(VLOOKUP($G$21,Tablas!$A$458:$G$524,6,TRUE))) -> 3358.027 | G45: =IF($B$15=1,0,(VLOOKUP($G$21,Tablas!$A$458:$G$524,7,TRUE))) -> 2557.939 | H45: =IF($B$15=1,0,(VLOOKUP($G$21,Tablas!$A$458:$H$524,8,TRUE))) -> 2046.6215
A46: Prima para hijo (s) | C46: =IF($B$15=1, (IF($B$17=0, 0, (IF($B$19>$B$17, (VLOOKUP($B$17,Tablas!$A$525:$G$527,3,TRUE)), (IF($B$17>4,(IF($B$19=0, (VLOOKUP(3,Tablas!$A$525:$G$527,3,TRUE)), (IF($B$19=1, (VLOOKUP(3,Tablas!$A$525:$G$527,3,TRUE)), (IF($B$19=2, (VLOOKUP(3,Tablas!$A$525:$G$527,3,TRUE)), (VLOOKUP(3,Tablas!$A$525:$G$527,3,TRUE)))))))), (IF($B$17=4,(IF(4-$B$19=0,(VLOOKUP(2,Tablas!$A$525:$G$527,3,TRUE)), (IF(4-$B$19=1,(VLOOKUP(2,Tablas!$A$525:$G$527,3,TRUE)), (IF(4-$B$19=2, (VLOOKUP(2,Tablas!$A$525:$G$527,3,TRUE)), (VLOOKUP(3,Tablas!$A$525:$G$527,3,TRUE)))))))), (IF($B$17=3,(IF(3-$B$19=0,(VLOOKUP(1,Tablas!$A$525:$G$527,3,TRUE)), (IF(3-$B$19=1,(VLOOKUP(1,Tablas!$A$525:$G$527,3,TRUE)), (IF(3-$B$19=2, (VLOOKUP(2,Tablas!$A$525:$G$527,3,TRUE)), (VLOOKUP(3,Tablas!$A$525:$G$527,3,TRUE)))))))), (IF($B$17=2,(IF(2-$B$19=0, 0, (IF(2-$B$19=1,(VLOOKUP(1,Tablas!$A$525:$G$527,3,TRUE)), (IF(2-$B$19=2, (VLOOKUP(2,Tablas!$A$525:$G$527,3,TRUE)), 0)))))), (IF($B$17=1,(IF(1-$B$19=0, 0, (IF(1-$B$19=1,(VLOOKUP(1,Tablas!$A$525:$G$527,3,TRUE)),0)))),0)))))))))))))), (IF($B$17=0, 0, (IF($B$19>$B$17, (VLOOKUP($B$17,Tablas!$A$525:$G$527,3,TRUE)), (IF($B$17=4,(IF(4-$B$19=0, 0, (IF(4-$B$19=1, (VLOOKUP(1,Tablas!$A$525:$G$527,3,TRUE)), (IF(4-$B$19=2, (VLOOKUP(2,Tablas!$A$525:$G$527,3,TRUE)), (IF(4-$B$19=3, (VLOOKUP(3,Tablas!$A$525:$G$527,3,TRUE)), (IF(4-$B$19=4, (VLOOKUP(3,Tablas!$A$525:$G$527,3,TRUE)), 0)))))))))), (IF($B$17=5,(IF(5-$B$19=0, (VLOOKUP(1,Tablas!$A$525:$G$527,3,TRUE)), (IF(5-$B$19=1, (VLOOKUP(1,Tablas!$A$525:$G$527,3,TRUE)), (IF(5-$B$19=2, (VLOOKUP(2,Tablas!$A$525:$G$527,3,TRUE)), (IF(5-$B$19=3, (VLOOKUP(3,Tablas!$A$525:$G$527,3,TRUE)), (IF(5-$B$19=4, (VLOOKUP(3,Tablas!$A$525:$G$527,3,TRUE)), (VLOOKUP(3,Tablas!$A$525:$G$527,3,TRUE)))))))))))), (IF($B$17=6,(IF(6-$B$19=0, (VLOOKUP(2,Tablas!$A$525:$G$527,3,TRUE)), (IF(6-$B$19=1, (VLOOKUP(2,Tablas!$A$525:$G$527,3,TRUE)), (IF(6-$B$19=2, (VLOOKUP(2,Tablas!$A$525:$G$527,3,TRUE)), (IF(6-$B$19=3, (VLOOKUP(3,Tablas!$A$525:$G$527,3,TRUE)), (IF(6-$B$19=4, (VLOOKUP(3,Tablas!$A$525:$G$527,3,TRUE)), (VLOOKUP(3,Tablas!$A$525:$G$527,3,TRUE)))))))))))), (IF($B$17>6,(IF(7-$B$19=0, (VLOOKUP(3,Tablas!$A$525:$G$527,3,TRUE)), (IF(7-$B$19=1, (VLOOKUP(3,Tablas!$A$525:$G$527,3,TRUE)), (IF(7-$B$19=2, (VLOOKUP(3,Tablas!$A$525:$G$527,3,TRUE)), (IF(7-$B$19=3, (VLOOKUP(3,Tablas!$A$525:$G$527,3,TRUE)), (IF(7-$B$19=4, (VLOOKUP(3,Tablas!$A$525:$G$527,3,TRUE)), (VLOOKUP(3,Tablas!$A$525:$G$527,3,TRUE)))))))))))), (IF($B$17=3,(IF(3-$B$19=0,0, (IF(3-$B$19=1,(VLOOKUP(1,Tablas!$A$525:$G$527,3,TRUE)), (IF(3-$B$19=2, (VLOOKUP(2,Tablas!$A$525:$G$527,3,TRUE)), (VLOOKUP(3,Tablas!$A$525:$G$527,3,TRUE)))))))), (IF($B$17=2,(IF(2-$B$19=0, 0, (IF(2-$B$19=1,(VLOOKUP(1,Tablas!$A$525:$G$527,3,TRUE)), (IF(2-$B$19=2, (VLOOKUP(2,Tablas!$A$525:$G$527,3,TRUE)), 0)))))), (IF($B$17=1,(IF(1-$B$19=0, 0, (IF(1-$B$19=1,(VLOOKUP(1,Tablas!$A$525:$G$527,3,TRUE)),0)))),0))))))))))))))))))) -> 1745.237 | D46: =IF($B$15=1, (IF($B$17=0, 0, (IF($B$19>$B$17, (VLOOKUP($B$17,Tablas!$A$525:$G$527,4,TRUE)), (IF($B$17>4,(IF($B$19=0, (VLOOKUP(3,Tablas!$A$525:$G$527,4,TRUE)), (IF($B$19=1, (VLOOKUP(3,Tablas!$A$525:$G$527,4,TRUE)), (IF($B$19=2, (VLOOKUP(3,Tablas!$A$525:$G$527,4,TRUE)), (VLOOKUP(3,Tablas!$A$525:$G$527,4,TRUE)))))))), (IF($B$17=4,(IF(4-$B$19=0,(VLOOKUP(2,Tablas!$A$525:$G$527,4,TRUE)), (IF(4-$B$19=1,(VLOOKUP(2,Tablas!$A$525:$G$527,4,TRUE)), (IF(4-$B$19=2, (VLOOKUP(2,Tablas!$A$525:$G$527,4,TRUE)), (VLOOKUP(3,Tablas!$A$525:$G$527,4,TRUE)))))))), (IF($B$17=3,(IF(3-$B$19=0,(VLOOKUP(1,Tablas!$A$525:$G$527,4,TRUE)), (IF(3-$B$19=1,(VLOOKUP(1,Tablas!$A$525:$G$527,4,TRUE)), (IF(3-$B$19=2, (VLOOKUP(2,Tablas!$A$525:$G$527,4,TRUE)), (VLOOKUP(3,Tablas!$A$525:$G$527,4,TRUE)))))))), (IF($B$17=2,(IF(2-$B$19=0, 0, (IF(2-$B$19=1,(VLOOKUP(1,Tablas!$A$525:$G$527,4,TRUE)), (IF(2-$B$19=2, (VLOOKUP(2,Tablas!$A$525:$G$527,4,TRUE)), 0)))))), (IF($B$17=1,(IF(1-$B$19=0, 0, (IF(1-$B$19=1,(VLOOKUP(1,Tablas!$A$525:$G$527,4,TRUE)),0)))),0)))))))))))))), (IF($B$17=0, 0, (IF($B$19>$B$17, (VLOOKUP($B$17,Tablas!$A$525:$G$527,4,TRUE)), (IF($B$17=4,(IF(4-$B$19=0, 0, (IF(4-$B$19=1, (VLOOKUP(1,Tablas!$A$525:$G$527,4,TRUE)), (IF(4-$B$19=2, (VLOOKUP(2,Tablas!$A$525:$G$527,4,TRUE)), (IF(4-$B$19=3, (VLOOKUP(3,Tablas!$A$525:$G$527,4,TRUE)), (IF(4-$B$19=4, (VLOOKUP(3,Tablas!$A$525:$G$527,4,TRUE)), 0)))))))))), (IF($B$17=5,(IF(5-$B$19=0, (VLOOKUP(1,Tablas!$A$525:$G$527,4,TRUE)), (IF(5-$B$19=1, (VLOOKUP(1,Tablas!$A$525:$G$527,4,TRUE)), (IF(5-$B$19=2, (VLOOKUP(2,Tablas!$A$525:$G$527,4,TRUE)), (IF(5-$B$19=3, (VLOOKUP(3,Tablas!$A$525:$G$527,4,TRUE)), (IF(5-$B$19=4, (VLOOKUP(3,Tablas!$A$525:$G$527,4,TRUE)), (VLOOKUP(3,Tablas!$A$525:$G$527,4,TRUE)))))))))))), (IF($B$17=6,(IF(6-$B$19=0, (VLOOKUP(2,Tablas!$A$525:$G$527,4,TRUE)), (IF(6-$B$19=1, (VLOOKUP(2,Tablas!$A$525:$G$527,4,TRUE)), (IF(6-$B$19=2, (VLOOKUP(2,Tablas!$A$525:$G$527,4,TRUE)), (IF(6-$B$19=3, (VLOOKUP(3,Tablas!$A$525:$G$527,4,TRUE)), (IF(6-$B$19=4, (VLOOKUP(3,Tablas!$A$525:$G$527,4,TRUE)), (VLOOKUP(3,Tablas!$A$525:$G$527,4,TRUE)))))))))))), (IF($B$17>6,(IF(7-$B$19=0, (VLOOKUP(3,Tablas!$A$525:$G$527,4,TRUE)), (IF(7-$B$19=1, (VLOOKUP(3,Tablas!$A$525:$G$527,4,TRUE)), (IF(7-$B$19=2, (VLOOKUP(3,Tablas!$A$525:$G$527,4,TRUE)), (IF(7-$B$19=3, (VLOOKUP(3,Tablas!$A$525:$G$527,4,TRUE)), (IF(7-$B$19=4, (VLOOKUP(3,Tablas!$A$525:$G$527,4,TRUE)), (VLOOKUP(3,Tablas!$A$525:$G$527,4,TRUE)))))))))))), (IF($B$17=3,(IF(3-$B$19=0,0, (IF(3-$B$19=1,(VLOOKUP(1,Tablas!$A$525:$G$527,4,TRUE)), (IF(3-$B$19=2, (VLOOKUP(2,Tablas!$A$525:$G$527,4,TRUE)), (VLOOKUP(3,Tablas!$A$525:$G$527,4,TRUE)))))))), (IF($B$17=2,(IF(2-$B$19=0, 0, (IF(2-$B$19=1,(VLOOKUP(1,Tablas!$A$525:$G$527,4,TRUE)), (IF(2-$B$19=2, (VLOOKUP(2,Tablas!$A$525:$G$527,4,TRUE)), 0)))))), (IF($B$17=1,(IF(1-$B$19=0, 0, (IF(1-$B$19=1,(VLOOKUP(1,Tablas!$A$525:$G$527,4,TRUE)),0)))),0))))))))))))))))))) -> 1249.687 | E46: =IF($B$15=1, (IF($B$17=0, 0, (IF($B$19>$B$17, (VLOOKUP($B$17,Tablas!$A$525:$G$527,5,TRUE)), (IF($B$17>4,(IF($B$19=0, (VLOOKUP(3,Tablas!$A$525:$G$527,5,TRUE)), (IF($B$19=1, (VLOOKUP(3,Tablas!$A$525:$G$527,5,TRUE)), (IF($B$19=2, (VLOOKUP(3,Tablas!$A$525:$G$527,5,TRUE)), (VLOOKUP(3,Tablas!$A$525:$G$527,5,TRUE)))))))), (IF($B$17=4,(IF(4-$B$19=0,(VLOOKUP(2,Tablas!$A$525:$G$527,5,TRUE)), (IF(4-$B$19=1,(VLOOKUP(2,Tablas!$A$525:$G$527,5,TRUE)), (IF(4-$B$19=2, (VLOOKUP(2,Tablas!$A$525:$G$527,5,TRUE)), (VLOOKUP(3,Tablas!$A$525:$G$527,5,TRUE)))))))), (IF($B$17=3,(IF(3-$B$19=0,(VLOOKUP(1,Tablas!$A$525:$G$527,5,TRUE)), (IF(3-$B$19=1,(VLOOKUP(1,Tablas!$A$525:$G$527,5,TRUE)), (IF(3-$B$19=2, (VLOOKUP(2,Tablas!$A$525:$G$527,5,TRUE)), (VLOOKUP(3,Tablas!$A$525:$G$527,5,TRUE)))))))), (IF($B$17=2,(IF(2-$B$19=0, 0, (IF(2-$B$19=1,(VLOOKUP(1,Tablas!$A$525:$G$527,5,TRUE)), (IF(2-$B$19=2, (VLOOKUP(2,Tablas!$A$525:$G$527,5,TRUE)), 0)))))), (IF($B$17=1,(IF(1-$B$19=0, 0, (IF(1-$B$19=1,(VLOOKUP(1,Tablas!$A$525:$G$527,5,TRUE)),0)))),0)))))))))))))), (IF($B$17=0, 0, (IF($B$19>$B$17, (VLOOKUP($B$17,Tablas!$A$525:$G$527,5,TRUE)), (IF($B$17=4,(IF(4-$B$19=0, 0, (IF(4-$B$19=1, (VLOOKUP(1,Tablas!$A$525:$G$527,5,TRUE)), (IF(4-$B$19=2, (VLOOKUP(2,Tablas!$A$525:$G$527,5,TRUE)), (IF(4-$B$19=3, (VLOOKUP(3,Tablas!$A$525:$G$527,5,TRUE)), (IF(4-$B$19=4, (VLOOKUP(3,Tablas!$A$525:$G$527,5,TRUE)), 0)))))))))), (IF($B$17=5,(IF(5-$B$19=0, (VLOOKUP(1,Tablas!$A$525:$G$527,5,TRUE)), (IF(5-$B$19=1, (VLOOKUP(1,Tablas!$A$525:$G$527,5,TRUE)), (IF(5-$B$19=2, (VLOOKUP(2,Tablas!$A$525:$G$527,5,TRUE)), (IF(5-$B$19=3, (VLOOKUP(3,Tablas!$A$525:$G$527,5,TRUE)), (IF(5-$B$19=4, (VLOOKUP(3,Tablas!$A$525:$G$527,5,TRUE)), (VLOOKUP(3,Tablas!$A$525:$G$527,5,TRUE)))))))))))), (IF($B$17=6,(IF(6-$B$19=0, (VLOOKUP(2,Tablas!$A$525:$G$527,5,TRUE)), (IF(6-$B$19=1, (VLOOKUP(2,Tablas!$A$525:$G$527,5,TRUE)), (IF(6-$B$19=2, (VLOOKUP(2,Tablas!$A$525:$G$527,5,TRUE)), (IF(6-$B$19=3, (VLOOKUP(3,Tablas!$A$525:$G$527,5,TRUE)), (IF(6-$B$19=4, (VLOOKUP(3,Tablas!$A$525:$G$527,5,TRUE)), (VLOOKUP(3,Tablas!$A$525:$G$527,5,TRUE)))))))))))), (IF($B$17>6,(IF(7-$B$19=0, (VLOOKUP(3,Tablas!$A$525:$G$527,5,TRUE)), (IF(7-$B$19=1, (VLOOKUP(3,Tablas!$A$525:$G$527,5,TRUE)), (IF(7-$B$19=2, (VLOOKUP(3,Tablas!$A$525:$G$527,5,TRUE)), (IF(7-$B$19=3, (VLOOKUP(3,Tablas!$A$525:$G$527,5,TRUE)), (IF(7-$B$19=4, (VLOOKUP(3,Tablas!$A$525:$G$527,5,TRUE)), (VLOOKUP(3,Tablas!$A$525:$G$527,5,TRUE)))))))))))), (IF($B$17=3,(IF(3-$B$19=0,0, (IF(3-$B$19=1,(VLOOKUP(1,Tablas!$A$525:$G$527,5,TRUE)), (IF(3-$B$19=2, (VLOOKUP(2,Tablas!$A$525:$G$527,5,TRUE)), (VLOOKUP(3,Tablas!$A$525:$G$527,5,TRUE)))))))), (IF($B$17=2,(IF(2-$B$19=0, 0, (IF(2-$B$19=1,(VLOOKUP(1,Tablas!$A$525:$G$527,5,TRUE)), (IF(2-$B$19=2, (VLOOKUP(2,Tablas!$A$525:$G$527,5,TRUE)), 0)))))), (IF($B$17=1,(IF(1-$B$19=0, 0, (IF(1-$B$19=1,(VLOOKUP(1,Tablas!$A$525:$G$527,5,TRUE)),0)))),0))))))))))))))))))) -> 1040.2045 | F46: =IF($B$15=1, (IF($B$17=0, 0, (IF($B$19>$B$17, (VLOOKUP($B$17,Tablas!$A$525:$G$527,6,TRUE)), (IF($B$17>4,(IF($B$19=0, (VLOOKUP(3,Tablas!$A$525:$G$527,6,TRUE)), (IF($B$19=1, (VLOOKUP(3,Tablas!$A$525:$G$527,6,TRUE)), (IF($B$19=2, (VLOOKUP(3,Tablas!$A$525:$G$527,6,TRUE)), (VLOOKUP(3,Tablas!$A$525:$G$527,7,TRUE)))))))), (IF($B$17=4,(IF(4-$B$19=0,(VLOOKUP(2,Tablas!$A$525:$G$527,6,TRUE)), (IF(4-$B$19=1,(VLOOKUP(2,Tablas!$A$525:$G$527,6,TRUE)), (IF(4-$B$19=2, (VLOOKUP(2,Tablas!$A$525:$G$527,6,TRUE)), (VLOOKUP(3,Tablas!$A$525:$G$527,6,TRUE)))))))), (IF($B$17=3,(IF(3-$B$19=0,(VLOOKUP(1,Tablas!$A$525:$G$527,6,TRUE)), (IF(3-$B$19=1,(VLOOKUP(1,Tablas!$A$525:$G$527,6,TRUE)), (IF(3-$B$19=2, (VLOOKUP(2,Tablas!$A$525:$G$527,6,TRUE)), (VLOOKUP(3,Tablas!$A$525:$G$527,6,TRUE)))))))), (IF($B$17=2,(IF(2-$B$19=0, 0, (IF(2-$B$19=1,(VLOOKUP(1,Tablas!$A$525:$G$527,6,TRUE)), (IF(2-$B$19=2, (VLOOKUP(2,Tablas!$A$525:$G$527,6,TRUE)), 0)))))), (IF($B$17=1,(IF(1-$B$19=0, 0, (IF(1-$B$19=1,(VLOOKUP(1,Tablas!$A$525:$G$527,6,TRUE)),0)))),0)))))))))))))), (IF($B$17=0, 0, (IF($B$19>$B$17, (VLOOKUP($B$17,Tablas!$A$525:$G$527,6,TRUE)), (IF($B$17=4,(IF(4-$B$19=0, 0, (IF(4-$B$19=1, (VLOOKUP(1,Tablas!$A$525:$G$527,6,TRUE)), (IF(4-$B$19=2, (VLOOKUP(2,Tablas!$A$525:$G$527,6,TRUE)), (IF(4-$B$19=3, (VLOOKUP(3,Tablas!$A$525:$G$527,6,TRUE)), (IF(4-$B$19=4, (VLOOKUP(3,Tablas!$A$525:$G$527,6,TRUE)), 0)))))))))), (IF($B$17=5,(IF(5-$B$19=0, (VLOOKUP(1,Tablas!$A$525:$G$527,6,TRUE)), (IF(5-$B$19=1, (VLOOKUP(1,Tablas!$A$525:$G$527,6,TRUE)), (IF(5-$B$19=2, (VLOOKUP(2,Tablas!$A$525:$G$527,6,TRUE)), (IF(5-$B$19=3, (VLOOKUP(3,Tablas!$A$525:$G$527,6,TRUE)), (IF(5-$B$19=4, (VLOOKUP(3,Tablas!$A$525:$G$527,6,TRUE)), (VLOOKUP(3,Tablas!$A$525:$G$527,7,TRUE)))))))))))), (IF($B$17=6,(IF(6-$B$19=0, (VLOOKUP(2,Tablas!$A$525:$G$527,6,TRUE)), (IF(6-$B$19=1, (VLOOKUP(2,Tablas!$A$525:$G$527,6,TRUE)), (IF(6-$B$19=2, (VLOOKUP(2,Tablas!$A$525:$G$527,6,TRUE)), (IF(6-$B$19=3, (VLOOKUP(3,Tablas!$A$525:$G$527,6,TRUE)), (IF(6-$B$19=4, (VLOOKUP(3,Tablas!$A$525:$G$527,6,TRUE)), (VLOOKUP(3,Tablas!$A$525:$G$527,7,TRUE)))))))))))), (IF($B$17>6,(IF(7-$B$19=0, (VLOOKUP(3,Tablas!$A$525:$G$527,6,TRUE)), (IF(7-$B$19=1, (VLOOKUP(3,Tablas!$A$525:$G$527,6,TRUE)), (IF(7-$B$19=2, (VLOOKUP(3,Tablas!$A$525:$G$527,6,TRUE)), (IF(7-$B$19=3, (VLOOKUP(3,Tablas!$A$525:$G$527,6,TRUE)), (IF(7-$B$19=4, (VLOOKUP(3,Tablas!$A$525:$G$527,6,TRUE)), (VLOOKUP(3,Tablas!$A$525:$G$527,6,TRUE)))))))))))), (IF($B$17=3,(IF(3-$B$19=0,0, (IF(3-$B$19=1,(VLOOKUP(1,Tablas!$A$525:$G$527,6,TRUE)), (IF(3-$B$19=2, (VLOOKUP(2,Tablas!$A$525:$G$527,6,TRUE)), (VLOOKUP(3,Tablas!$A$525:$G$527,7,TRUE)))))))), (IF($B$17=2,(IF(2-$B$19=0, 0, (IF(2-$B$19=1,(VLOOKUP(1,Tablas!$A$525:$G$527,6,TRUE)), (IF(2-$B$19=2, (VLOOKUP(2,Tablas!$A$525:$G$527,6,TRUE)), 0)))))), (IF($B$17=1,(IF(1-$B$19=0, 0, (IF(1-$B$19=1,(VLOOKUP(1,Tablas!$A$525:$G$527,6,TRUE)),0)))),0))))))))))))))))))) -> 901.901 | G46: =IF($B$15=1, (IF($B$17=0, 0, (IF($B$19>$B$17, (VLOOKUP($B$17,Tablas!$A$525:$G$527,7,TRUE)), (IF($B$17>4,(IF($B$19=0, (VLOOKUP(3,Tablas!$A$525:$G$527,7,TRUE)), (IF($B$19=1, (VLOOKUP(3,Tablas!$A$525:$G$527,7,TRUE)), (IF($B$19=2, (VLOOKUP(3,Tablas!$A$525:$G$527,7,TRUE)), (VLOOKUP(3,Tablas!$A$525:$G$527,7,TRUE)))))))), (IF($B$17=4,(IF(4-$B$19=0,(VLOOKUP(2,Tablas!$A$525:$G$527,7,TRUE)), (IF(4-$B$19=1,(VLOOKUP(2,Tablas!$A$525:$G$527,7,TRUE)), (IF(4-$B$19=2, (VLOOKUP(2,Tablas!$A$525:$G$527,7,TRUE)), (VLOOKUP(3,Tablas!$A$525:$G$527,7,TRUE)))))))), (IF($B$17=3,(IF(3-$B$19=0,(VLOOKUP(1,Tablas!$A$525:$G$527,7,TRUE)), (IF(3-$B$19=1,(VLOOKUP(1,Tablas!$A$525:$G$527,7,TRUE)), (IF(3-$B$19=2, (VLOOKUP(2,Tablas!$A$525:$G$527,7,TRUE)), (VLOOKUP(3,Tablas!$A$525:$G$527,7,TRUE)))))))), (IF($B$17=2,(IF(2-$B$19=0, 0, (IF(2-$B$19=1,(VLOOKUP(1,Tablas!$A$525:$G$527,7,TRUE)), (IF(2-$B$19=2, (VLOOKUP(2,Tablas!$A$525:$G$527,7,TRUE)), 0)))))), (IF($B$17=1,(IF(1-$B$19=0, 0, (IF(1-$B$19=1,(VLOOKUP(1,Tablas!$A$525:$G$527,7,TRUE)),0)))),0)))))))))))))), (IF($B$17=0, 0, (IF($B$19>$B$17, (VLOOKUP($B$17,Tablas!$A$525:$G$527,7,TRUE)), (IF($B$17=4,(IF(4-$B$19=0, 0, (IF(4-$B$19=1, (VLOOKUP(1,Tablas!$A$525:$G$527,7,TRUE)), (IF(4-$B$19=2, (VLOOKUP(2,Tablas!$A$525:$G$527,7,TRUE)), (IF(4-$B$19=3, (VLOOKUP(3,Tablas!$A$525:$G$527,7,TRUE)), (IF(4-$B$19=4, (VLOOKUP(3,Tablas!$A$525:$G$527,7,TRUE)), 0)))))))))), (IF($B$17=5,(IF(5-$B$19=0, (VLOOKUP(1,Tablas!$A$525:$G$527,7,TRUE)), (IF(5-$B$19=1, (VLOOKUP(1,Tablas!$A$525:$G$527,7,TRUE)), (IF(5-$B$19=2, (VLOOKUP(2,Tablas!$A$525:$G$527,7,TRUE)), (IF(5-$B$19=3, (VLOOKUP(3,Tablas!$A$525:$G$527,7,TRUE)), (IF(5-$B$19=4, (VLOOKUP(3,Tablas!$A$525:$G$527,7,TRUE)), (VLOOKUP(3,Tablas!$A$525:$G$527,7,TRUE)))))))))))), (IF($B$17=6,(IF(6-$B$19=0, (VLOOKUP(2,Tablas!$A$525:$G$527,7,TRUE)), (IF(6-$B$19=1, (VLOOKUP(2,Tablas!$A$525:$G$527,7,TRUE)), (IF(6-$B$19=2, (VLOOKUP(2,Tablas!$A$525:$G$527,7,TRUE)), (IF(6-$B$19=3, (VLOOKUP(3,Tablas!$A$525:$G$527,7,TRUE)), (IF(6-$B$19=4, (VLOOKUP(3,Tablas!$A$525:$G$527,7,TRUE)), (VLOOKUP(3,Tablas!$A$525:$G$527,7,TRUE)))))))))))), (IF($B$17>6,(IF(7-$B$19=0, (VLOOKUP(3,Tablas!$A$525:$G$527,7,TRUE)), (IF(7-$B$19=1, (VLOOKUP(3,Tablas!$A$525:$G$527,7,TRUE)), (IF(7-$B$19=2, (VLOOKUP(3,Tablas!$A$525:$G$527,7,TRUE)), (IF(7-$B$19=3, (VLOOKUP(3,Tablas!$A$525:$G$527,7,TRUE)), (IF(7-$B$19=4, (VLOOKUP(3,Tablas!$A$525:$G$527,7,TRUE)), (VLOOKUP(3,Tablas!$A$525:$G$527,7,TRUE)))))))))))), (IF($B$17=3,(IF(3-$B$19=0,0, (IF(3-$B$19=1,(VLOOKUP(1,Tablas!$A$525:$G$527,7,TRUE)), (IF(3-$B$19=2, (VLOOKUP(2,Tablas!$A$525:$G$527,7,TRUE)), (VLOOKUP(3,Tablas!$A$525:$G$527,7,TRUE)))))))), (IF($B$17=2,(IF(2-$B$19=0, 0, (IF(2-$B$19=1,(VLOOKUP(1,Tablas!$A$525:$G$527,7,TRUE)), (IF(2-$B$19=2, (VLOOKUP(2,Tablas!$A$525:$G$527,7,TRUE)), 0)))))), (IF($B$17=1,(IF(1-$B$19=0, 0, (IF(1-$B$19=1,(VLOOKUP(1,Tablas!$A$525:$G$527,7,TRUE)),0)))),0))))))))))))))))))) -> 687.9135 | H46: =IF($B$15=1, (IF($B$17=0, 0, (IF($B$19>$B$17, (VLOOKUP($B$17,Tablas!$A$525:$H$527,8,TRUE)), (IF($B$17>4,(IF($B$19=0, (VLOOKUP(3,Tablas!$A$525:$G$527,7,TRUE)), (IF($B$19=1, (VLOOKUP(3,Tablas!$A$525:$G$527,7,TRUE)), (IF($B$19=2, (VLOOKUP(3,Tablas!$A$525:$G$527,7,TRUE)), (VLOOKUP(3,Tablas!$A$525:$G$527,7,TRUE)))))))), (IF($B$17=4,(IF(4-$B$19=0,(VLOOKUP(2,Tablas!$A$525:$G$527,7,TRUE)), (IF(4-$B$19=1,(VLOOKUP(2,Tablas!$A$525:$G$527,7,TRUE)), (IF(4-$B$19=2, (VLOOKUP(2,Tablas!$A$525:$G$527,7,TRUE)), (VLOOKUP(3,Tablas!$A$525:$G$527,7,TRUE)))))))), (IF($B$17=3,(IF(3-$B$19=0,(VLOOKUP(1,Tablas!$A$525:$G$527,7,TRUE)), (IF(3-$B$19=1,(VLOOKUP(1,Tablas!$A$525:$G$527,7,TRUE)), (IF(3-$B$19=2, (VLOOKUP(2,Tablas!$A$525:$G$527,7,TRUE)), (VLOOKUP(3,Tablas!$A$525:$G$527,7,TRUE)))))))), (IF($B$17=2,(IF(2-$B$19=0, 0, (IF(2-$B$19=1,(VLOOKUP(1,Tablas!$A$525:$G$527,7,TRUE)), (IF(2-$B$19=2, (VLOOKUP(2,Tablas!$A$525:$G$527,7,TRUE)), 0)))))), (IF($B$17=1,(IF(1-$B$19=0, 0, (IF(1-$B$19=1,(VLOOKUP(1,Tablas!$A$525:$G$527,7,TRUE)),0)))),0)))))))))))))), (IF($B$17=0, 0, (IF($B$19>$B$17, (VLOOKUP($B$17,Tablas!$A$525:$G$527,7,TRUE)), (IF($B$17=4,(IF(4-$B$19=0, 0, (IF(4-$B$19=1, (VLOOKUP(1,Tablas!$A$525:$G$527,7,TRUE)), (IF(4-$B$19=2, (VLOOKUP(2,Tablas!$A$525:$G$527,7,TRUE)), (IF(4-$B$19=3, (VLOOKUP(3,Tablas!$A$525:$G$527,7,TRUE)), (IF(4-$B$19=4, (VLOOKUP(3,Tablas!$A$525:$G$527,7,TRUE)), 0)))))))))), (IF($B$17=5,(IF(5-$B$19=0, (VLOOKUP(1,Tablas!$A$525:$G$527,7,TRUE)), (IF(5-$B$19=1, (VLOOKUP(1,Tablas!$A$525:$G$527,7,TRUE)), (IF(5-$B$19=2, (VLOOKUP(2,Tablas!$A$525:$G$527,7,TRUE)), (IF(5-$B$19=3, (VLOOKUP(3,Tablas!$A$525:$G$527,7,TRUE)), (IF(5-$B$19=4, (VLOOKUP(3,Tablas!$A$525:$G$527,7,TRUE)), (VLOOKUP(3,Tablas!$A$525:$G$527,7,TRUE)))))))))))), (IF($B$17=6,(IF(6-$B$19=0, (VLOOKUP(2,Tablas!$A$525:$G$527,7,TRUE)), (IF(6-$B$19=1, (VLOOKUP(2,Tablas!$A$525:$G$527,7,TRUE)), (IF(6-$B$19=2, (VLOOKUP(2,Tablas!$A$525:$G$527,7,TRUE)), (IF(6-$B$19=3, (VLOOKUP(3,Tablas!$A$525:$G$527,7,TRUE)), (IF(6-$B$19=4, (VLOOKUP(3,Tablas!$A$525:$G$527,7,TRUE)), (VLOOKUP(3,Tablas!$A$525:$G$527,7,TRUE)))))))))))), (IF($B$17>6,(IF(7-$B$19=0, (VLOOKUP(3,Tablas!$A$525:$G$527,7,TRUE)), (IF(7-$B$19=1, (VLOOKUP(3,Tablas!$A$525:$G$527,7,TRUE)), (IF(7-$B$19=2, (VLOOKUP(3,Tablas!$A$525:$G$527,7,TRUE)), (IF(7-$B$19=3, (VLOOKUP(3,Tablas!$A$525:$G$527,7,TRUE)), (IF(7-$B$19=4, (VLOOKUP(3,Tablas!$A$525:$G$527,7,TRUE)), (VLOOKUP(3,Tablas!$A$525:$G$527,7,TRUE)))))))))))), (IF($B$17=3,(IF(3-$B$19=0,0, (IF(3-$B$19=1,(VLOOKUP(1,Tablas!$A$525:$G$527,7,TRUE)), (IF(3-$B$19=2, (VLOOKUP(2,Tablas!$A$525:$G$527,7,TRUE)), (VLOOKUP(3,Tablas!$A$525:$G$527,7,TRUE)))))))), (IF($B$17=2,(IF(2-$B$19=0, 0, (IF(2-$B$19=1,(VLOOKUP(1,Tablas!$A$525:$G$527,7,TRUE)), (IF(2-$B$19=2, (VLOOKUP(2,Tablas!$A$525:$G$527,7,TRUE)), 0)))))), (IF($B$17=1,(IF(1-$B$19=0, 0, (IF(1-$B$19=1,(VLOOKUP(1,Tablas!$A$525:$G$527,7,TRUE)),0)))),0))))))))))))))))))) -> 687.9135
A47: Total de Prima neta | C47: =SUM(C44:C46) -> 13512.7475 | D47: 9567.719 | E47: 7772.026 | F47: 6739.48 | G47: 5134.799 | H47: 4245.9625
A48: Ajuste por la variante con coaseguro fuera del país de residencia | C48: =IF('INGRESO DE DATOS'!$P$3,C47*-15%,0) -> 0 | D48: =IF('INGRESO DE DATOS'!$P$3,D47*-15%,0) -> 0 | E48: =IF('INGRESO DE DATOS'!$P$3,E47*-15%,0) -> 0 | F48: =IF('INGRESO DE DATOS'!$P$3,F47*-15%,0) -> 0 | G48: =IF('INGRESO DE DATOS'!$P$3,G47*-15%,0) -> 0 | H48: =IF('INGRESO DE DATOS'!$P$3,H47*-15%,0) -> 0
A49: Tarifa administrativa anual | C49: 75 | D49: 75 | E49: 75 | F49: 75 | G49: 75 | H49: 76
A50: VAT (5%) : | C50: =(C47+C48+C49)*5% -> 679.387375 | D50: 482.13595 | E50: 392.3513 | F50: 340.724 | G50: 260.48995 | H50: 216.098125
A51: ITBMS (7%) | C51: 0 | D51: 0 | E51: 0 | F51: 0 | G51: 0 | H51: 0
A52: TOTAL de primera cuota | C52: =SUM(C47:C51) -> 14267.13488 | D52: 10124.85495 | E52: 8239.3773 | F52: 7155.204 | G52: 5470.28895 | H52: 4538.060625
A53: Costo de segunda cuota | C53: =(C47+C48)*1.05 -> 14188.38488 | D53: 10046.10495 | E53: 8160.6273 | F53: 7076.454 | G53: 5391.53895 | H53: 4458.260625
A54: TOTAL ANUAL | C54: =C52+C53 -> 28455.51975 | D54: 20170.9599 | E54: 16400.0046 | F54: 14231.658 | G54: 10861.8279 | H54: 8996.32125
A55: Ahorros en tarifas de prima para Dependientes | C55: =IF($B$15=1,IF($B$17=0,0,IF($B$19=0,0,IF($B$19=1,(VLOOKUP(1,Tablas!$A$525:$G$527,3,TRUE)),(VLOOKUP(2,Tablas!$A$525:$G$527,3,TRUE))))), IF($B$17=0,0,IF($B$19=0,0,IF($B$19=1,(VLOOKUP(1,Tablas!$A$525:$G$527,3,TRUE)),IF($B$19=2,(VLOOKUP(2,Tablas!$A$525:$G$527,3,TRUE)), (VLOOKUP(3,Tablas!$A$525:$G$527,3,TRUE))))))) -> 1745.237 | D55: =IF($B$15=1,IF($B$17=0,0,IF($B$19=0,0,IF($B$19=1,(VLOOKUP(1,Tablas!$A$525:$G$527,4,TRUE)),(VLOOKUP(2,Tablas!$A$525:$G$527,4,TRUE))))), IF($B$17=0,0,IF($B$19=0,0,IF($B$19=1,(VLOOKUP(1,Tablas!$A$525:$G$527,4,TRUE)),IF($B$19=2,(VLOOKUP(2,Tablas!$A$525:$G$527,4,TRUE)), (VLOOKUP(3,Tablas!$A$525:$G$527,4,TRUE))))))) -> 1249.687 | E55: =IF($B$15=1,IF($B$17=0,0,IF($B$19=0,0,IF($B$19=1,(VLOOKUP(1,Tablas!$A$525:$G$527,5,TRUE)),(VLOOKUP(2,Tablas!$A$525:$G$527,5,TRUE))))), IF($B$17=0,0,IF($B$19=0,0,IF($B$19=1,(VLOOKUP(1,Tablas!$A$525:$G$527,5,TRUE)),IF($B$19=2,(VLOOKUP(2,Tablas!$A$525:$G$527,5,TRUE)), (VLOOKUP(3,Tablas!$A$525:$G$527,5,TRUE))))))) -> 1040.2045 | F55: =IF($B$15=1,IF($B$17=0,0,IF($B$19=0,0,IF($B$19=1,(VLOOKUP(1,Tablas!$A$525:$G$527,7,TRUE)),(VLOOKUP(2,Tablas!$A$525:$G$527,7,TRUE))))), IF($B$17=0,0,IF($B$19=0,0,IF($B$19=1,(VLOOKUP(1,Tablas!$A$525:$G$527,7,TRUE)),IF($B$19=2,(VLOOKUP(2,Tablas!$A$525:$G$527,7,TRUE)), (VLOOKUP(3,Tablas!$A$525:$G$527,7,TRUE))))))) -> 687.9135 | G55: =IF($B$15=1,IF($B$17=0,0,IF($B$19=0,0,IF($B$19=1,(VLOOKUP(1,Tablas!$A$525:$G$527,7,TRUE)),(VLOOKUP(2,Tablas!$A$525:$G$527,7,TRUE))))), IF($B$17=0,0,IF($B$19=0,0,IF($B$19=1,(VLOOKUP(1,Tablas!$A$525:$G$527,7,TRUE)),IF($B$19=2,(VLOOKUP(2,Tablas!$A$525:$G$527,7,TRUE)), (VLOOKUP(3,Tablas!$A$525:$G$527,7,TRUE))))))) -> 687.9135 | H55: =IF($B$15=1,IF($B$17=0,0,IF($B$19=0,0,IF($B$19=1,(VLOOKUP(1,Tablas!$A$525:$G$527,7,TRUE)),(VLOOKUP(2,Tablas!$A$525:$G$527,7,TRUE))))), IF($B$17=0,0,IF($B$19=0,0,IF($B$19=1,(VLOOKUP(1,Tablas!$A$525:$G$527,7,TRUE)),IF($B$19=2,(VLOOKUP(2,Tablas!$A$525:$G$527,7,TRUE)), (VLOOKUP(3,Tablas!$A$525:$G$527,7,TRUE))))))) -> 687.9135
A57: TARIFAS TRIMESTRALES
A58: Prima para Asegurado Titular | C58: =VLOOKUP($B$21,Tablas!$A$685:$G$751,3,TRUE) -> 2570.7825 | D58: =VLOOKUP($B$21,Tablas!$A$685:$G$751,4,TRUE) -> 1820.445 | E58: =VLOOKUP($B$21,Tablas!$A$685:$G$751,5,TRUE) -> 1483.845 | F58: =VLOOKUP($B$21,Tablas!$A$685:$G$751,6,TRUE) -> 1286.56 | G58: =VLOOKUP($B$21,Tablas!$A$685:$G$751,7,TRUE) -> 980.11375 | H58: =VLOOKUP($B$21,Tablas!$A$685:$H$751,8,TRUE) -> 784.23125
A59: Prima para conyuge | C59: =IF($B$15=1,0,(VLOOKUP($G$21,Tablas!$A$685:$G$751,3,TRUE))) -> 3535.00125 | D59: =IF($B$15=1,0,(VLOOKUP($G$21,Tablas!$A$685:$G$751,4,TRUE))) -> 2495.515 | E59: =IF($B$15=1,0,(VLOOKUP($G$21,Tablas!$A$685:$G$751,5,TRUE))) -> 2009.08125 | F59: =IF($B$15=1,0,(VLOOKUP($G$21,Tablas!$A$685:$G$751,6,TRUE))) -> 1742.3725 | G59: =IF($B$15=1,0,(VLOOKUP($G$21,Tablas!$A$685:$G$751,7,TRUE))) -> 1327.2325 | H59: =IF($B$15=1,0,(VLOOKUP($G$21,Tablas!$A$685:$H$751,8,TRUE))) -> 1061.92625
A60: Prima para hijo (s) | C60: =IF($B$15=1, (IF($B$17=0, 0, (IF($B$19>$B$17, (VLOOKUP($B$17,Tablas!$A$752:$G$754,3,TRUE)), (IF($B$17>4,(IF($B$19=0, (VLOOKUP(3,Tablas!$A$752:$G$754,3,TRUE)), (IF($B$19=1, (VLOOKUP(3,Tablas!$A$752:$G$754,3,TRUE)), (IF($B$19=2, (VLOOKUP(3,Tablas!$A$752:$G$754,3,TRUE)), (VLOOKUP(3,Tablas!$A$752:$G$754,3,TRUE)))))))), (IF($B$17=4,(IF(4-$B$19=0,(VLOOKUP(2,Tablas!$A$752:$G$754,3,TRUE)), (IF(4-$B$19=1,(VLOOKUP(2,Tablas!$A$752:$G$754,3,TRUE)), (IF(4-$B$19=2, (VLOOKUP(2,Tablas!$A$752:$G$754,3,TRUE)), (VLOOKUP(3,Tablas!$A$752:$G$754,3,TRUE)))))))), (IF($B$17=3,(IF(3-$B$19=0,(VLOOKUP(1,Tablas!$A$752:$G$754,3,TRUE)), (IF(3-$B$19=1,(VLOOKUP(1,Tablas!$A$752:$G$754,3,TRUE)), (IF(3-$B$19=2, (VLOOKUP(2,Tablas!$A$752:$G$754,3,TRUE)), (VLOOKUP(3,Tablas!$A$752:$G$754,3,TRUE)))))))), (IF($B$17=2,(IF(2-$B$19=0, 0, (IF(2-$B$19=1,(VLOOKUP(1,Tablas!$A$752:$G$754,3,TRUE)), (IF(2-$B$19=2, (VLOOKUP(2,Tablas!$A$752:$G$754,3,TRUE)), 0)))))), (IF($B$17=1,(IF(1-$B$19=0, 0, (IF(1-$B$19=1,(VLOOKUP(1,Tablas!$A$752:$G$754,3,TRUE)),0)))),0)))))))))))))), (IF($B$17=0, 0, (IF($B$19>$B$17, (VLOOKUP($B$17,Tablas!$A$752:$G$754,3,TRUE)), (IF($B$17=4,(IF(4-$B$19=0, 0, (IF(4-$B$19=1, (VLOOKUP(1,Tablas!$A$752:$G$754,3,TRUE)), (IF(4-$B$19=2, (VLOOKUP(2,Tablas!$A$752:$G$754,3,TRUE)), (IF(4-$B$19=3, (VLOOKUP(3,Tablas!$A$752:$G$754,3,TRUE)), (IF(4-$B$19=4, (VLOOKUP(3,Tablas!$A$752:$G$754,3,TRUE)), 0)))))))))), (IF($B$17=5,(IF(5-$B$19=0, (VLOOKUP(1,Tablas!$A$752:$G$754,3,TRUE)), (IF(5-$B$19=1, (VLOOKUP(1,Tablas!$A$752:$G$754,3,TRUE)), (IF(5-$B$19=2, (VLOOKUP(2,Tablas!$A$752:$G$754,3,TRUE)), (IF(5-$B$19=3, (VLOOKUP(3,Tablas!$A$752:$G$754,3,TRUE)), (IF(5-$B$19=4, (VLOOKUP(3,Tablas!$A$752:$G$754,3,TRUE)), (VLOOKUP(3,Tablas!$A$752:$G$754,3,TRUE)))))))))))), (IF($B$17=6,(IF(6-$B$19=0, (VLOOKUP(2,Tablas!$A$752:$G$754,3,TRUE)), (IF(6-$B$19=1, (VLOOKUP(2,Tablas!$A$752:$G$754,3,TRUE)), (IF(6-$B$19=2, (VLOOKUP(2,Tablas!$A$752:$G$754,3,TRUE)), (IF(6-$B$19=3, (VLOOKUP(3,Tablas!$A$752:$G$754,3,TRUE)), (IF(6-$B$19=4, (VLOOKUP(3,Tablas!$A$752:$G$754,3,TRUE)), (VLOOKUP(3,Tablas!$A$752:$G$754,3,TRUE)))))))))))), (IF($B$17>6,(IF(7-$B$19=0, (VLOOKUP(3,Tablas!$A$752:$G$754,3,TRUE)), (IF(7-$B$19=1, (VLOOKUP(3,Tablas!$A$752:$G$754,3,TRUE)), (IF(7-$B$19=2, (VLOOKUP(3,Tablas!$A$752:$G$754,3,TRUE)), (IF(7-$B$19=3, (VLOOKUP(3,Tablas!$A$752:$G$754,3,TRUE)), (IF(7-$B$19=4, (VLOOKUP(3,Tablas!$A$752:$G$754,3,TRUE)), (VLOOKUP(3,Tablas!$A$752:$G$754,3,TRUE)))))))))))), (IF($B$17=3,(IF(3-$B$19=0,0, (IF(3-$B$19=1,(VLOOKUP(1,Tablas!$A$752:$G$754,3,TRUE)), (IF(3-$B$19=2, (VLOOKUP(2,Tablas!$A$752:$G$754,3,TRUE)), (VLOOKUP(3,Tablas!$A$752:$G$754,3,TRUE)))))))), (IF($B$17=2,(IF(2-$B$19=0, 0, (IF(2-$B$19=1,(VLOOKUP(1,Tablas!$A$752:$G$754,3,TRUE)), (IF(2-$B$19=2, (VLOOKUP(2,Tablas!$A$752:$G$754,3,TRUE)), 0)))))), (IF($B$17=1,(IF(1-$B$19=0, 0, (IF(1-$B$19=1,(VLOOKUP(1,Tablas!$A$752:$G$754,3,TRUE)),0)))),0))))))))))))))))))) -> 905.5475 | D60: =IF($B$15=1, (IF($B$17=0, 0, (IF($B$19>$B$17, (VLOOKUP($B$17,Tablas!$A$752:$G$754,4,TRUE)), (IF($B$17>4,(IF($B$19=0, (VLOOKUP(3,Tablas!$A$752:$G$754,4,TRUE)), (IF($B$19=1, (VLOOKUP(3,Tablas!$A$752:$G$754,4,TRUE)), (IF($B$19=2, (VLOOKUP(3,Tablas!$A$752:$G$754,4,TRUE)), (VLOOKUP(3,Tablas!$A$752:$G$754,4,TRUE)))))))), (IF($B$17=4,(IF(4-$B$19=0,(VLOOKUP(2,Tablas!$A$752:$G$754,4,TRUE)), (IF(4-$B$19=1,(VLOOKUP(2,Tablas!$A$752:$G$754,4,TRUE)), (IF(4-$B$19=2, (VLOOKUP(2,Tablas!$A$752:$G$754,4,TRUE)), (VLOOKUP(3,Tablas!$A$752:$G$754,4,TRUE)))))))), (IF($B$17=3,(IF(3-$B$19=0,(VLOOKUP(1,Tablas!$A$752:$G$754,4,TRUE)), (IF(3-$B$19=1,(VLOOKUP(1,Tablas!$A$752:$G$754,4,TRUE)), (IF(3-$B$19=2, (VLOOKUP(2,Tablas!$A$752:$G$754,4,TRUE)), (VLOOKUP(3,Tablas!$A$752:$G$754,4,TRUE)))))))), (IF($B$17=2,(IF(2-$B$19=0, 0, (IF(2-$B$19=1,(VLOOKUP(1,Tablas!$A$752:$G$754,4,TRUE)), (IF(2-$B$19=2, (VLOOKUP(2,Tablas!$A$752:$G$754,4,TRUE)), 0)))))), (IF($B$17=1,(IF(1-$B$19=0, 0, (IF(1-$B$19=1,(VLOOKUP(1,Tablas!$A$752:$G$754,4,TRUE)),0)))),0)))))))))))))), (IF($B$17=0, 0, (IF($B$19>$B$17, (VLOOKUP($B$17,Tablas!$A$752:$G$754,4,TRUE)), (IF($B$17=4,(IF(4-$B$19=0, 0, (IF(4-$B$19=1, (VLOOKUP(1,Tablas!$A$752:$G$754,4,TRUE)), (IF(4-$B$19=2, (VLOOKUP(2,Tablas!$A$752:$G$754,4,TRUE)), (IF(4-$B$19=3, (VLOOKUP(3,Tablas!$A$752:$G$754,4,TRUE)), (IF(4-$B$19=4, (VLOOKUP(3,Tablas!$A$752:$G$754,4,TRUE)), 0)))))))))), (IF($B$17=5,(IF(5-$B$19=0, (VLOOKUP(1,Tablas!$A$752:$G$754,4,TRUE)), (IF(5-$B$19=1, (VLOOKUP(1,Tablas!$A$752:$G$754,4,TRUE)), (IF(5-$B$19=2, (VLOOKUP(2,Tablas!$A$752:$G$754,4,TRUE)), (IF(5-$B$19=3, (VLOOKUP(3,Tablas!$A$752:$G$754,4,TRUE)), (IF(5-$B$19=4, (VLOOKUP(3,Tablas!$A$752:$G$754,4,TRUE)), (VLOOKUP(3,Tablas!$A$752:$G$754,4,TRUE)))))))))))), (IF($B$17=6,(IF(6-$B$19=0, (VLOOKUP(2,Tablas!$A$752:$G$754,4,TRUE)), (IF(6-$B$19=1, (VLOOKUP(2,Tablas!$A$752:$G$754,4,TRUE)), (IF(6-$B$19=2, (VLOOKUP(2,Tablas!$A$752:$G$754,4,TRUE)), (IF(6-$B$19=3, (VLOOKUP(3,Tablas!$A$752:$G$754,4,TRUE)), (IF(6-$B$19=4, (VLOOKUP(3,Tablas!$A$752:$G$754,4,TRUE)), (VLOOKUP(3,Tablas!$A$752:$G$754,4,TRUE)))))))))))), (IF($B$17>6,(IF(7-$B$19=0, (VLOOKUP(3,Tablas!$A$752:$G$754,4,TRUE)), (IF(7-$B$19=1, (VLOOKUP(3,Tablas!$A$752:$G$754,4,TRUE)), (IF(7-$B$19=2, (VLOOKUP(3,Tablas!$A$752:$G$754,4,TRUE)), (IF(7-$B$19=3, (VLOOKUP(3,Tablas!$A$752:$G$754,4,TRUE)), (IF(7-$B$19=4, (VLOOKUP(3,Tablas!$A$752:$G$754,4,TRUE)), (VLOOKUP(3,Tablas!$A$752:$G$754,4,TRUE)))))))))))), (IF($B$17=3,(IF(3-$B$19=0,0, (IF(3-$B$19=1,(VLOOKUP(1,Tablas!$A$752:$G$754,4,TRUE)), (IF(3-$B$19=2, (VLOOKUP(2,Tablas!$A$752:$G$754,4,TRUE)), (VLOOKUP(3,Tablas!$A$752:$G$754,4,TRUE)))))))), (IF($B$17=2,(IF(2-$B$19=0, 0, (IF(2-$B$19=1,(VLOOKUP(1,Tablas!$A$752:$G$754,4,TRUE)), (IF(2-$B$19=2, (VLOOKUP(2,Tablas!$A$752:$G$754,4,TRUE)), 0)))))), (IF($B$17=1,(IF(1-$B$19=0, 0, (IF(1-$B$19=1,(VLOOKUP(1,Tablas!$A$752:$G$754,4,TRUE)),0)))),0))))))))))))))))))) -> 648.4225 | E60: =IF($B$15=1, (IF($B$17=0, 0, (IF($B$19>$B$17, (VLOOKUP($B$17,Tablas!$A$752:$G$754,5,TRUE)), (IF($B$17>4,(IF($B$19=0, (VLOOKUP(3,Tablas!$A$752:$G$754,5,TRUE)), (IF($B$19=1, (VLOOKUP(3,Tablas!$A$752:$G$754,5,TRUE)), (IF($B$19=2, (VLOOKUP(3,Tablas!$A$752:$G$754,5,TRUE)), (VLOOKUP(3,Tablas!$A$752:$G$754,5,TRUE)))))))), (IF($B$17=4,(IF(4-$B$19=0,(VLOOKUP(2,Tablas!$A$752:$G$754,5,TRUE)), (IF(4-$B$19=1,(VLOOKUP(2,Tablas!$A$752:$G$754,5,TRUE)), (IF(4-$B$19=2, (VLOOKUP(2,Tablas!$A$752:$G$754,5,TRUE)), (VLOOKUP(3,Tablas!$A$752:$G$754,5,TRUE)))))))), (IF($B$17=3,(IF(3-$B$19=0,(VLOOKUP(1,Tablas!$A$752:$G$754,5,TRUE)), (IF(3-$B$19=1,(VLOOKUP(1,Tablas!$A$752:$G$754,5,TRUE)), (IF(3-$B$19=2, (VLOOKUP(2,Tablas!$A$752:$G$754,5,TRUE)), (VLOOKUP(3,Tablas!$A$752:$G$754,5,TRUE)))))))), (IF($B$17=2,(IF(2-$B$19=0, 0, (IF(2-$B$19=1,(VLOOKUP(1,Tablas!$A$752:$G$754,5,TRUE)), (IF(2-$B$19=2, (VLOOKUP(2,Tablas!$A$752:$G$754,5,TRUE)), 0)))))), (IF($B$17=1,(IF(1-$B$19=0, 0, (IF(1-$B$19=1,(VLOOKUP(1,Tablas!$A$752:$G$754,5,TRUE)),0)))),0)))))))))))))), (IF($B$17=0, 0, (IF($B$19>$B$17, (VLOOKUP($B$17,Tablas!$A$752:$G$754,5,TRUE)), (IF($B$17=4,(IF(4-$B$19=0, 0, (IF(4-$B$19=1, (VLOOKUP(1,Tablas!$A$752:$G$754,5,TRUE)), (IF(4-$B$19=2, (VLOOKUP(2,Tablas!$A$752:$G$754,5,TRUE)), (IF(4-$B$19=3, (VLOOKUP(3,Tablas!$A$752:$G$754,5,TRUE)), (IF(4-$B$19=4, (VLOOKUP(3,Tablas!$A$752:$G$754,5,TRUE)), 0)))))))))), (IF($B$17=5,(IF(5-$B$19=0, (VLOOKUP(1,Tablas!$A$752:$G$754,5,TRUE)), (IF(5-$B$19=1, (VLOOKUP(1,Tablas!$A$752:$G$754,5,TRUE)), (IF(5-$B$19=2, (VLOOKUP(2,Tablas!$A$752:$G$754,5,TRUE)), (IF(5-$B$19=3, (VLOOKUP(3,Tablas!$A$752:$G$754,5,TRUE)), (IF(5-$B$19=4, (VLOOKUP(3,Tablas!$A$752:$G$754,5,TRUE)), (VLOOKUP(3,Tablas!$A$752:$G$754,5,TRUE)))))))))))), (IF($B$17=6,(IF(6-$B$19=0, (VLOOKUP(2,Tablas!$A$752:$G$754,5,TRUE)), (IF(6-$B$19=1, (VLOOKUP(2,Tablas!$A$752:$G$754,5,TRUE)), (IF(6-$B$19=2, (VLOOKUP(2,Tablas!$A$752:$G$754,5,TRUE)), (IF(6-$B$19=3, (VLOOKUP(3,Tablas!$A$752:$G$754,5,TRUE)), (IF(6-$B$19=4, (VLOOKUP(3,Tablas!$A$752:$G$754,5,TRUE)), (VLOOKUP(3,Tablas!$A$752:$G$754,5,TRUE)))))))))))), (IF($B$17>6,(IF(7-$B$19=0, (VLOOKUP(3,Tablas!$A$752:$G$754,5,TRUE)), (IF(7-$B$19=1, (VLOOKUP(3,Tablas!$A$752:$G$754,5,TRUE)), (IF(7-$B$19=2, (VLOOKUP(3,Tablas!$A$752:$G$754,5,TRUE)), (IF(7-$B$19=3, (VLOOKUP(3,Tablas!$A$752:$G$754,5,TRUE)), (IF(7-$B$19=4, (VLOOKUP(3,Tablas!$A$752:$G$754,5,TRUE)), (VLOOKUP(3,Tablas!$A$752:$G$754,5,TRUE)))))))))))), (IF($B$17=3,(IF(3-$B$19=0,0, (IF(3-$B$19=1,(VLOOKUP(1,Tablas!$A$752:$G$754,5,TRUE)), (IF(3-$B$19=2, (VLOOKUP(2,Tablas!$A$752:$G$754,5,TRUE)), (VLOOKUP(3,Tablas!$A$752:$G$754,5,TRUE)))))))), (IF($B$17=2,(IF(2-$B$19=0, 0, (IF(2-$B$19=1,(VLOOKUP(1,Tablas!$A$752:$G$754,5,TRUE)), (IF(2-$B$19=2, (VLOOKUP(2,Tablas!$A$752:$G$754,5,TRUE)), 0)))))), (IF($B$17=1,(IF(1-$B$19=0, 0, (IF(1-$B$19=1,(VLOOKUP(1,Tablas!$A$752:$G$754,5,TRUE)),0)))),0))))))))))))))))))) -> 539.72875 | F60: =IF($B$15=1, (IF($B$17=0, 0, (IF($B$19>$B$17, (VLOOKUP($B$17,Tablas!$A$752:$G$754,6,TRUE)), (IF($B$17>4,(IF($B$19=0, (VLOOKUP(3,Tablas!$A$752:$G$754,6,TRUE)), (IF($B$19=1, (VLOOKUP(3,Tablas!$A$752:$G$754,6,TRUE)), (IF($B$19=2, (VLOOKUP(3,Tablas!$A$752:$G$754,6,TRUE)), (VLOOKUP(3,Tablas!$A$752:$G$754,6,TRUE)))))))), (IF($B$17=4,(IF(4-$B$19=0,(VLOOKUP(2,Tablas!$A$752:$G$754,6,TRUE)), (IF(4-$B$19=1,(VLOOKUP(2,Tablas!$A$752:$G$754,6,TRUE)), (IF(4-$B$19=2, (VLOOKUP(2,Tablas!$A$752:$G$754,6,TRUE)), (VLOOKUP(3,Tablas!$A$752:$G$754,6,TRUE)))))))), (IF($B$17=3,(IF(3-$B$19=0,(VLOOKUP(1,Tablas!$A$752:$G$754,6,TRUE)), (IF(3-$B$19=1,(VLOOKUP(1,Tablas!$A$752:$G$754,6,TRUE)), (IF(3-$B$19=2, (VLOOKUP(2,Tablas!$A$752:$G$754,6,TRUE)), (VLOOKUP(3,Tablas!$A$752:$G$754,6,TRUE)))))))), (IF($B$17=2,(IF(2-$B$19=0, 0, (IF(2-$B$19=1,(VLOOKUP(1,Tablas!$A$752:$G$754,6,TRUE)), (IF(2-$B$19=2, (VLOOKUP(2,Tablas!$A$752:$G$754,6,TRUE)), 0)))))), (IF($B$17=1,(IF(1-$B$19=0, 0, (IF(1-$B$19=1,(VLOOKUP(1,Tablas!$A$752:$G$754,6,TRUE)),0)))),0)))))))))))))), (IF($B$17=0, 0, (IF($B$19>$B$17, (VLOOKUP($B$17,Tablas!$A$752:$G$754,6,TRUE)), (IF($B$17=4,(IF(4-$B$19=0, 0, (IF(4-$B$19=1, (VLOOKUP(1,Tablas!$A$752:$G$754,6,TRUE)), (IF(4-$B$19=2, (VLOOKUP(2,Tablas!$A$752:$G$754,6,TRUE)), (IF(4-$B$19=3, (VLOOKUP(3,Tablas!$A$752:$G$754,6,TRUE)), (IF(4-$B$19=4, (VLOOKUP(3,Tablas!$A$752:$G$754,6,TRUE)), 0)))))))))), (IF($B$17=5,(IF(5-$B$19=0, (VLOOKUP(1,Tablas!$A$752:$G$754,6,TRUE)), (IF(5-$B$19=1, (VLOOKUP(1,Tablas!$A$752:$G$754,6,TRUE)), (IF(5-$B$19=2, (VLOOKUP(2,Tablas!$A$752:$G$754,6,TRUE)), (IF(5-$B$19=3, (VLOOKUP(3,Tablas!$A$752:$G$754,6,TRUE)), (IF(5-$B$19=4, (VLOOKUP(3,Tablas!$A$752:$G$754,6,TRUE)), (VLOOKUP(3,Tablas!$A$752:$G$754,6,TRUE)))))))))))), (IF($B$17=6,(IF(6-$B$19=0, (VLOOKUP(2,Tablas!$A$752:$G$754,6,TRUE)), (IF(6-$B$19=1, (VLOOKUP(2,Tablas!$A$752:$G$754,6,TRUE)), (IF(6-$B$19=2, (VLOOKUP(2,Tablas!$A$752:$G$754,6,TRUE)), (IF(6-$B$19=3, (VLOOKUP(3,Tablas!$A$752:$G$754,6,TRUE)), (IF(6-$B$19=4, (VLOOKUP(3,Tablas!$A$752:$G$754,6,TRUE)), (VLOOKUP(3,Tablas!$A$752:$G$754,6,TRUE)))))))))))), (IF($B$17>6,(IF(7-$B$19=0, (VLOOKUP(3,Tablas!$A$752:$G$754,6,TRUE)), (IF(7-$B$19=1, (VLOOKUP(3,Tablas!$A$752:$G$754,6,TRUE)), (IF(7-$B$19=2, (VLOOKUP(3,Tablas!$A$752:$G$754,6,TRUE)), (IF(7-$B$19=3, (VLOOKUP(3,Tablas!$A$752:$G$754,6,TRUE)), (IF(7-$B$19=4, (VLOOKUP(3,Tablas!$A$752:$G$754,6,TRUE)), (VLOOKUP(3,Tablas!$A$752:$G$754,6,TRUE)))))))))))), (IF($B$17=3,(IF(3-$B$19=0,0, (IF(3-$B$19=1,(VLOOKUP(1,Tablas!$A$752:$G$754,6,TRUE)), (IF(3-$B$19=2, (VLOOKUP(2,Tablas!$A$752:$G$754,6,TRUE)), (VLOOKUP(3,Tablas!$A$752:$G$754,6,TRUE)))))))), (IF($B$17=2,(IF(2-$B$19=0, 0, (IF(2-$B$19=1,(VLOOKUP(1,Tablas!$A$752:$G$754,6,TRUE)), (IF(2-$B$19=2, (VLOOKUP(2,Tablas!$A$752:$G$754,6,TRUE)), 0)))))), (IF($B$17=1,(IF(1-$B$19=0, 0, (IF(1-$B$19=1,(VLOOKUP(1,Tablas!$A$752:$G$754,6,TRUE)),0)))),0))))))))))))))))))) -> 467.9675 | G60: =IF($B$15=1, (IF($B$17=0, 0, (IF($B$19>$B$17, (VLOOKUP($B$17,Tablas!$A$752:$G$754,7,TRUE)), (IF($B$17>4,(IF($B$19=0, (VLOOKUP(3,Tablas!$A$752:$G$754,7,TRUE)), (IF($B$19=1, (VLOOKUP(3,Tablas!$A$752:$G$754,7,TRUE)), (IF($B$19=2, (VLOOKUP(3,Tablas!$A$752:$G$754,7,TRUE)), (VLOOKUP(3,Tablas!$A$752:$G$754,7,TRUE)))))))), (IF($B$17=4,(IF(4-$B$19=0,(VLOOKUP(2,Tablas!$A$752:$G$754,7,TRUE)), (IF(4-$B$19=1,(VLOOKUP(2,Tablas!$A$752:$G$754,7,TRUE)), (IF(4-$B$19=2, (VLOOKUP(2,Tablas!$A$752:$G$754,7,TRUE)), (VLOOKUP(3,Tablas!$A$752:$G$754,7,TRUE)))))))), (IF($B$17=3,(IF(3-$B$19=0,(VLOOKUP(1,Tablas!$A$752:$G$754,7,TRUE)), (IF(3-$B$19=1,(VLOOKUP(1,Tablas!$A$752:$G$754,7,TRUE)), (IF(3-$B$19=2, (VLOOKUP(2,Tablas!$A$752:$G$754,7,TRUE)), (VLOOKUP(3,Tablas!$A$752:$G$754,7,TRUE)))))))), (IF($B$17=2,(IF(2-$B$19=0, 0, (IF(2-$B$19=1,(VLOOKUP(1,Tablas!$A$752:$G$754,7,TRUE)), (IF(2-$B$19=2, (VLOOKUP(2,Tablas!$A$752:$G$754,7,TRUE)), 0)))))), (IF($B$17=1,(IF(1-$B$19=0, 0, (IF(1-$B$19=1,(VLOOKUP(1,Tablas!$A$752:$G$754,7,TRUE)),0)))),0)))))))))))))), (IF($B$17=0, 0, (IF($B$19>$B$17, (VLOOKUP($B$17,Tablas!$A$752:$G$754,7,TRUE)), (IF($B$17=4,(IF(4-$B$19=0, 0, (IF(4-$B$19=1, (VLOOKUP(1,Tablas!$A$752:$G$754,7,TRUE)), (IF(4-$B$19=2, (VLOOKUP(2,Tablas!$A$752:$G$754,7,TRUE)), (IF(4-$B$19=3, (VLOOKUP(3,Tablas!$A$752:$G$754,7,TRUE)), (IF(4-$B$19=4, (VLOOKUP(3,Tablas!$A$752:$G$754,7,TRUE)), 0)))))))))), (IF($B$17=5,(IF(5-$B$19=0, (VLOOKUP(1,Tablas!$A$752:$G$754,7,TRUE)), (IF(5-$B$19=1, (VLOOKUP(1,Tablas!$A$752:$G$754,7,TRUE)), (IF(5-$B$19=2, (VLOOKUP(2,Tablas!$A$752:$G$754,7,TRUE)), (IF(5-$B$19=3, (VLOOKUP(3,Tablas!$A$752:$G$754,7,TRUE)), (IF(5-$B$19=4, (VLOOKUP(3,Tablas!$A$752:$G$754,7,TRUE)), (VLOOKUP(3,Tablas!$A$752:$G$754,7,TRUE)))))))))))), (IF($B$17=6,(IF(6-$B$19=0, (VLOOKUP(2,Tablas!$A$752:$G$754,7,TRUE)), (IF(6-$B$19=1, (VLOOKUP(2,Tablas!$A$752:$G$754,7,TRUE)), (IF(6-$B$19=2, (VLOOKUP(2,Tablas!$A$752:$G$754,7,TRUE)), (IF(6-$B$19=3, (VLOOKUP(3,Tablas!$A$752:$G$754,7,TRUE)), (IF(6-$B$19=4, (VLOOKUP(3,Tablas!$A$752:$G$754,7,TRUE)), (VLOOKUP(3,Tablas!$A$752:$G$754,7,TRUE)))))))))))), (IF($B$17>6,(IF(7-$B$19=0, (VLOOKUP(3,Tablas!$A$752:$G$754,7,TRUE)), (IF(7-$B$19=1, (VLOOKUP(3,Tablas!$A$752:$G$754,7,TRUE)), (IF(7-$B$19=2, (VLOOKUP(3,Tablas!$A$752:$G$754,7,TRUE)), (IF(7-$B$19=3, (VLOOKUP(3,Tablas!$A$752:$G$754,7,TRUE)), (IF(7-$B$19=4, (VLOOKUP(3,Tablas!$A$752:$G$754,7,TRUE)), (VLOOKUP(3,Tablas!$A$752:$G$754,7,TRUE)))))))))))), (IF($B$17=3,(IF(3-$B$19=0,0, (IF(3-$B$19=1,(VLOOKUP(1,Tablas!$A$752:$G$754,7,TRUE)), (IF(3-$B$19=2, (VLOOKUP(2,Tablas!$A$752:$G$754,7,TRUE)), (VLOOKUP(3,Tablas!$A$752:$G$754,7,TRUE)))))))), (IF($B$17=2,(IF(2-$B$19=0, 0, (IF(2-$B$19=1,(VLOOKUP(1,Tablas!$A$752:$G$754,7,TRUE)), (IF(2-$B$19=2, (VLOOKUP(2,Tablas!$A$752:$G$754,7,TRUE)), 0)))))), (IF($B$17=1,(IF(1-$B$19=0, 0, (IF(1-$B$19=1,(VLOOKUP(1,Tablas!$A$752:$G$754,7,TRUE)),0)))),0))))))))))))))))))) -> 356.93625 | H60: =IF($B$15=1, (IF($B$17=0, 0, (IF($B$19>$B$17, (VLOOKUP($B$17,Tablas!$A$752:$H$754,8,TRUE)), (IF($B$17>4,(IF($B$19=0, (VLOOKUP(3,Tablas!$A$752:$G$754,7,TRUE)), (IF($B$19=1, (VLOOKUP(3,Tablas!$A$752:$G$754,7,TRUE)), (IF($B$19=2, (VLOOKUP(3,Tablas!$A$752:$G$754,7,TRUE)), (VLOOKUP(3,Tablas!$A$752:$G$754,7,TRUE)))))))), (IF($B$17=4,(IF(4-$B$19=0,(VLOOKUP(2,Tablas!$A$752:$G$754,7,TRUE)), (IF(4-$B$19=1,(VLOOKUP(2,Tablas!$A$752:$G$754,7,TRUE)), (IF(4-$B$19=2, (VLOOKUP(2,Tablas!$A$752:$G$754,7,TRUE)), (VLOOKUP(3,Tablas!$A$752:$G$754,7,TRUE)))))))), (IF($B$17=3,(IF(3-$B$19=0,(VLOOKUP(1,Tablas!$A$752:$G$754,7,TRUE)), (IF(3-$B$19=1,(VLOOKUP(1,Tablas!$A$752:$G$754,7,TRUE)), (IF(3-$B$19=2, (VLOOKUP(2,Tablas!$A$752:$G$754,7,TRUE)), (VLOOKUP(3,Tablas!$A$752:$G$754,7,TRUE)))))))), (IF($B$17=2,(IF(2-$B$19=0, 0, (IF(2-$B$19=1,(VLOOKUP(1,Tablas!$A$752:$G$754,7,TRUE)), (IF(2-$B$19=2, (VLOOKUP(2,Tablas!$A$752:$G$754,7,TRUE)), 0)))))), (IF($B$17=1,(IF(1-$B$19=0, 0, (IF(1-$B$19=1,(VLOOKUP(1,Tablas!$A$752:$G$754,7,TRUE)),0)))),0)))))))))))))), (IF($B$17=0, 0, (IF($B$19>$B$17, (VLOOKUP($B$17,Tablas!$A$752:$G$754,7,TRUE)), (IF($B$17=4,(IF(4-$B$19=0, 0, (IF(4-$B$19=1, (VLOOKUP(1,Tablas!$A$752:$G$754,7,TRUE)), (IF(4-$B$19=2, (VLOOKUP(2,Tablas!$A$752:$G$754,7,TRUE)), (IF(4-$B$19=3, (VLOOKUP(3,Tablas!$A$752:$G$754,7,TRUE)), (IF(4-$B$19=4, (VLOOKUP(3,Tablas!$A$752:$G$754,7,TRUE)), 0)))))))))), (IF($B$17=5,(IF(5-$B$19=0, (VLOOKUP(1,Tablas!$A$752:$G$754,7,TRUE)), (IF(5-$B$19=1, (VLOOKUP(1,Tablas!$A$752:$G$754,7,TRUE)), (IF(5-$B$19=2, (VLOOKUP(2,Tablas!$A$752:$G$754,7,TRUE)), (IF(5-$B$19=3, (VLOOKUP(3,Tablas!$A$752:$G$754,7,TRUE)), (IF(5-$B$19=4, (VLOOKUP(3,Tablas!$A$752:$G$754,7,TRUE)), (VLOOKUP(3,Tablas!$A$752:$G$754,7,TRUE)))))))))))), (IF($B$17=6,(IF(6-$B$19=0, (VLOOKUP(2,Tablas!$A$752:$G$754,7,TRUE)), (IF(6-$B$19=1, (VLOOKUP(2,Tablas!$A$752:$G$754,7,TRUE)), (IF(6-$B$19=2, (VLOOKUP(2,Tablas!$A$752:$G$754,7,TRUE)), (IF(6-$B$19=3, (VLOOKUP(3,Tablas!$A$752:$G$754,7,TRUE)), (IF(6-$B$19=4, (VLOOKUP(3,Tablas!$A$752:$G$754,7,TRUE)), (VLOOKUP(3,Tablas!$A$752:$G$754,7,TRUE)))))))))))), (IF($B$17>6,(IF(7-$B$19=0, (VLOOKUP(3,Tablas!$A$752:$G$754,7,TRUE)), (IF(7-$B$19=1, (VLOOKUP(3,Tablas!$A$752:$G$754,7,TRUE)), (IF(7-$B$19=2, (VLOOKUP(3,Tablas!$A$752:$G$754,7,TRUE)), (IF(7-$B$19=3, (VLOOKUP(3,Tablas!$A$752:$G$754,7,TRUE)), (IF(7-$B$19=4, (VLOOKUP(3,Tablas!$A$752:$G$754,7,TRUE)), (VLOOKUP(3,Tablas!$A$752:$G$754,7,TRUE)))))))))))), (IF($B$17=3,(IF(3-$B$19=0,0, (IF(3-$B$19=1,(VLOOKUP(1,Tablas!$A$752:$G$754,7,TRUE)), (IF(3-$B$19=2, (VLOOKUP(2,Tablas!$A$752:$G$754,7,TRUE)), (VLOOKUP(3,Tablas!$A$752:$G$754,7,TRUE)))))))), (IF($B$17=2,(IF(2-$B$19=0, 0, (IF(2-$B$19=1,(VLOOKUP(1,Tablas!$A$752:$G$754,7,TRUE)), (IF(2-$B$19=2, (VLOOKUP(2,Tablas!$A$752:$G$754,7,TRUE)), 0)))))), (IF($B$17=1,(IF(1-$B$19=0, 0, (IF(1-$B$19=1,(VLOOKUP(1,Tablas!$A$752:$G$754,7,TRUE)),0)))),0))))))))))))))))))) -> 356.93625
A61: Total de Prima neta | C61: =SUM(C58:C60) -> 7011.33125 | D61: 4964.3825 | E61: 4032.655 | F61: 3496.9 | G61: 2664.2825 | H61: 2203.09375
A62: Ajuste por la variante con coaseguro fuera del país de residencia | C62: =IF('INGRESO DE DATOS'!$P$3,C61*-15%,0) -> 0 | D62: =IF('INGRESO DE DATOS'!$P$3,D61*-15%,0) -> 0 | E62: =IF('INGRESO DE DATOS'!$P$3,E61*-15%,0) -> 0 | F62: =IF('INGRESO DE DATOS'!$P$3,F61*-15%,0) -> 0 | G62: =IF('INGRESO DE DATOS'!$P$3,G61*-15%,0) -> 0 | H62: =IF('INGRESO DE DATOS'!$P$3,H61*-15%,0) -> 0
A63: Tarifa administrativa anual | C63: 75 | D63: 75 | E63: 75 | F63: 75 | G63: 75 | H63: 75
A64: VAT (5%) : | C64: =(C61+C62+C63)*5% -> 354.3165625 | D64: 251.969125 | E64: 205.38275 | F64: 178.595 | G64: 136.964125 | H64: 113.9046875
A65: ITBMS (7%) | C65: 0 | D65: 0 | E65: 0 | F65: 0 | G65: 0 | H65: 0
A66: TOTAL de primera cuota | C66: =SUM(C61:C65) -> 7440.647813 | D66: 5291.351625 | E66: 4313.03775 | F66: 3750.495 | G66: 2876.246625 | H66: 2391.998437
A67: Costo de tarifa trimestral 2 a 4 | C67: =(C61+C62)*1.05 -> 7361.897813 | D67: 5212.601625 | E67: 4234.28775 | F67: 3671.745 | G67: 2797.496625 | H67: 2313.248437
A68: TOTAL ANUAL | C68: =C66+(C67*3) -> 29526.34125 | D68: 20929.1565 | E68: 17015.901 | F68: 14765.73 | G68: 11268.7365 | H68: 9331.74375
A69: Ahorros en tarifas de prima para Dependientes | C69: =IF($B$15=1,IF($B$17=0,0,IF($B$19=0,0,IF($B$19=1,(VLOOKUP(1,Tablas!$A$752:$G$754,3,TRUE)),(VLOOKUP(2,Tablas!$A$752:$G$754,3,TRUE))))), IF($B$17=0,0,IF($B$19=0,0,IF($B$19=1,(VLOOKUP(1,Tablas!$A$752:$G$754,3,TRUE)),IF($B$19=2,(VLOOKUP(2,Tablas!$A$752:$G$754,3,TRUE)), (VLOOKUP(3,Tablas!$A$752:$G$754,3,TRUE))))))) -> 905.5475 | D69: =IF($B$15=1,IF($B$17=0,0,IF($B$19=0,0,IF($B$19=1,(VLOOKUP(1,Tablas!$A$752:$G$754,4,TRUE)),(VLOOKUP(2,Tablas!$A$752:$G$754,4,TRUE))))), IF($B$17=0,0,IF($B$19=0,0,IF($B$19=1,(VLOOKUP(1,Tablas!$A$752:$G$754,4,TRUE)),IF($B$19=2,(VLOOKUP(2,Tablas!$A$752:$G$754,4,TRUE)), (VLOOKUP(3,Tablas!$A$752:$G$754,4,TRUE))))))) -> 648.4225 | E69: =IF($B$15=1,IF($B$17=0,0,IF($B$19=0,0,IF($B$19=1,(VLOOKUP(1,Tablas!$A$752:$G$754,5,TRUE)),(VLOOKUP(2,Tablas!$A$752:$G$754,5,TRUE))))), IF($B$17=0,0,IF($B$19=0,0,IF($B$19=1,(VLOOKUP(1,Tablas!$A$752:$G$754,5,TRUE)),IF($B$19=2,(VLOOKUP(2,Tablas!$A$752:$G$754,5,TRUE)), (VLOOKUP(3,Tablas!$A$752:$G$754,5,TRUE))))))) -> 539.72875 | F69: =IF($B$15=1,IF($B$17=0,0,IF($B$19=0,0,IF($B$19=1,(VLOOKUP(1,Tablas!$A$752:$G$754,6,TRUE)),(VLOOKUP(2,Tablas!$A$752:$G$754,6,TRUE))))), IF($B$17=0,0,IF($B$19=0,0,IF($B$19=1,(VLOOKUP(1,Tablas!$A$752:$G$754,6,TRUE)),IF($B$19=2,(VLOOKUP(2,Tablas!$A$752:$G$754,6,TRUE)), (VLOOKUP(3,Tablas!$A$752:$G$754,6,TRUE))))))) -> 467.9675 | G69: =IF($B$15=1,IF($B$17=0,0,IF($B$19=0,0,IF($B$19=1,(VLOOKUP(1,Tablas!$A$752:$G$754,7,TRUE)),(VLOOKUP(2,Tablas!$A$752:$G$754,7,TRUE))))), IF($B$17=0,0,IF($B$19=0,0,IF($B$19=1,(VLOOKUP(1,Tablas!$A$752:$G$754,7,TRUE)),IF($B$19=2,(VLOOKUP(2,Tablas!$A$752:$G$754,7,TRUE)), (VLOOKUP(3,Tablas!$A$752:$G$754,7,TRUE))))))) -> 356.93625 | H69: =IF($B$15=1,IF($B$17=0,0,IF($B$19=0,0,IF($B$19=1,(VLOOKUP(1,Tablas!$A$752:$G$754,7,TRUE)),(VLOOKUP(2,Tablas!$A$752:$G$754,7,TRUE))))), IF($B$17=0,0,IF($B$19=0,0,IF($B$19=1,(VLOOKUP(1,Tablas!$A$752:$G$754,7,TRUE)),IF($B$19=2,(VLOOKUP(2,Tablas!$A$752:$G$754,7,TRUE)), (VLOOKUP(3,Tablas!$A$752:$G$754,7,TRUE))))))) -> 356.93625
A71: TARIFAS MENSUALES
A72: Prima para Asegurado Titular | C72: =VLOOKUP($B$21,Tablas!$A$80:$G$146,3,TRUE) -> 872.508 | D72: =VLOOKUP($B$21,Tablas!$A$80:$G$146,4,TRUE) -> 617.848 | E72: =VLOOKUP($B$21,Tablas!$A$80:$G$146,5,TRUE) -> 503.608 | F72: =VLOOKUP($B$21,Tablas!$A$80:$G$146,6,TRUE) -> 436.6506667 | G72: =VLOOKUP($B$21,Tablas!$A$80:$G$146,7,TRUE) -> 332.6446667 | H72: =VLOOKUP($B$21,Tablas!$A$80:$H$146,8,TRUE) -> 266.1633333
A73: Prima para conyuge | C73: =IF($B$15=1,0,(VLOOKUP($G$21,Tablas!$A$80:$G$146,3,TRUE))) -> 1199.758 | D73: =IF($B$15=1,0,(VLOOKUP($G$21,Tablas!$A$80:$G$146,4,TRUE))) -> 846.9626667 | E73: =IF($B$15=1,0,(VLOOKUP($G$21,Tablas!$A$80:$G$146,5,TRUE))) -> 681.87 | F73: =IF($B$15=1,0,(VLOOKUP($G$21,Tablas!$A$80:$G$146,6,TRUE))) -> 591.3506667 | G73: =IF($B$15=1,0,(VLOOKUP($G$21,Tablas!$A$80:$G$146,7,TRUE))) -> 450.4546667 | H73: =IF($B$15=1,0,(VLOOKUP($G$21,Tablas!$A$80:$H$146,8,TRUE))) -> 360.4113333
A74: Prima para hijo (s) | C74: =IF($B$15=1, (IF($B$17=0, 0, (IF($B$19>$B$17, (VLOOKUP($B$17,Tablas!$A$147:$G$149,3,TRUE)), (IF($B$17>4,(IF($B$19=0, (VLOOKUP(3,Tablas!$A$147:$G$149,3,TRUE)), (IF($B$19=1, (VLOOKUP(3,Tablas!$A$147:$G$149,3,TRUE)), (IF($B$19=2, (VLOOKUP(3,Tablas!$A$147:$G$149,3,TRUE)), (VLOOKUP(3,Tablas!$A$147:$G$149,3,TRUE)))))))), (IF($B$17=4,(IF(4-$B$19=0,(VLOOKUP(2,Tablas!$A$147:$G$149,3,TRUE)), (IF(4-$B$19=1,(VLOOKUP(2,Tablas!$A$147:$G$149,3,TRUE)), (IF(4-$B$19=2, (VLOOKUP(2,Tablas!$A$147:$G$149,3,TRUE)), (VLOOKUP(3,Tablas!$A$147:$G$149,3,TRUE)))))))), (IF($B$17=3,(IF(3-$B$19=0,(VLOOKUP(1,Tablas!$A$147:$G$149,3,TRUE)), (IF(3-$B$19=1,(VLOOKUP(1,Tablas!$A$147:$G$149,3,TRUE)), (IF(3-$B$19=2, (VLOOKUP(2,Tablas!$A$147:$G$149,3,TRUE)), (VLOOKUP(3,Tablas!$A$147:$G$149,3,TRUE)))))))), (IF($B$17=2,(IF(2-$B$19=0, 0, (IF(2-$B$19=1,(VLOOKUP(1,Tablas!$A$147:$G$149,3,TRUE)), (IF(2-$B$19=2, (VLOOKUP(2,Tablas!$A$147:$G$149,3,TRUE)), 0)))))), (IF($B$17=1,(IF(1-$B$19=0, 0, (IF(1-$B$19=1,(VLOOKUP(1,Tablas!$A$147:$G$149,3,TRUE)),0)))),0)))))))))))))), (IF($B$17=0, 0, (IF($B$19>$B$17, (VLOOKUP($B$17,Tablas!$A$147:$G$149,3,TRUE)), (IF($B$17=4,(IF(4-$B$19=0, 0, (IF(4-$B$19=1, (VLOOKUP(1,Tablas!$A$147:$G$149,3,TRUE)), (IF(4-$B$19=2, (VLOOKUP(2,Tablas!$A$147:$G$149,3,TRUE)), (IF(4-$B$19=3, (VLOOKUP(3,Tablas!$A$147:$G$149,3,TRUE)), (IF(4-$B$19=4, (VLOOKUP(3,Tablas!$A$147:$G$149,3,TRUE)), 0)))))))))), (IF($B$17=5,(IF(5-$B$19=0, (VLOOKUP(1,Tablas!$A$147:$G$149,3,TRUE)), (IF(5-$B$19=1, (VLOOKUP(1,Tablas!$A$147:$G$149,3,TRUE)), (IF(5-$B$19=2, (VLOOKUP(2,Tablas!$A$147:$G$149,3,TRUE)), (IF(5-$B$19=3, (VLOOKUP(3,Tablas!$A$147:$G$149,3,TRUE)), (IF(5-$B$19=4, (VLOOKUP(3,Tablas!$A$147:$G$149,3,TRUE)), (VLOOKUP(3,Tablas!$A$147:$G$149,3,TRUE)))))))))))), (IF($B$17=6,(IF(6-$B$19=0, (VLOOKUP(2,Tablas!$A$147:$G$149,3,TRUE)), (IF(6-$B$19=1, (VLOOKUP(2,Tablas!$A$147:$G$149,3,TRUE)), (IF(6-$B$19=2, (VLOOKUP(2,Tablas!$A$147:$G$149,3,TRUE)), (IF(6-$B$19=3, (VLOOKUP(3,Tablas!$A$147:$G$149,3,TRUE)), (IF(6-$B$19=4, (VLOOKUP(3,Tablas!$A$147:$G$149,3,TRUE)), (VLOOKUP(3,Tablas!$A$147:$G$149,3,TRUE)))))))))))), (IF($B$17>6,(IF(7-$B$19=0, (VLOOKUP(3,Tablas!$A$147:$G$149,3,TRUE)), (IF(7-$B$19=1, (VLOOKUP(3,Tablas!$A$147:$G$149,3,TRUE)), (IF(7-$B$19=2, (VLOOKUP(3,Tablas!$A$147:$G$149,3,TRUE)), (IF(7-$B$19=3, (VLOOKUP(3,Tablas!$A$147:$G$149,3,TRUE)), (IF(7-$B$19=4, (VLOOKUP(3,Tablas!$A$147:$G$149,3,TRUE)), (VLOOKUP(3,Tablas!$A$147:$G$149,3,TRUE)))))))))))), (IF($B$17=3,(IF(3-$B$19=0,0, (IF(3-$B$19=1,(VLOOKUP(1,Tablas!$A$147:$G$149,3,TRUE)), (IF(3-$B$19=2, (VLOOKUP(2,Tablas!$A$147:$G$149,3,TRUE)), (VLOOKUP(3,Tablas!$A$147:$G$149,3,TRUE)))))))), (IF($B$17=2,(IF(2-$B$19=0, 0, (IF(2-$B$19=1,(VLOOKUP(1,Tablas!$A$147:$G$149,3,TRUE)), (IF(2-$B$19=2, (VLOOKUP(2,Tablas!$A$147:$G$149,3,TRUE)), 0)))))), (IF($B$17=1,(IF(1-$B$19=0, 0, (IF(1-$B$19=1,(VLOOKUP(1,Tablas!$A$147:$G$149,3,TRUE)),0)))),0))))))))))))))))))) -> 307.3373333 | D74: =IF($B$15=1, (IF($B$17=0, 0, (IF($B$19>$B$17, (VLOOKUP($B$17,Tablas!$A$147:$G$149,4,TRUE)), (IF($B$17>4,(IF($B$19=0, (VLOOKUP(3,Tablas!$A$147:$G$149,4,TRUE)), (IF($B$19=1, (VLOOKUP(3,Tablas!$A$147:$G$149,4,TRUE)), (IF($B$19=2, (VLOOKUP(3,Tablas!$A$147:$G$149,4,TRUE)), (VLOOKUP(3,Tablas!$A$147:$G$149,4,TRUE)))))))), (IF($B$17=4,(IF(4-$B$19=0,(VLOOKUP(2,Tablas!$A$147:$G$149,4,TRUE)), (IF(4-$B$19=1,(VLOOKUP(2,Tablas!$A$147:$G$149,4,TRUE)), (IF(4-$B$19=2, (VLOOKUP(2,Tablas!$A$147:$G$149,4,TRUE)), (VLOOKUP(3,Tablas!$A$147:$G$149,4,TRUE)))))))), (IF($B$17=3,(IF(3-$B$19=0,(VLOOKUP(1,Tablas!$A$147:$G$149,4,TRUE)), (IF(3-$B$19=1,(VLOOKUP(1,Tablas!$A$147:$G$149,4,TRUE)), (IF(3-$B$19=2, (VLOOKUP(2,Tablas!$A$147:$G$149,4,TRUE)), (VLOOKUP(3,Tablas!$A$147:$G$149,4,TRUE)))))))), (IF($B$17=2,(IF(2-$B$19=0, 0, (IF(2-$B$19=1,(VLOOKUP(1,Tablas!$A$147:$G$149,4,TRUE)), (IF(2-$B$19=2, (VLOOKUP(2,Tablas!$A$147:$G$149,4,TRUE)), 0)))))), (IF($B$17=1,(IF(1-$B$19=0, 0, (IF(1-$B$19=1,(VLOOKUP(1,Tablas!$A$147:$G$149,4,TRUE)),0)))),0)))))))))))))), (IF($B$17=0, 0, (IF($B$19>$B$17, (VLOOKUP($B$17,Tablas!$A$147:$G$149,4,TRUE)), (IF($B$17=4,(IF(4-$B$19=0, 0, (IF(4-$B$19=1, (VLOOKUP(1,Tablas!$A$147:$G$149,4,TRUE)), (IF(4-$B$19=2, (VLOOKUP(2,Tablas!$A$147:$G$149,4,TRUE)), (IF(4-$B$19=3, (VLOOKUP(3,Tablas!$A$147:$G$149,4,TRUE)), (IF(4-$B$19=4, (VLOOKUP(3,Tablas!$A$147:$G$149,4,TRUE)), 0)))))))))), (IF($B$17=5,(IF(5-$B$19=0, (VLOOKUP(1,Tablas!$A$147:$G$149,4,TRUE)), (IF(5-$B$19=1, (VLOOKUP(1,Tablas!$A$147:$G$149,4,TRUE)), (IF(5-$B$19=2, (VLOOKUP(2,Tablas!$A$147:$G$149,4,TRUE)), (IF(5-$B$19=3, (VLOOKUP(3,Tablas!$A$147:$G$149,4,TRUE)), (IF(5-$B$19=4, (VLOOKUP(3,Tablas!$A$147:$G$149,4,TRUE)), (VLOOKUP(3,Tablas!$A$147:$G$149,4,TRUE)))))))))))), (IF($B$17=6,(IF(6-$B$19=0, (VLOOKUP(2,Tablas!$A$147:$G$149,4,TRUE)), (IF(6-$B$19=1, (VLOOKUP(2,Tablas!$A$147:$G$149,4,TRUE)), (IF(6-$B$19=2, (VLOOKUP(2,Tablas!$A$147:$G$149,4,TRUE)), (IF(6-$B$19=3, (VLOOKUP(3,Tablas!$A$147:$G$149,4,TRUE)), (IF(6-$B$19=4, (VLOOKUP(3,Tablas!$A$147:$G$149,4,TRUE)), (VLOOKUP(3,Tablas!$A$147:$G$149,4,TRUE)))))))))))), (IF($B$17>6,(IF(7-$B$19=0, (VLOOKUP(3,Tablas!$A$147:$G$149,4,TRUE)), (IF(7-$B$19=1, (VLOOKUP(3,Tablas!$A$147:$G$149,4,TRUE)), (IF(7-$B$19=2, (VLOOKUP(3,Tablas!$A$147:$G$149,4,TRUE)), (IF(7-$B$19=3, (VLOOKUP(3,Tablas!$A$147:$G$149,4,TRUE)), (IF(7-$B$19=4, (VLOOKUP(3,Tablas!$A$147:$G$149,4,TRUE)), (VLOOKUP(3,Tablas!$A$147:$G$149,4,TRUE)))))))))))), (IF($B$17=3,(IF(3-$B$19=0,0, (IF(3-$B$19=1,(VLOOKUP(1,Tablas!$A$147:$G$149,4,TRUE)), (IF(3-$B$19=2, (VLOOKUP(2,Tablas!$A$147:$G$149,4,TRUE)), (VLOOKUP(3,Tablas!$A$147:$G$149,4,TRUE)))))))), (IF($B$17=2,(IF(2-$B$19=0, 0, (IF(2-$B$19=1,(VLOOKUP(1,Tablas!$A$147:$G$149,4,TRUE)), (IF(2-$B$19=2, (VLOOKUP(2,Tablas!$A$147:$G$149,4,TRUE)), 0)))))), (IF($B$17=1,(IF(1-$B$19=0, 0, (IF(1-$B$19=1,(VLOOKUP(1,Tablas!$A$147:$G$149,4,TRUE)),0)))),0))))))))))))))))))) -> 220.0706667 | E74: =IF($B$15=1, (IF($B$17=0, 0, (IF($B$19>$B$17, (VLOOKUP($B$17,Tablas!$A$147:$G$149,5,TRUE)), (IF($B$17>4,(IF($B$19=0, (VLOOKUP(3,Tablas!$A$147:$G$149,5,TRUE)), (IF($B$19=1, (VLOOKUP(3,Tablas!$A$147:$G$149,5,TRUE)), (IF($B$19=2, (VLOOKUP(3,Tablas!$A$147:$G$149,5,TRUE)), (VLOOKUP(3,Tablas!$A$147:$G$149,5,TRUE)))))))), (IF($B$17=4,(IF(4-$B$19=0,(VLOOKUP(2,Tablas!$A$147:$G$149,5,TRUE)), (IF(4-$B$19=1,(VLOOKUP(2,Tablas!$A$147:$G$149,5,TRUE)), (IF(4-$B$19=2, (VLOOKUP(2,Tablas!$A$147:$G$149,5,TRUE)), (VLOOKUP(3,Tablas!$A$147:$G$149,5,TRUE)))))))), (IF($B$17=3,(IF(3-$B$19=0,(VLOOKUP(1,Tablas!$A$147:$G$149,5,TRUE)), (IF(3-$B$19=1,(VLOOKUP(1,Tablas!$A$147:$G$149,5,TRUE)), (IF(3-$B$19=2, (VLOOKUP(2,Tablas!$A$147:$G$149,5,TRUE)), (VLOOKUP(3,Tablas!$A$147:$G$149,5,TRUE)))))))), (IF($B$17=2,(IF(2-$B$19=0, 0, (IF(2-$B$19=1,(VLOOKUP(1,Tablas!$A$147:$G$149,5,TRUE)), (IF(2-$B$19=2, (VLOOKUP(2,Tablas!$A$147:$G$149,5,TRUE)), 0)))))), (IF($B$17=1,(IF(1-$B$19=0, 0, (IF(1-$B$19=1,(VLOOKUP(1,Tablas!$A$147:$G$149,5,TRUE)),0)))),0)))))))))))))), (IF($B$17=0, 0, (IF($B$19>$B$17, (VLOOKUP($B$17,Tablas!$A$147:$G$149,5,TRUE)), (IF($B$17=4,(IF(4-$B$19=0, 0, (IF(4-$B$19=1, (VLOOKUP(1,Tablas!$A$147:$G$149,5,TRUE)), (IF(4-$B$19=2, (VLOOKUP(2,Tablas!$A$147:$G$149,5,TRUE)), (IF(4-$B$19=3, (VLOOKUP(3,Tablas!$A$147:$G$149,5,TRUE)), (IF(4-$B$19=4, (VLOOKUP(3,Tablas!$A$147:$G$149,5,TRUE)), 0)))))))))), (IF($B$17=5,(IF(5-$B$19=0, (VLOOKUP(1,Tablas!$A$147:$G$149,5,TRUE)), (IF(5-$B$19=1, (VLOOKUP(1,Tablas!$A$147:$G$149,5,TRUE)), (IF(5-$B$19=2, (VLOOKUP(2,Tablas!$A$147:$G$149,5,TRUE)), (IF(5-$B$19=3, (VLOOKUP(3,Tablas!$A$147:$G$149,5,TRUE)), (IF(5-$B$19=4, (VLOOKUP(3,Tablas!$A$147:$G$149,5,TRUE)), (VLOOKUP(3,Tablas!$A$147:$G$149,5,TRUE)))))))))))), (IF($B$17=6,(IF(6-$B$19=0, (VLOOKUP(2,Tablas!$A$147:$G$149,5,TRUE)), (IF(6-$B$19=1, (VLOOKUP(2,Tablas!$A$147:$G$149,5,TRUE)), (IF(6-$B$19=2, (VLOOKUP(2,Tablas!$A$147:$G$149,5,TRUE)), (IF(6-$B$19=3, (VLOOKUP(3,Tablas!$A$147:$G$149,5,TRUE)), (IF(6-$B$19=4, (VLOOKUP(3,Tablas!$A$147:$G$149,5,TRUE)), (VLOOKUP(3,Tablas!$A$147:$G$149,5,TRUE)))))))))))), (IF($B$17>6,(IF(7-$B$19=0, (VLOOKUP(3,Tablas!$A$147:$G$149,5,TRUE)), (IF(7-$B$19=1, (VLOOKUP(3,Tablas!$A$147:$G$149,5,TRUE)), (IF(7-$B$19=2, (VLOOKUP(3,Tablas!$A$147:$G$149,5,TRUE)), (IF(7-$B$19=3, (VLOOKUP(3,Tablas!$A$147:$G$149,5,TRUE)), (IF(7-$B$19=4, (VLOOKUP(3,Tablas!$A$147:$G$149,5,TRUE)), (VLOOKUP(3,Tablas!$A$147:$G$149,5,TRUE)))))))))))), (IF($B$17=3,(IF(3-$B$19=0,0, (IF(3-$B$19=1,(VLOOKUP(1,Tablas!$A$147:$G$149,5,TRUE)), (IF(3-$B$19=2, (VLOOKUP(2,Tablas!$A$147:$G$149,5,TRUE)), (VLOOKUP(3,Tablas!$A$147:$G$149,5,TRUE)))))))), (IF($B$17=2,(IF(2-$B$19=0, 0, (IF(2-$B$19=1,(VLOOKUP(1,Tablas!$A$147:$G$149,5,TRUE)), (IF(2-$B$19=2, (VLOOKUP(2,Tablas!$A$147:$G$149,5,TRUE)), 0)))))), (IF($B$17=1,(IF(1-$B$19=0, 0, (IF(1-$B$19=1,(VLOOKUP(1,Tablas!$A$147:$G$149,5,TRUE)),0)))),0))))))))))))))))))) -> 183.1806667 | F74: =IF($B$15=1, (IF($B$17=0, 0, (IF($B$19>$B$17, (VLOOKUP($B$17,Tablas!$A$147:$G$149,6,TRUE)), (IF($B$17>4,(IF($B$19=0, (VLOOKUP(3,Tablas!$A$147:$G$149,6,TRUE)), (IF($B$19=1, (VLOOKUP(3,Tablas!$A$147:$G$149,6,TRUE)), (IF($B$19=2, (VLOOKUP(3,Tablas!$A$147:$G$149,6,TRUE)), (VLOOKUP(3,Tablas!$A$147:$G$149,6,TRUE)))))))), (IF($B$17=4,(IF(4-$B$19=0,(VLOOKUP(2,Tablas!$A$147:$G$149,6,TRUE)), (IF(4-$B$19=1,(VLOOKUP(2,Tablas!$A$147:$G$149,6,TRUE)), (IF(4-$B$19=2, (VLOOKUP(2,Tablas!$A$147:$G$149,6,TRUE)), (VLOOKUP(3,Tablas!$A$147:$G$149,6,TRUE)))))))), (IF($B$17=3,(IF(3-$B$19=0,(VLOOKUP(1,Tablas!$A$147:$G$149,6,TRUE)), (IF(3-$B$19=1,(VLOOKUP(1,Tablas!$A$147:$G$149,6,TRUE)), (IF(3-$B$19=2, (VLOOKUP(2,Tablas!$A$147:$G$149,6,TRUE)), (VLOOKUP(3,Tablas!$A$147:$G$149,6,TRUE)))))))), (IF($B$17=2,(IF(2-$B$19=0, 0, (IF(2-$B$19=1,(VLOOKUP(1,Tablas!$A$147:$G$149,6,TRUE)), (IF(2-$B$19=2, (VLOOKUP(2,Tablas!$A$147:$G$149,6,TRUE)), 0)))))), (IF($B$17=1,(IF(1-$B$19=0, 0, (IF(1-$B$19=1,(VLOOKUP(1,Tablas!$A$147:$G$149,6,TRUE)),0)))),0)))))))))))))), (IF($B$17=0, 0, (IF($B$19>$B$17, (VLOOKUP($B$17,Tablas!$A$147:$G$149,6,TRUE)), (IF($B$17=4,(IF(4-$B$19=0, 0, (IF(4-$B$19=1, (VLOOKUP(1,Tablas!$A$147:$G$149,6,TRUE)), (IF(4-$B$19=2, (VLOOKUP(2,Tablas!$A$147:$G$149,6,TRUE)), (IF(4-$B$19=3, (VLOOKUP(3,Tablas!$A$147:$G$149,6,TRUE)), (IF(4-$B$19=4, (VLOOKUP(3,Tablas!$A$147:$G$149,6,TRUE)), 0)))))))))), (IF($B$17=5,(IF(5-$B$19=0, (VLOOKUP(1,Tablas!$A$147:$G$149,6,TRUE)), (IF(5-$B$19=1, (VLOOKUP(1,Tablas!$A$147:$G$149,6,TRUE)), (IF(5-$B$19=2, (VLOOKUP(2,Tablas!$A$147:$G$149,6,TRUE)), (IF(5-$B$19=3, (VLOOKUP(3,Tablas!$A$147:$G$149,6,TRUE)), (IF(5-$B$19=4, (VLOOKUP(3,Tablas!$A$147:$G$149,6,TRUE)), (VLOOKUP(3,Tablas!$A$147:$G$149,6,TRUE)))))))))))), (IF($B$17=6,(IF(6-$B$19=0, (VLOOKUP(2,Tablas!$A$147:$G$149,6,TRUE)), (IF(6-$B$19=1, (VLOOKUP(2,Tablas!$A$147:$G$149,6,TRUE)), (IF(6-$B$19=2, (VLOOKUP(2,Tablas!$A$147:$G$149,6,TRUE)), (IF(6-$B$19=3, (VLOOKUP(3,Tablas!$A$147:$G$149,6,TRUE)), (IF(6-$B$19=4, (VLOOKUP(3,Tablas!$A$147:$G$149,6,TRUE)), (VLOOKUP(3,Tablas!$A$147:$G$149,6,TRUE)))))))))))), (IF($B$17>6,(IF(7-$B$19=0, (VLOOKUP(3,Tablas!$A$147:$G$149,6,TRUE)), (IF(7-$B$19=1, (VLOOKUP(3,Tablas!$A$147:$G$149,6,TRUE)), (IF(7-$B$19=2, (VLOOKUP(3,Tablas!$A$147:$G$149,6,TRUE)), (IF(7-$B$19=3, (VLOOKUP(3,Tablas!$A$147:$G$149,6,TRUE)), (IF(7-$B$19=4, (VLOOKUP(3,Tablas!$A$147:$G$149,6,TRUE)), (VLOOKUP(3,Tablas!$A$147:$G$149,6,TRUE)))))))))))), (IF($B$17=3,(IF(3-$B$19=0,0, (IF(3-$B$19=1,(VLOOKUP(1,Tablas!$A$147:$G$149,6,TRUE)), (IF(3-$B$19=2, (VLOOKUP(2,Tablas!$A$147:$G$149,6,TRUE)), (VLOOKUP(3,Tablas!$A$147:$G$149,6,TRUE)))))))), (IF($B$17=2,(IF(2-$B$19=0, 0, (IF(2-$B$19=1,(VLOOKUP(1,Tablas!$A$147:$G$149,6,TRUE)), (IF(2-$B$19=2, (VLOOKUP(2,Tablas!$A$147:$G$149,6,TRUE)), 0)))))), (IF($B$17=1,(IF(1-$B$19=0, 0, (IF(1-$B$19=1,(VLOOKUP(1,Tablas!$A$147:$G$149,6,TRUE)),0)))),0))))))))))))))))))) -> 158.8253333 | G74: =IF($B$15=1, (IF($B$17=0, 0, (IF($B$19>$B$17, (VLOOKUP($B$17,Tablas!$A$147:$G$149,7,TRUE)), (IF($B$17>4,(IF($B$19=0, (VLOOKUP(3,Tablas!$A$147:$G$149,7,TRUE)), (IF($B$19=1, (VLOOKUP(3,Tablas!$A$147:$G$149,7,TRUE)), (IF($B$19=2, (VLOOKUP(3,Tablas!$A$147:$G$149,7,TRUE)), (VLOOKUP(3,Tablas!$A$147:$G$149,7,TRUE)))))))), (IF($B$17=4,(IF(4-$B$19=0,(VLOOKUP(2,Tablas!$A$147:$G$149,7,TRUE)), (IF(4-$B$19=1,(VLOOKUP(2,Tablas!$A$147:$G$149,7,TRUE)), (IF(4-$B$19=2, (VLOOKUP(2,Tablas!$A$147:$G$149,7,TRUE)), (VLOOKUP(3,Tablas!$A$147:$G$149,7,TRUE)))))))), (IF($B$17=3,(IF(3-$B$19=0,(VLOOKUP(1,Tablas!$A$147:$G$149,7,TRUE)), (IF(3-$B$19=1,(VLOOKUP(1,Tablas!$A$147:$G$149,7,TRUE)), (IF(3-$B$19=2, (VLOOKUP(2,Tablas!$A$147:$G$149,7,TRUE)), (VLOOKUP(3,Tablas!$A$147:$G$149,7,TRUE)))))))), (IF($B$17=2,(IF(2-$B$19=0, 0, (IF(2-$B$19=1,(VLOOKUP(1,Tablas!$A$147:$G$149,7,TRUE)), (IF(2-$B$19=2, (VLOOKUP(2,Tablas!$A$147:$G$149,7,TRUE)), 0)))))), (IF($B$17=1,(IF(1-$B$19=0, 0, (IF(1-$B$19=1,(VLOOKUP(1,Tablas!$A$147:$G$149,7,TRUE)),0)))),0)))))))))))))), (IF($B$17=0, 0, (IF($B$19>$B$17, (VLOOKUP($B$17,Tablas!$A$147:$G$149,7,TRUE)), (IF($B$17=4,(IF(4-$B$19=0, 0, (IF(4-$B$19=1, (VLOOKUP(1,Tablas!$A$147:$G$149,7,TRUE)), (IF(4-$B$19=2, (VLOOKUP(2,Tablas!$A$147:$G$149,7,TRUE)), (IF(4-$B$19=3, (VLOOKUP(3,Tablas!$A$147:$G$149,7,TRUE)), (IF(4-$B$19=4, (VLOOKUP(3,Tablas!$A$147:$G$149,7,TRUE)), 0)))))))))), (IF($B$17=5,(IF(5-$B$19=0, (VLOOKUP(1,Tablas!$A$147:$G$149,7,TRUE)), (IF(5-$B$19=1, (VLOOKUP(1,Tablas!$A$147:$G$149,7,TRUE)), (IF(5-$B$19=2, (VLOOKUP(2,Tablas!$A$147:$G$149,7,TRUE)), (IF(5-$B$19=3, (VLOOKUP(3,Tablas!$A$147:$G$149,7,TRUE)), (IF(5-$B$19=4, (VLOOKUP(3,Tablas!$A$147:$G$149,7,TRUE)), (VLOOKUP(3,Tablas!$A$147:$G$149,7,TRUE)))))))))))), (IF($B$17=6,(IF(6-$B$19=0, (VLOOKUP(2,Tablas!$A$147:$G$149,7,TRUE)), (IF(6-$B$19=1, (VLOOKUP(2,Tablas!$A$147:$G$149,7,TRUE)), (IF(6-$B$19=2, (VLOOKUP(2,Tablas!$A$147:$G$149,7,TRUE)), (IF(6-$B$19=3, (VLOOKUP(3,Tablas!$A$147:$G$149,7,TRUE)), (IF(6-$B$19=4, (VLOOKUP(3,Tablas!$A$147:$G$149,7,TRUE)), (VLOOKUP(3,Tablas!$A$147:$G$149,7,TRUE)))))))))))), (IF($B$17>6,(IF(7-$B$19=0, (VLOOKUP(3,Tablas!$A$147:$G$149,7,TRUE)), (IF(7-$B$19=1, (VLOOKUP(3,Tablas!$A$147:$G$149,7,TRUE)), (IF(7-$B$19=2, (VLOOKUP(3,Tablas!$A$147:$G$149,7,TRUE)), (IF(7-$B$19=3, (VLOOKUP(3,Tablas!$A$147:$G$149,7,TRUE)), (IF(7-$B$19=4, (VLOOKUP(3,Tablas!$A$147:$G$149,7,TRUE)), (VLOOKUP(3,Tablas!$A$147:$G$149,7,TRUE)))))))))))), (IF($B$17=3,(IF(3-$B$19=0,0, (IF(3-$B$19=1,(VLOOKUP(1,Tablas!$A$147:$G$149,7,TRUE)), (IF(3-$B$19=2, (VLOOKUP(2,Tablas!$A$147:$G$149,7,TRUE)), (VLOOKUP(3,Tablas!$A$147:$G$149,7,TRUE)))))))), (IF($B$17=2,(IF(2-$B$19=0, 0, (IF(2-$B$19=1,(VLOOKUP(1,Tablas!$A$147:$G$149,7,TRUE)), (IF(2-$B$19=2, (VLOOKUP(2,Tablas!$A$147:$G$149,7,TRUE)), 0)))))), (IF($B$17=1,(IF(1-$B$19=0, 0, (IF(1-$B$19=1,(VLOOKUP(1,Tablas!$A$147:$G$149,7,TRUE)),0)))),0))))))))))))))))))) -> 121.142 | H74: =IF($B$15=1, (IF($B$17=0, 0, (IF($B$19>$B$17, (VLOOKUP($B$17,Tablas!$A$147:$H$149,8,TRUE)), (IF($B$17>4,(IF($B$19=0, (VLOOKUP(3,Tablas!$A$147:$G$149,7,TRUE)), (IF($B$19=1, (VLOOKUP(3,Tablas!$A$147:$G$149,7,TRUE)), (IF($B$19=2, (VLOOKUP(3,Tablas!$A$147:$G$149,7,TRUE)), (VLOOKUP(3,Tablas!$A$147:$G$149,7,TRUE)))))))), (IF($B$17=4,(IF(4-$B$19=0,(VLOOKUP(2,Tablas!$A$147:$G$149,7,TRUE)), (IF(4-$B$19=1,(VLOOKUP(2,Tablas!$A$147:$G$149,7,TRUE)), (IF(4-$B$19=2, (VLOOKUP(2,Tablas!$A$147:$G$149,7,TRUE)), (VLOOKUP(3,Tablas!$A$147:$G$149,7,TRUE)))))))), (IF($B$17=3,(IF(3-$B$19=0,(VLOOKUP(1,Tablas!$A$147:$G$149,7,TRUE)), (IF(3-$B$19=1,(VLOOKUP(1,Tablas!$A$147:$G$149,7,TRUE)), (IF(3-$B$19=2, (VLOOKUP(2,Tablas!$A$147:$G$149,7,TRUE)), (VLOOKUP(3,Tablas!$A$147:$G$149,7,TRUE)))))))), (IF($B$17=2,(IF(2-$B$19=0, 0, (IF(2-$B$19=1,(VLOOKUP(1,Tablas!$A$147:$G$149,7,TRUE)), (IF(2-$B$19=2, (VLOOKUP(2,Tablas!$A$147:$G$149,7,TRUE)), 0)))))), (IF($B$17=1,(IF(1-$B$19=0, 0, (IF(1-$B$19=1,(VLOOKUP(1,Tablas!$A$147:$G$149,7,TRUE)),0)))),0)))))))))))))), (IF($B$17=0, 0, (IF($B$19>$B$17, (VLOOKUP($B$17,Tablas!$A$147:$G$149,7,TRUE)), (IF($B$17=4,(IF(4-$B$19=0, 0, (IF(4-$B$19=1, (VLOOKUP(1,Tablas!$A$147:$G$149,7,TRUE)), (IF(4-$B$19=2, (VLOOKUP(2,Tablas!$A$147:$G$149,7,TRUE)), (IF(4-$B$19=3, (VLOOKUP(3,Tablas!$A$147:$G$149,7,TRUE)), (IF(4-$B$19=4, (VLOOKUP(3,Tablas!$A$147:$G$149,7,TRUE)), 0)))))))))), (IF($B$17=5,(IF(5-$B$19=0, (VLOOKUP(1,Tablas!$A$147:$G$149,7,TRUE)), (IF(5-$B$19=1, (VLOOKUP(1,Tablas!$A$147:$G$149,7,TRUE)), (IF(5-$B$19=2, (VLOOKUP(2,Tablas!$A$147:$G$149,7,TRUE)), (IF(5-$B$19=3, (VLOOKUP(3,Tablas!$A$147:$G$149,7,TRUE)), (IF(5-$B$19=4, (VLOOKUP(3,Tablas!$A$147:$G$149,7,TRUE)), (VLOOKUP(3,Tablas!$A$147:$G$149,7,TRUE)))))))))))), (IF($B$17=6,(IF(6-$B$19=0, (VLOOKUP(2,Tablas!$A$147:$G$149,7,TRUE)), (IF(6-$B$19=1, (VLOOKUP(2,Tablas!$A$147:$G$149,7,TRUE)), (IF(6-$B$19=2, (VLOOKUP(2,Tablas!$A$147:$G$149,7,TRUE)), (IF(6-$B$19=3, (VLOOKUP(3,Tablas!$A$147:$G$149,7,TRUE)), (IF(6-$B$19=4, (VLOOKUP(3,Tablas!$A$147:$G$149,7,TRUE)), (VLOOKUP(3,Tablas!$A$147:$G$149,7,TRUE)))))))))))), (IF($B$17>6,(IF(7-$B$19=0, (VLOOKUP(3,Tablas!$A$147:$G$149,7,TRUE)), (IF(7-$B$19=1, (VLOOKUP(3,Tablas!$A$147:$G$149,7,TRUE)), (IF(7-$B$19=2, (VLOOKUP(3,Tablas!$A$147:$G$149,7,TRUE)), (IF(7-$B$19=3, (VLOOKUP(3,Tablas!$A$147:$G$149,7,TRUE)), (IF(7-$B$19=4, (VLOOKUP(3,Tablas!$A$147:$G$149,7,TRUE)), (VLOOKUP(3,Tablas!$A$147:$G$149,7,TRUE)))))))))))), (IF($B$17=3,(IF(3-$B$19=0,0, (IF(3-$B$19=1,(VLOOKUP(1,Tablas!$A$147:$G$149,7,TRUE)), (IF(3-$B$19=2, (VLOOKUP(2,Tablas!$A$147:$G$149,7,TRUE)), (VLOOKUP(3,Tablas!$A$147:$G$149,7,TRUE)))))))), (IF($B$17=2,(IF(2-$B$19=0, 0, (IF(2-$B$19=1,(VLOOKUP(1,Tablas!$A$147:$G$149,7,TRUE)), (IF(2-$B$19=2, (VLOOKUP(2,Tablas!$A$147:$G$149,7,TRUE)), 0)))))), (IF($B$17=1,(IF(1-$B$19=0, 0, (IF(1-$B$19=1,(VLOOKUP(1,Tablas!$A$147:$G$149,7,TRUE)),0)))),0))))))))))))))))))) -> 121.142
A75: Total de Prima neta | C75: =SUM(C72:C74) -> 2379.603333 | D75: 1684.881333 | E75: 1368.658667 | F75: 1186.826667 | G75: 904.2413333 | H75: 747.7166667
A76: Ajuste por la variante con coaseguro fuera del país de residencia | C76: =IF('INGRESO DE DATOS'!$P$3,C75*-15%,0) -> 0 | D76: =IF('INGRESO DE DATOS'!$P$3,D75*-15%,0) -> 0 | E76: =IF('INGRESO DE DATOS'!$P$3,E75*-15%,0) -> 0 | F76: =IF('INGRESO DE DATOS'!$P$3,F75*-15%,0) -> 0 | G76: =IF('INGRESO DE DATOS'!$P$3,G75*-15%,0) -> 0 | H76: =IF('INGRESO DE DATOS'!$P$3,H75*-15%,0) -> 0
A77: Tarifa administrativa anual | C77: 75 | D77: 75 | E77: 75 | F77: 75 | G77: 75 | H77: 75
A78: VAT (5%) : | C78: =(C75+C76+C77)*5% -> 122.7301667 | D78: 87.99406667 | E78: 72.18293333 | F78: 63.09133333 | G78: 48.96206667 | H78: 41.13583333
A79: ITBMS (7%) | C79: 0 | D79: 0 | E79: 0 | F79: 0 | G79: 0 | H79: 0
A80: TOTAL de primera cuota | C80: =SUM(C75:C79) -> 2577.3335 | D80: 1847.8754 | E80: 1515.8416 | F80: 1324.918 | G80: 1028.2034 | H80: 863.8525
A81: Costo de Tarifa mensual de 2 a 12 | C81: =(C75+C76)*1.05 -> 2498.5835 | D81: 1769.1254 | E81: 1437.0916 | F81: 1246.168 | G81: 949.4534 | H81: 785.1025
A82: TOTAL ANUAL | C82: =C80+(C81*11) -> 30061.752 | D82: 21308.2548 | E82: 17323.8492 | F82: 15032.766 | G82: 11472.1908 | H82: 9499.98
A83: Ahorros en tarifas de prima para Dependientes | C83: =IF($B$15=1,IF($B$17=0,0,IF($B$19=0,0,IF($B$19=1,(VLOOKUP(1,Tablas!$A$147:$G$149,3,TRUE)),(VLOOKUP(2,Tablas!$A$147:$G$149,3,TRUE))))), IF($B$17=0,0,IF($B$19=0,0,IF($B$19=1,(VLOOKUP(1,Tablas!$A$147:$G$149,3,TRUE)),IF($B$19=2,(VLOOKUP(2,Tablas!$A$147:$G$149,3,TRUE)), (VLOOKUP(3,Tablas!$A$147:$G$149,3,TRUE))))))) -> 307.3373333 | D83: =IF($B$15=1,IF($B$17=0,0,IF($B$19=0,0,IF($B$19=1,(VLOOKUP(1,Tablas!$A$147:$G$149,4,TRUE)),(VLOOKUP(2,Tablas!$A$147:$G$149,4,TRUE))))), IF($B$17=0,0,IF($B$19=0,0,IF($B$19=1,(VLOOKUP(1,Tablas!$A$147:$G$149,4,TRUE)),IF($B$19=2,(VLOOKUP(2,Tablas!$A$147:$G$149,4,TRUE)), (VLOOKUP(3,Tablas!$A$147:$G$149,4,TRUE))))))) -> 220.0706667 | E83: =IF($B$15=1,IF($B$17=0,0,IF($B$19=0,0,IF($B$19=1,(VLOOKUP(1,Tablas!$A$147:$G$149,5,TRUE)),(VLOOKUP(2,Tablas!$A$147:$G$149,5,TRUE))))), IF($B$17=0,0,IF($B$19=0,0,IF($B$19=1,(VLOOKUP(1,Tablas!$A$147:$G$149,5,TRUE)),IF($B$19=2,(VLOOKUP(2,Tablas!$A$147:$G$149,5,TRUE)), (VLOOKUP(3,Tablas!$A$147:$G$149,5,TRUE))))))) -> 183.1806667 | F83: =IF($B$15=1,IF($B$17=0,0,IF($B$19=0,0,IF($B$19=1,(VLOOKUP(1,Tablas!$A$147:$G$149,6,TRUE)),(VLOOKUP(2,Tablas!$A$147:$G$149,6,TRUE))))), IF($B$17=0,0,IF($B$19=0,0,IF($B$19=1,(VLOOKUP(1,Tablas!$A$147:$G$149,6,TRUE)),IF($B$19=2,(VLOOKUP(2,Tablas!$A$147:$G$149,6,TRUE)), (VLOOKUP(3,Tablas!$A$147:$G$149,6,TRUE))))))) -> 158.8253333 | G83: =IF($B$15=1,IF($B$17=0,0,IF($B$19=0,0,IF($B$19=1,(VLOOKUP(1,Tablas!$A$147:$G$149,7,TRUE)),(VLOOKUP(2,Tablas!$A$147:$G$149,7,TRUE))))), IF($B$17=0,0,IF($B$19=0,0,IF($B$19=1,(VLOOKUP(1,Tablas!$A$147:$G$149,7,TRUE)),IF($B$19=2,(VLOOKUP(2,Tablas!$A$147:$G$149,7,TRUE)), (VLOOKUP(3,Tablas!$A$147:$G$149,7,TRUE))))))) -> 121.142 | H83: =IF($B$15=1,IF($B$17=0,0,IF($B$19=0,0,IF($B$19=1,(VLOOKUP(1,Tablas!$A$147:$G$149,7,TRUE)),(VLOOKUP(2,Tablas!$A$147:$G$149,7,TRUE))))), IF($B$17=0,0,IF($B$19=0,0,IF($B$19=1,(VLOOKUP(1,Tablas!$A$147:$G$149,7,TRUE)),IF($B$19=2,(VLOOKUP(2,Tablas!$A$147:$G$149,7,TRUE)), (VLOOKUP(3,Tablas!$A$147:$G$149,7,TRUE))))))) -> 121.142
A85: Este presupuesto solamente tiene carácter informativo y en ningún momento expresa compromiso legal para suministrarle cobertura de seguro. La emisión de una póliza de seguro Bupa está sujeta a todas las evaluaciones de riesgo por parte de Bupa y a la recepción de todos los pagos de prima requeridos.

Sheet Bupa Global Premier
J1: RESUMEN DE BENEFICIOS | Y1: RESUMEN DE BENEFICIOS | AN1: RESUMEN DE BENEFICIOS
A5: Cotización de Seguro Médico Internacional Bupa Global Premier Health Plan Tarifas en US$ | Validas: 1 de enero de 2025
A13: Nombre del Asegurado Titular | B13: =+'INGRESO DE DATOS'!$C$37 -> John Doe
A15: Número de adultos en la póliza | B15: =+'INGRESO DE DATOS'!$C$39 -> 2
A17: Número de Dependientes en la póliza | B17: =+'INGRESO DE DATOS'!$C$41 -> 2 | C17: =IF('INGRESO DE DATOS'!$P$2=TRUE, "Cotización para dependiente de 24 años","") -> 
A19: Edad del Asegurado Titular | B19: =+'INGRESO DE DATOS'!$C$43 -> 32 | D19: Edad del/la conyuge | F19: =+'INGRESO DE DATOS'!$C$45 -> 46
A21: Fecha de la cotización | B21: =NOW() -> 2025-04-08T10:00:12.220
A23: =IF('INGRESO DE DATOS'!P3=TRUE,"Variante con coaseguro fuera del país de residencia: SI","Variante con coaseguro fuera del país de residencia: NO") -> Variante con coaseguro fuera del país de residencia: NO
A25: Deducibles | C25: PLAN 1 | D25: PLAN 2 | E25: PLAN 3 | F25: PLAN 4 | G25: PLAN 5
A26: En el país de residencia | C26: 2000 | D26: 3500 | E26: 5000 | F26: 10000 | G26: 20000
A27: Fuera del país de residencia | C27: 2000 | D27: 3500 | E27: 5000 | F27: 10000 | G27: 20000
A29: TARIFAS ANUALES
A30: Prima para Asegurado Titular | C30: =VLOOKUP($B$19,Tablas!$A$156:$G$222,3,TRUE) -> 5355 | D30: =VLOOKUP($B$19,Tablas!$A$156:$G$222,4,TRUE) -> 4374.1 | E30: =VLOOKUP($B$19,Tablas!$A$156:$G$222,5,TRUE) -> 3740 | F30: =VLOOKUP($B$19,Tablas!$A$156:$G$222,6,TRUE) -> 2733.6 | G30: =VLOOKUP($B$19,Tablas!$A$156:$H$222,7,TRUE) -> 2187.05
A31: Prima para conyuge | C31: =IF($B$15=1,0,(VLOOKUP($F$19,Tablas!$A$156:$G$222,3,TRUE))) -> 7341.45 | D31: =IF($B$15=1,0,(VLOOKUP($F$19,Tablas!$A$156:$G$222,4,TRUE))) -> 5922.8 | E31: =IF($B$15=1,0,(VLOOKUP($F$19,Tablas!$A$156:$G$222,5,TRUE))) -> 5197.75 | F31: =IF($B$15=1,0,(VLOOKUP($F$19,Tablas!$A$156:$G$222,6,TRUE))) -> 3797.8 | G31: =IF($B$15=1,0,(VLOOKUP($F$19,Tablas!$A$156:$H$222,7,TRUE))) -> 3038.75
A32: Prima para hijo (s) | C32: =IF($B$17=0,0,(VLOOKUP($B$17,Tablas!$A$223:$G$225,3,TRUE))) -> 3243.6 | D32: =IF($B$17=0,0,(VLOOKUP($B$17,Tablas!$A$223:$G$225,4,TRUE))) -> 2703.85 | E32: =IF($B$17=0,0,(VLOOKUP($B$17,Tablas!$A$223:$G$225,5,TRUE))) -> 2345.15 | F32: =IF($B$17=0,0,(VLOOKUP($B$17,Tablas!$A$223:$G$225,6,TRUE))) -> 1713.6 | G32: =IF($B$17=0,0,(VLOOKUP($B$17,Tablas!$A$223:$H$225,7,TRUE))) -> 1371.05
A33: Total de Prima neta | C33: =SUM(C30:C32) -> 15940.05 | D33: =SUM(D30:D32) -> 13000.75 | E33: =SUM(E30:E32) -> 11282.9 | F33: =SUM(F30:F32) -> 8245 | G33: =SUM(G30:G32) -> 6596.85
A34: Ajuste por la variante con coaseguro fuera del país de residencia | C34: =IF('INGRESO DE DATOS'!$P$3,C33*-15%,0) -> 0 | D34: =IF('INGRESO DE DATOS'!$P$3,D33*-15%,0) -> 0 | E34: =IF('INGRESO DE DATOS'!$P$3,E33*-15%,0) -> 0 | F34: =IF('INGRESO DE DATOS'!$P$3,F33*-15%,0) -> 0 | G34: =IF('INGRESO DE DATOS'!$P$3,G33*-15%,0) -> 0
A35: Tarifa administrativa anual | C35: 75 | D35: 75 | E35: 75 | F35: 75 | G35: 75
A36: VAT (5%) : | C36: =(C33+C34+C35)*5% -> 800.7525 | D36: =(D33+D34+D35)*5% -> 653.7875 | E36: =(E33+E34+E35)*5% -> 567.895 | F36: =(F33+F34+F35)*5% -> 416 | G36: =(G33+G34+G35)*5% -> 333.5925
A37: ITBMS (7%) | C37: 0 | D37: 0 | E37: 0 | F37: 0 | G37: 0
A38: TOTAL ANUAL | C38: =SUM(C33:C37) -> 16815.8025 | D38: =SUM(D33:D37) -> 13729.5375 | E38: =SUM(E33:E37) -> 11925.795 | F38: =SUM(F33:F37) -> 8736 | G38: =SUM(G33:G37) -> 7005.4425
A40: TARIFAS SEMESTRALES
A41: Prima para Asegurado Titular | C41: =VLOOKUP($B$19,Tablas!$A$533:$G$599,3,TRUE) -> 2838.15 | D41: =VLOOKUP($B$19,Tablas!$A$533:$G$599,4,TRUE) -> 2318.273 | E41: =VLOOKUP($B$19,Tablas!$A$533:$G$599,5,TRUE) -> 1982.2 | F41: =VLOOKUP($B$19,Tablas!$A$533:$G$599,6,TRUE) -> 1448.808 | G41: =VLOOKUP($B$19,Tablas!$A$533:$H$599,7,TRUE) -> 1159.1365
A42: Prima para conyuge | C42: =IF($B$15=1,0,(VLOOKUP($F$19,Tablas!$A$533:$G$599,3,TRUE))) -> 3890.9685 | D42: =IF($B$15=1,0,(VLOOKUP($F$19,Tablas!$A$533:$G$599,4,TRUE))) -> 3139.084 | E42: =IF($B$15=1,0,(VLOOKUP($F$19,Tablas!$A$533:$G$599,5,TRUE))) -> 2754.8075 | F42: =IF($B$15=1,0,(VLOOKUP($F$19,Tablas!$A$533:$G$599,6,TRUE))) -> 2012.834 | G42: =IF($B$15=1,0,(VLOOKUP($F$19,Tablas!$A$533:$H$599,7,TRUE))) -> 1610.5375
A43: Prima para hijo (s) | C43: =IF($B$17=0,0,(VLOOKUP($B$17,Tablas!$A$600:$G$602,3,TRUE))) -> 1719.108 | D43: =IF($B$17=0,0,(VLOOKUP($B$17,Tablas!$A$600:$G$602,4,TRUE))) -> 1433.0405 | E43: =IF($B$17=0,0,(VLOOKUP($B$17,Tablas!$A$600:$G$602,5,TRUE))) -> 1242.9295 | F43: =IF($B$17=0,0,(VLOOKUP($B$17,Tablas!$A$600:$G$602,6,TRUE))) -> 908.208 | G43: =IF($B$17=0,0,(VLOOKUP($B$17,Tablas!$A$600:$H$602,7,TRUE))) -> 726.6565
A44: Total de Prima neta | C44: =SUM(C41:C43) -> 8448.2265 | D44: =SUM(D41:D43) -> 6890.3975 | E44: =SUM(E41:E43) -> 5979.937 | F44: =SUM(F41:F43) -> 4369.85 | G44: =SUM(G41:G43) -> 3496.3305
A45: Ajuste por la variante con coaseguro fuera del país de residencia | C45: =IF('INGRESO DE DATOS'!$P$3,C44*-15%,0) -> 0 | D45: =IF('INGRESO DE DATOS'!$P$3,D44*-15%,0) -> 0 | E45: =IF('INGRESO DE DATOS'!$P$3,E44*-15%,0) -> 0 | F45: =IF('INGRESO DE DATOS'!$P$3,F44*-15%,0) -> 0 | G45: =IF('INGRESO DE DATOS'!$P$3,G44*-15%,0) -> 0
A46: Tarifa administrativa anual | C46: 75 | D46: 75 | E46: 75 | F46: 75 | G46: 75
A47: VAT (5%) : | C47: =(C44+C45+C46)*5% -> 426.161325 | D47: =(D44+D45+D46)*5% -> 348.269875 | E47: =(E44+E45+E46)*5% -> 302.74685 | F47: =(F44+F45+F46)*5% -> 222.2425 | G47: =(G44+G45+G46)*5% -> 178.566525
A48: ITBMS (7%) | C48: 0 | D48: 0 | E48: 0 | F48: 0 | G48: 0
A49: TOTAL de primera cuota | C49: =SUM(C44:C48) -> 8949.387825 | D49: =SUM(D44:D48) -> 7313.667375 | E49: =SUM(E44:E48) -> 6357.68385 | F49: =SUM(F44:F48) -> 4667.0925 | G49: =SUM(G44:G48) -> 3749.897025
A50: Costo de segunda cuota | C50: =(C44+C45)*1.05 -> 8870.637825 | D50: =(D44+D45)*1.05 -> 7234.917375 | E50: =(E44+E45)*1.05 -> 6278.93385 | F50: =(F44+F45)*1.05 -> 4588.3425 | G50: =(G44+G45)*1.05 -> 3671.147025
A51: TOTAL ANUAL | C51: =C49+C50 -> 17820.02565 | D51: =D49+D50 -> 14548.58475 | E51: =E49+E50 -> 12636.6177 | F51: =F49+F50 -> 9255.435 | G51: =G49+G50 -> 7421.04405
A53: TARIFAS TRIMESTRALES
A54: Prima para Asegurado Titular | C54: =VLOOKUP($B$19,Tablas!$A$760:$G$826,3,TRUE) -> 1472.625 | D54: =VLOOKUP($B$19,Tablas!$A$760:$G$826,4,TRUE) -> 1202.8775 | E54: =VLOOKUP($B$19,Tablas!$A$760:$G$826,5,TRUE) -> 1028.5 | F54: =VLOOKUP($B$19,Tablas!$A$760:$G$826,6,TRUE) -> 751.74 | G54: =VLOOKUP($B$19,Tablas!$A$760:$H$826,7,TRUE) -> 601.43875
A55: Prima para conyuge | C55: =IF($B$15=1,0,(VLOOKUP($F$19,Tablas!$A$760:$G$826,3,TRUE))) -> 2018.89875 | D55: =IF($B$15=1,0,(VLOOKUP($F$19,Tablas!$A$760:$G$826,4,TRUE))) -> 1628.77 | E55: =IF($B$15=1,0,(VLOOKUP($F$19,Tablas!$A$760:$G$826,5,TRUE))) -> 1429.38125 | F55: =IF($B$15=1,0,(VLOOKUP($F$19,Tablas!$A$760:$G$826,6,TRUE))) -> 1044.395 | G55: =IF($B$15=1,0,(VLOOKUP($F$19,Tablas!$A$760:$H$826,7,TRUE))) -> 835.65625
A56: Prima para hijo (s) | C56: =IF($B$17=0,0,(VLOOKUP($B$17,Tablas!$A$827:$G$829,3,TRUE))) -> 891.99 | D56: =IF($B$17=0,0,(VLOOKUP($B$17,Tablas!$A$827:$G$829,4,TRUE))) -> 743.55875 | E56: =IF($B$17=0,0,(VLOOKUP($B$17,Tablas!$A$827:$G$829,5,TRUE))) -> 644.91625 | F56: =IF($B$17=0,0,(VLOOKUP($B$17,Tablas!$A$827:$G$829,6,TRUE))) -> 471.24 | G56: =IF($B$17=0,0,(VLOOKUP($B$17,Tablas!$A$827:$H$829,7,TRUE))) -> 377.03875
A57: Total de Prima neta | C57: =SUM(C54:C56) -> 4383.51375 | D57: =SUM(D54:D56) -> 3575.20625 | E57: =SUM(E54:E56) -> 3102.7975 | F57: =SUM(F54:F56) -> 2267.375 | G57: =SUM(G54:G56) -> 1814.13375
A58: Ajuste por la variante con coaseguro fuera del país de residencia | C58: =IF('INGRESO DE DATOS'!$P$3,C57*-15%,0) -> 0 | D58: =IF('INGRESO DE DATOS'!$P$3,D57*-15%,0) -> 0 | E58: =IF('INGRESO DE DATOS'!$P$3,E57*-15%,0) -> 0 | F58: =IF('INGRESO DE DATOS'!$P$3,F57*-15%,0) -> 0 | G58: =IF('INGRESO DE DATOS'!$P$3,G57*-15%,0) -> 0
A59: Tarifa administrativa anual | C59: 75 | D59: 75 | E59: 75 | F59: 75 | G59: 75
A60: VAT (5%) : | C60: =(C57+C58+C59)*5% -> 222.9256875 | D60: =(D57+D58+D59)*5% -> 182.5103125 | E60: =(E57+E58+E59)*5% -> 158.889875 | F60: =(F57+F58+F59)*5% -> 117.11875 | G60: =(G57+G58+G59)*5% -> 94.4566875
A61: ITBMS (7%) | C61: 0 | D61: 0 | E61: 0 | F61: 0 | G61: 0
A62: TOTAL de primera cuota | C62: =SUM(C57:C61) -> 4681.439438 | D62: =SUM(D57:D61) -> 3832.716563 | E62: =SUM(E57:E61) -> 3336.687375 | F62: =SUM(F57:F61) -> 2459.49375 | G62: =SUM(G57:G61) -> 1983.590438
A63: Costo de tarifa trimestral 2 a 4 | C63: =(C57+C58)*1.05 -> 4602.689438 | D63: =(D57+D58)*1.05 -> 3753.966563 | E63: =(E57+E58)*1.05 -> 3257.937375 | F63: =(F57+F58)*1.05 -> 2380.74375 | G63: =(G57+G58)*1.05 -> 1904.840438
A64: TOTAL ANUAL | C64: =C62+(C63*3) -> 18489.50775 | D64: =D62+(D63*3) -> 15094.61625 | E64: =E62+(E63*3) -> 13110.4995 | F64: =F62+(F63*3) -> 9601.725 | G64: =G62+(G63*3) -> 7698.11175
A66: TARIFAS MENSUALES
A67: Prima para Asegurado Titular | C67: =VLOOKUP($B$19,Tablas!$A$230:$G$296,3,TRUE) -> 499.8 | D67: =VLOOKUP($B$19,Tablas!$A$230:$G$296,4,TRUE) -> 408.2493333 | E67: =VLOOKUP($B$19,Tablas!$A$230:$G$296,5,TRUE) -> 349.0666667 | F67: =VLOOKUP($B$19,Tablas!$A$230:$G$296,6,TRUE) -> 255.136 | G67: =VLOOKUP($B$19,Tablas!$A$230:$H$296,7,TRUE) -> 204.1246667
A68: Prima para conyuge | C68: =IF($B$15=1,0,(VLOOKUP($F$19,Tablas!$A$230:$G$296,3,TRUE))) -> 685.202 | D68: =IF($B$15=1,0,(VLOOKUP($F$19,Tablas!$A$230:$G$296,4,TRUE))) -> 552.7946667 | E68: =IF($B$15=1,0,(VLOOKUP($F$19,Tablas!$A$230:$G$296,5,TRUE))) -> 485.1233333 | F68: =IF($B$15=1,0,(VLOOKUP($F$19,Tablas!$A$230:$G$296,6,TRUE))) -> 354.4613333 | G68: =IF($B$15=1,0,(VLOOKUP($F$19,Tablas!$A$230:$H$296,7,TRUE))) -> 283.6166667
A69: Prima para hijo (s) | C69: =IF($B$17=0,0,(VLOOKUP($B$17,Tablas!$A$297:$G$299,3,TRUE))) -> 302.736 | D69: =IF($B$17=0,0,(VLOOKUP($B$17,Tablas!$A$297:$G$299,4,TRUE))) -> 252.3593333 | E69: =IF($B$17=0,0,(VLOOKUP($B$17,Tablas!$A$297:$G$299,5,TRUE))) -> 218.8806667 | F69: =IF($B$17=0,0,(VLOOKUP($B$17,Tablas!$A$297:$G$299,6,TRUE))) -> 159.936 | G69: =IF($B$17=0,0,(VLOOKUP($B$17,Tablas!$A$297:$H$299,7,TRUE))) -> 127.9646667
A70: Total de Prima neta | C70: =SUM(C67:C69) -> 1487.738 | D70: =SUM(D67:D69) -> 1213.403333 | E70: =SUM(E67:E69) -> 1053.070667 | F70: =SUM(F67:F69) -> 769.5333333 | G70: =SUM(G67:G69) -> 615.706
A71: Ajuste por la variante con coaseguro fuera del país de residencia | C71: =IF('INGRESO DE DATOS'!$P$3,C70*-15%,0) -> 0 | D71: =IF('INGRESO DE DATOS'!$P$3,D70*-15%,0) -> 0 | E71: =IF('INGRESO DE DATOS'!$P$3,E70*-15%,0) -> 0 | F71: =IF('INGRESO DE DATOS'!$P$3,F70*-15%,0) -> 0 | G71: =IF('INGRESO DE DATOS'!$P$3,G70*-15%,0) -> 0
A72: Tarifa administrativa anual | C72: 75 | D72: 75 | E72: 75 | F72: 75 | G72: 75
A73: VAT (5%) : | C73: =(C70+C71+C72)*5% -> 78.1369 | D73: =(D70+D71+D72)*5% -> 64.42016667 | E73: =(E70+E71+E72)*5% -> 56.40353333 | F73: =(F70+F71+F72)*5% -> 42.22666667 | G73: =(G70+G71+G72)*5% -> 34.5353
A74: ITBMS (7%) | C74: 0 | D74: 0 | E74: 0 | F74: 0 | G74: 0
A75: TOTAL de primera cuota | C75: =SUM(C70:C74) -> 1640.8749 | D75: =SUM(D70:D74) -> 1352.8235 | E75: =SUM(E70:E74) -> 1184.4742 | F75: =SUM(F70:F74) -> 886.76 | G75: =SUM(G70:G74) -> 725.2413
A76: Costo de Tarifa mensual de 2 a 12 | C76: =(C70+C71)*1.05 -> 1562.1249 | D76: =(D70+D71)*1.05 -> 1274.0735 | E76: =(E70+E71)*1.05 -> 1105.7242 | F76: =(F70+F71)*1.05 -> 808.01 | G76: =(G70+G71)*1.05 -> 646.4913
A77: TOTAL ANUAL | C77: =C75+(C76*11) -> 18824.2488 | D77: =D75+(D76*11) -> 15367.632 | E77: =E75+(E76*11) -> 13347.4404 | F77: =F75+(F76*11) -> 9774.87 | G77: =G75+(G76*11) -> 7836.6456
A79: Este presupuesto solamente tiene carácter informativo y en ningún momento expresa compromiso legal para suministrarle cobertura de seguro. La emisión de una póliza de seguro Bupa está sujeta a todas las evaluaciones de riesgo por parte de Bupa y a la recepción de todos los pagos de prima requeridos.

Sheet Bupa Global Select
J1: RESUMEN DE BENEFICIOS | Y1: RESUMEN DE BENEFICIOS | AN1: RESUMEN DE BENEFICIOS
A5: Cotización de Seguro Médico Internacional Bupa Global Select Health Plan Tarifas en US$ | Validas: 1 de enero de 2025
A13: Nombre del Asegurado Titular | B13: =+'INGRESO DE DATOS'!$C$37 -> John Doe
A15: Número de adultos en la póliza | B15: =+'INGRESO DE DATOS'!$C$39 -> 2
A17: Número de Dependientes en la póliza | B17: =+'INGRESO DE DATOS'!$C$41 -> 2 | C17: =IF('INGRESO DE DATOS'!$P$2=TRUE, "Cotización para dependiente de 24 años","") -> 
A19: Edad del Asegurado Titular | B19: =+'INGRESO DE DATOS'!$C$43 -> 32 | D19: Edad del/la conyuge | F19: =+'INGRESO DE DATOS'!$C$45 -> 46
A21: Fecha de la cotización | B21: =NOW() -> 2025-04-08T10:00:12.220
A23: =IF('INGRESO DE DATOS'!P3=TRUE,"Variante con coaseguro fuera del país de residencia: SI","Variante con coaseguro fuera del país de residencia: NO") -> Variante con coaseguro fuera del país de residencia: NO
A25: DEDUCIBLES | C25: PLAN 1 | D25: PLAN 2 | E25: PLAN 3 | F25: PLAN 4 | G25: PLAN 5
A26: En el país de residencia | C26: 2000 | D26: 3500 | E26: 5000 | F26: 10000 | G26: 20000
A27: Fuera del país de residencia | C27: 2000 | D27: 3500 | E27: 5000 | F27: 10000 | G27: 20000
A29: TARIFAS ANUALES
A30: Prima para Asegurado Titular | C30: =VLOOKUP($B$19,Tablas!$A$307:$G$373,3,TRUE) -> 3722.15 | D30: =VLOOKUP($B$19,Tablas!$A$307:$G$373,4,TRUE) -> 3046.4 | E30: =VLOOKUP($B$19,Tablas!$A$307:$G$373,5,TRUE) -> 2715.75 | F30: =VLOOKUP($B$19,Tablas!$A$307:$G$373,6,TRUE) -> 1984.75 | G30: =VLOOKUP($B$19,Tablas!$A$307:$H$373,7,TRUE) -> 1587.8
A31: Prima para conyuge | C31: =IF($B$15=1,0,(VLOOKUP($F$19,Tablas!$A$307:$G$373,3,TRUE))) -> 5288.7 | D31: =IF($B$15=1,0,(VLOOKUP($F$19,Tablas!$A$307:$G$373,4,TRUE))) -> 4268.7 | E31: =IF($B$15=1,0,(VLOOKUP($F$19,Tablas!$A$307:$G$373,5,TRUE))) -> 3770.6 | F31: =IF($B$15=1,0,(VLOOKUP($F$19,Tablas!$A$307:$G$373,6,TRUE))) -> 2755.7 | G31: =IF($B$15=1,0,(VLOOKUP($F$19,Tablas!$A$307:$H$373,7,TRUE))) -> 2204.9
A32: Prima para hijo (s) | C32: =IF($B$17=0,0,(VLOOKUP($B$17,Tablas!$A$374:$G$376,3,TRUE))) -> 2436.95 | D32: =IF($B$17=0,0,(VLOOKUP($B$17,Tablas!$A$374:$G$376,4,TRUE))) -> 2041.7 | E32: =IF($B$17=0,0,(VLOOKUP($B$17,Tablas!$A$374:$G$376,5,TRUE))) -> 1849.6 | F32: =IF($B$17=0,0,(VLOOKUP($B$17,Tablas!$A$374:$G$376,6,TRUE))) -> 1352.35 | G32: =IF($B$17=0,0,(VLOOKUP($B$17,Tablas!$A$374:$H$376,7,TRUE))) -> 1082.05
A33: Total de Prima neta | C33: =SUM(C30:C32) -> 11447.8 | D33: =SUM(D30:D32) -> 9356.8 | E33: =SUM(E30:E32) -> 8335.95 | F33: =SUM(F30:F32) -> 6092.8 | G33: =SUM(G30:G32) -> 4874.75
A34: Ajuste por la variante con coaseguro fuera del país de residencia | C34: =IF('INGRESO DE DATOS'!$P$3,C33*-15%,0) -> 0 | D34: =IF('INGRESO DE DATOS'!$P$3,D33*-15%,0) -> 0 | E34: =IF('INGRESO DE DATOS'!$P$3,E33*-15%,0) -> 0 | F34: =IF('INGRESO DE DATOS'!$P$3,F33*-15%,0) -> 0 | G34: =IF('INGRESO DE DATOS'!$P$3,G33*-15%,0) -> 0
A35: Tarifa administrativa anual | C35: 75 | D35: 75 | E35: 75 | F35: 75 | G35: 76
A36: VAT (5%) : | C36: =(C33+C34+C35)*5% -> 576.14 | D36: =(D33+D34+D35)*5% -> 471.59 | E36: =(E33+E34+E35)*5% -> 420.5475 | F36: =(F33+F34+F35)*5% -> 308.39 | G36: =(G33+G34+G35)*5% -> 247.5375
A37: ITBMS (7%) | C37: 0 | D37: 0 | E37: 0 | F37: 0 | G37: 0
A38: TOTAL ANUAL | C38: =SUM(C33:C37) -> 12098.94 | D38: =SUM(D33:D37) -> 9903.39 | E38: =SUM(E33:E37) -> 8831.4975 | F38: =SUM(F33:F37) -> 6476.19 | G38: =SUM(G33:G37) -> 5198.2875
A40: TARIFAS SEMESTRALES
A41: Prima para Asegurado Titular | C41: =VLOOKUP($B$19,Tablas!$A$608:$G$674,3,TRUE) -> 1972.7395 | D41: =VLOOKUP($B$19,Tablas!$A$608:$G$674,4,TRUE) -> 1614.592 | E41: =VLOOKUP($B$19,Tablas!$A$608:$G$674,5,TRUE) -> 1439.3475 | F41: =VLOOKUP($B$19,Tablas!$A$608:$G$674,6,TRUE) -> 1051.9175 | G41: =VLOOKUP($B$19,Tablas!$A$608:$H$674,7,TRUE) -> 841.534
A42: Prima para conyuge | C42: =IF($B$15=1,0,(VLOOKUP($F$19,Tablas!$A$608:$G$674,3,TRUE))) -> 2803.011 | D42: =IF($B$15=1,0,(VLOOKUP($F$19,Tablas!$A$608:$G$674,4,TRUE))) -> 2262.411 | E42: =IF($B$15=1,0,(VLOOKUP($F$19,Tablas!$A$608:$G$674,5,TRUE))) -> 1998.418 | F42: =IF($B$15=1,0,(VLOOKUP($F$19,Tablas!$A$608:$G$674,6,TRUE))) -> 1460.521 | G42: =IF($B$15=1,0,(VLOOKUP($F$19,Tablas!$A$608:$H$674,7,TRUE))) -> 1168.597
A43: Prima para hijo (s) | C43: =IF($B$17=0,0,(VLOOKUP($B$17,Tablas!$A$675:$G$677,3,TRUE))) -> 1291.5835 | D43: =IF($B$17=0,0,(VLOOKUP($B$17,Tablas!$A$675:$G$677,4,TRUE))) -> 1082.101 | E43: =IF($B$17=0,0,(VLOOKUP($B$17,Tablas!$A$675:$G$677,5,TRUE))) -> 980.288 | F43: =IF($B$17=0,0,(VLOOKUP($B$17,Tablas!$A$675:$G$677,6,TRUE))) -> 716.7455 | G43: =IF($B$17=0,0,(VLOOKUP($B$17,Tablas!$A$675:$H$677,7,TRUE))) -> 573.4865
A44: Total de Prima neta | C44: =SUM(C41:C43) -> 6067.334 | D44: =SUM(D41:D43) -> 4959.104 | E44: =SUM(E41:E43) -> 4418.0535 | F44: =SUM(F41:F43) -> 3229.184 | G44: =SUM(G41:G43) -> 2583.6175
A45: Ajuste por la variante con coaseguro fuera del país de residencia | C45: =IF('INGRESO DE DATOS'!$P$3,C44*-15%,0) -> 0 | D45: =IF('INGRESO DE DATOS'!$P$3,D44*-15%,0) -> 0 | E45: =IF('INGRESO DE DATOS'!$P$3,E44*-15%,0) -> 0 | F45: =IF('INGRESO DE DATOS'!$P$3,F44*-15%,0) -> 0 | G45: =IF('INGRESO DE DATOS'!$P$3,G44*-15%,0) -> 0
A46: Tarifa administrativa anual | C46: 75 | D46: 75 | E46: 75 | F46: 75 | G46: 76
A47: VAT (5%) : | C47: =(C44+C45+C46)*5% -> 307.1167 | D47: =(D44+D45+D46)*5% -> 251.7052 | E47: =(E44+E45+E46)*5% -> 224.652675 | F47: =(F44+F45+F46)*5% -> 165.2092 | G47: =(G44+G45+G46)*5% -> 132.980875
A48: ITBMS (7%) | C48: 0 | D48: 0 | E48: 0 | F48: 0 | G48: 0
A49: TOTAL de primera cuota | C49: =SUM(C44:C48) -> 6449.4507 | D49: =SUM(D44:D48) -> 5285.8092 | E49: =SUM(E44:E48) -> 4717.706175 | F49: =SUM(F44:F48) -> 3469.3932 | G49: =SUM(G44:G48) -> 2792.598375
A50: Costo de segunda cuota | C50: =(C44+C45)*1.05 -> 6370.7007 | D50: =(D44+D45)*1.05 -> 5207.0592 | E50: =(E44+E45)*1.05 -> 4638.956175 | F50: =(F44+F45)*1.05 -> 3390.6432 | G50: =(G44+G45)*1.05 -> 2712.798375
A51: TOTAL ANUAL | C51: =C49+C50 -> 12820.1514 | D51: =D49+D50 -> 10492.8684 | E51: =E49+E50 -> 9356.66235 | F51: =F49+F50 -> 6860.0364 | G51: =G49+G50 -> 5505.39675
A53: TARIFAS TRIMESTRALES
A54: Prima para Asegurado Titular | C54: =VLOOKUP($B$19,Tablas!$A$835:$G$901,3,TRUE) -> 1023.59125 | D54: =VLOOKUP($B$19,Tablas!$A$835:$G$901,4,TRUE) -> 837.76 | E54: =VLOOKUP($B$19,Tablas!$A$835:$G$901,5,TRUE) -> 746.83125 | F54: =VLOOKUP($B$19,Tablas!$A$835:$G$901,6,TRUE) -> 545.80625 | G54: =VLOOKUP($B$19,Tablas!$A$835:$H$901,7,TRUE) -> 436.645
A55: Prima para conyuge | C55: =IF($B$15=1,0,(VLOOKUP($F$19,Tablas!$A$835:$G$901,3,TRUE))) -> 1454.3925 | D55: =IF($B$15=1,0,(VLOOKUP($F$19,Tablas!$A$835:$G$901,4,TRUE))) -> 1173.8925 | E55: =IF($B$15=1,0,(VLOOKUP($F$19,Tablas!$A$835:$G$901,5,TRUE))) -> 1036.915 | F55: =IF($B$15=1,0,(VLOOKUP($F$19,Tablas!$A$835:$G$901,6,TRUE))) -> 757.8175 | G55: =IF($B$15=1,0,(VLOOKUP($F$19,Tablas!$A$835:$H$901,7,TRUE))) -> 606.3475
A56: Prima para hijo (s) | C56: =IF($B$17=0,0,(VLOOKUP($B$17,Tablas!$A$902:$G$904,3,TRUE))) -> 670.16125 | D56: =IF($B$17=0,0,(VLOOKUP($B$17,Tablas!$A$902:$G$904,4,TRUE))) -> 561.4675 | E56: =IF($B$17=0,0,(VLOOKUP($B$17,Tablas!$A$902:$G$904,5,TRUE))) -> 508.64 | F56: =IF($B$17=0,0,(VLOOKUP($B$17,Tablas!$A$902:$G$904,6,TRUE))) -> 371.89625 | G56: =IF($B$17=0,0,(VLOOKUP($B$17,Tablas!$A$902:$H$904,7,TRUE))) -> 297.56375
A57: Total de Prima neta | C57: =SUM(C54:C56) -> 3148.145 | D57: =SUM(D54:D56) -> 2573.12 | E57: =SUM(E54:E56) -> 2292.38625 | F57: =SUM(F54:F56) -> 1675.52 | G57: =SUM(G54:G56) -> 1340.55625
A58: Ajuste por la variante con coaseguro fuera del país de residencia | C58: =IF('INGRESO DE DATOS'!$P$3,C57*-15%,0) -> 0 | D58: =IF('INGRESO DE DATOS'!$P$3,D57*-15%,0) -> 0 | E58: =IF('INGRESO DE DATOS'!$P$3,E57*-15%,0) -> 0 | F58: =IF('INGRESO DE DATOS'!$P$3,F57*-15%,0) -> 0 | G58: =IF('INGRESO DE DATOS'!$P$3,G57*-15%,0) -> 0
A59: Tarifa administrativa anual | C59: 75 | D59: 75 | E59: 75 | F59: 75 | G59: 76
A60: VAT (5%) : | C60: =(C57+C58+C59)*5% -> 161.15725 | D60: =(D57+D58+D59)*5% -> 132.406 | E60: =(E57+E58+E59)*5% -> 118.3693125 | F60: =(F57+F58+F59)*5% -> 87.526 | G60: =(G57+G58+G59)*5% -> 70.8278125
A61: ITBMS (7%) | C61: 0 | D61: 0 | E61: 0 | F61: 0 | G61: 0
A62: TOTAL de primera cuota | C62: =SUM(C57:C61) -> 3384.30225 | D62: =SUM(D57:D61) -> 2780.526 | E62: =SUM(E57:E61) -> 2485.755562 | F62: =SUM(F57:F61) -> 1838.046 | G62: =SUM(G57:G61) -> 1487.384063
A63: Costo de tarifa trimestral 2 a 4 | C63: =(C57+C58)*1.05 -> 3305.55225 | D63: =(D57+D58)*1.05 -> 2701.776 | E63: =(E57+E58)*1.05 -> 2407.005562 | F63: =(F57+F58)*1.05 -> 1759.296 | G63: =(G57+G58)*1.05 -> 1407.584063
A64: TOTAL ANUAL | C64: =C62+(C63*3) -> 13300.959 | D64: =D62+(D63*3) -> 10885.854 | E64: =E62+(E63*3) -> 9706.77225 | F64: =F62+(F63*3) -> 7115.934 | G64: =G62+(G63*3) -> 5710.13625
A66: TARIFAS MENSUALES
A67: Prima para Asegurado Titular | C67: =VLOOKUP($B$19,Tablas!$A$381:$G$447,3,TRUE) -> 347.4006667 | D67: =VLOOKUP($B$19,Tablas!$A$381:$G$447,4,TRUE) -> 284.3306667 | E67: =VLOOKUP($B$19,Tablas!$A$381:$G$447,5,TRUE) -> 253.47 | F67: =VLOOKUP($B$19,Tablas!$A$381:$G$447,6,TRUE) -> 185.2433333 | G67: =VLOOKUP($B$19,Tablas!$A$381:$H$447,7,TRUE) -> 148.1946667
A68: Prima para conyuge | C68: =IF($B$15=1,0,(VLOOKUP($F$19,Tablas!$A$381:$G$447,3,TRUE))) -> 493.612 | D68: =IF($B$15=1,0,(VLOOKUP($F$19,Tablas!$A$381:$G$447,4,TRUE))) -> 398.412 | E68: =IF($B$15=1,0,(VLOOKUP($F$19,Tablas!$A$381:$G$447,5,TRUE))) -> 351.9226667 | F68: =IF($B$15=1,0,(VLOOKUP($F$19,Tablas!$A$381:$G$447,6,TRUE))) -> 257.1986667 | G68: =IF($B$15=1,0,(VLOOKUP($F$19,Tablas!$A$381:$H$447,7,TRUE))) -> 205.7906667
A69: Prima para hijo (s) | C69: =IF($B$17=0,0,(VLOOKUP($B$17,Tablas!$A$448:$G$450,3,TRUE))) -> 227.4486667 | D69: =IF($B$17=0,0,(VLOOKUP($B$17,Tablas!$A$448:$G$450,4,TRUE))) -> 190.5586667 | E69: =IF($B$17=0,0,(VLOOKUP($B$17,Tablas!$A$448:$G$450,5,TRUE))) -> 172.6293333 | F69: =IF($B$17=0,0,(VLOOKUP($B$17,Tablas!$A$448:$G$450,6,TRUE))) -> 126.2193333 | G69: =IF($B$17=0,0,(VLOOKUP($B$17,Tablas!$A$448:$H$450,7,TRUE))) -> 100.9913333
A70: Total de Prima neta | C70: =SUM(C67:C69) -> 1068.461333 | D70: =SUM(D67:D69) -> 873.3013333 | E70: =SUM(E67:E69) -> 778.022 | F70: =SUM(F67:F69) -> 568.6613333 | G70: =SUM(G67:G69) -> 454.9766667
A71: Ajuste por la variante con coaseguro fuera del país de residencia | C71: =IF('INGRESO DE DATOS'!$P$3,C70*-15%,0) -> 0 | D71: =IF('INGRESO DE DATOS'!$P$3,D70*-15%,0) -> 0 | E71: =IF('INGRESO DE DATOS'!$P$3,E70*-15%,0) -> 0 | F71: =IF('INGRESO DE DATOS'!$P$3,F70*-15%,0) -> 0 | G71: =IF('INGRESO DE DATOS'!$P$3,G70*-15%,0) -> 0
A72: Tarifa administrativa anual | C72: 75 | D72: 75 | E72: 75 | F72: 75 | G72: 76
A73: VAT (5%) : | C73: =(C70+C71+C72)*5% -> 57.17306667 | D73: =(D70+D71+D72)*5% -> 47.41506667 | E73: =(E70+E71+E72)*5% -> 42.6511 | F73: =(F70+F71+F72)*5% -> 32.18306667 | G73: =(G70+G71+G72)*5% -> 26.54883333
A74: ITBMS (7%) | C74: 0 | D74: 0 | E74: 0 | F74: 0 | G74: 0
A75: TOTAL de primera cuota | C75: =SUM(C70:C74) -> 1200.6344 | D75: =SUM(D70:D74) -> 995.7164 | E75: =SUM(E70:E74) -> 895.6731 | F75: =SUM(F70:F74) -> 675.8444 | G75: =SUM(G70:G74) -> 557.5255
A76: Costo de Tarifa mensual de 2 a 12 | C76: =(C70+C71)*1.05 -> 1121.8844 | D76: =(D70+D71)*1.05 -> 916.9664 | E76: =(E70+E71)*1.05 -> 816.9231 | F76: =(F70+F71)*1.05 -> 597.0944 | G76: =(G70+G71)*1.05 -> 477.7255
A77: TOTAL ANUAL | C77: =C75+(C76*11) -> 13541.3628 | D77: =D75+(D76*11) -> 11082.3468 | E77: =E75+(E76*11) -> 9881.8272 | F77: =F75+(F76*11) -> 7243.8828 | G77: =G75+(G76*11) -> 5812.506
A79: Este presupuesto solamente tiene carácter informativo y en ningún momento expresa compromiso legal para suministrarle cobertura de seguro. La emisión de una póliza de seguro Bupa está sujeta a todas las evaluaciones de riesgo por parte de Bupa y a la recepción de todos los pagos de prima requeridos.

Sheet Bupa Global Major Medical
G1: RESUMEN DE BENEFICIOS | V1: RESUMEN DE BENEFICIOS
A5: Cotización de Seguro Médico Internacional Bupa Global Major Medical Health Plan Tarifas en US$ | Validas: 1 de enero de 2025
A13: Nombre del Asegurado Titular | B13: =+'INGRESO DE DATOS'!$C$37 -> John Doe
A15: Número de adultos en la póliza | B15: =+'INGRESO DE DATOS'!$C$39 -> 2
A17: Número de Dependientes en la póliza | B17: =+'INGRESO DE DATOS'!$C$41 -> 2 | C17: =IF('INGRESO DE DATOS'!$P$2=TRUE, "Cotización para dependiente de 24 años","") -> 
A19: Edad del Asegurado Titular | B19: =+'INGRESO DE DATOS'!$C$43 -> 32 | C19: Edad del/la conyuge | D19: =+'INGRESO DE DATOS'!$C$45 -> 46
A21: Fecha de la cotización | B21: =NOW() -> 2025-04-08T10:00:12.220
A23: DEDUCIBLeS | C23: PLAN 1 | D23: PLAN 2
A24: En el país de residencia | C24: 10000 | D24: 20000
A25: Fuera del país de residencia | C25: 10000 | D25: 20000
A27: TARIFAS ANUALES
A28: Prima para Asegurado Titular | C28: =VLOOKUP($B$19,Tablas!$A$1138:$G$1204,3,TRUE) -> 1950.75 | D28: =VLOOKUP($B$19,Tablas!$A$1138:$G$1204,4,TRUE) -> 1485.8
A29: Prima para conyuge | C29: =IF($B$15=1,0,(VLOOKUP($D$19,Tablas!$A$1138:$G$1204,3,TRUE))) -> 2681.75 | D29: =IF($B$15=1,0,(VLOOKUP($D$19,Tablas!$A$1138:$G$1204,4,TRUE))) -> 2034.9
A30: Prima para hijo (s) | C30: =IF($B$17=0,0,(VLOOKUP($B$17,Tablas!$A$1205:$G$1207,3,TRUE))) -> 1174.7 | D30: =IF($B$17=0,0,(VLOOKUP($B$17,Tablas!$A$1205:$G$1207,4,TRUE))) -> 922.25
A31: Total de Prima neta | C31: =SUM(C28:C30) -> 5807.2 | D31: =SUM(D28:D30) -> 4442.95
A32: Tarifa administrativa anual | C32: 75 | D32: 75
A33: VAT (5%) : | C33: =(C31+C32)*5% -> 294.11 | D33: =(D31+D32)*5% -> 225.8975
A34: ITBMS (7%) | C34: 0 | D34: 0
A35: TOTAL ANUAL | C35: =SUM(C31:C34) -> 6176.31 | D35: =SUM(D31:D34) -> 4743.8475
A37: TARIFAS SEMESTRALES
A38: Prima para Asegurado Titular | C38: =VLOOKUP($B$19,Tablas!$A$1362:$G$1428,3,TRUE) -> 1033.8975 | D38: =VLOOKUP($B$19,Tablas!$A$1362:$G$1428,4,TRUE) -> 787.474
A39: Prima para conyuge | C39: =IF($B$15=1,0,(VLOOKUP($D$19,Tablas!$A$1362:$G$1428,3,TRUE))) -> 1421.3275 | D39: =IF($B$15=1,0,(VLOOKUP($D$19,Tablas!$A$1362:$G$1428,4,TRUE))) -> 1078.497
A40: Prima para hijo (s) | C40: =IF($B$17=0,0,(VLOOKUP($B$17,Tablas!$A$1429:$G$1431,3,TRUE))) -> 622.591 | D40: =IF($B$17=0,0,(VLOOKUP($B$17,Tablas!$A$1429:$G$1431,4,TRUE))) -> 488.7925
A41: Total de Prima neta | C41: =SUM(C38:C40) -> 3077.816 | D41: =SUM(D38:D40) -> 2354.7635
A42: Tarifa administrativa anual | C42: 75 | D42: 75
A43: VAT (5%) : | C43: =(C41+C42)*5% -> 157.6408 | D43: =(D41+D42)*5% -> 121.488175
A44: ITBMS (7%) | C44: 0 | D44: 0
A45: TOTAL de primera cuota | C45: =SUM(C41:C44) -> 3310.4568 | D45: =SUM(D41:D44) -> 2551.251675
A46: Costo de segunda cuota | C46: =C41*1.05 -> 3231.7068 | D46: =D41*1.05 -> 2472.501675
A47: TOTAL ANUAL | C47: =C45+C46 -> 6542.1636 | D47: =D45+D46 -> 5023.75335
A49: TARIFAS TRIMESTRALES
A50: Prima para Asegurado Titular | C50: =VLOOKUP($B$19,Tablas!$A$1287:$G$1353,3,TRUE) -> 536.45625 | D50: =VLOOKUP($B$19,Tablas!$A$1287:$G$1353,4,TRUE) -> 408.595
A51: Prima para conyuge | C51: =IF($B$15=1,0,(VLOOKUP($D$19,Tablas!$A$1287:$G$1353,3,TRUE))) -> 737.48125 | D51: =IF($B$15=1,0,(VLOOKUP($D$19,Tablas!$A$1287:$G$1353,4,TRUE))) -> 559.5975
A52: Prima para hijo (s) | C52: =IF($B$17=0,0,(VLOOKUP($B$17,Tablas!$A$1354:$G$1356,3,TRUE))) -> 323.0425 | D52: =IF($B$17=0,0,(VLOOKUP($B$17,Tablas!$A$1354:$G$1356,4,TRUE))) -> 253.61875
A53: Total de Prima neta | C53: =SUM(C50:C52) -> 1596.98 | D53: =SUM(D50:D52) -> 1221.81125
A54: Tarifa administrativa anual | C54: 75 | D54: 75
A55: VAT (5%) : | C55: =(C53+C54)*5% -> 83.599 | D55: =(D53+D54)*5% -> 64.8405625
A56: ITBMS (7%) | C56: 0 | D56: 0
A57: TOTAL de primera cuota | C57: =SUM(C53:C56) -> 1755.579 | D57: =SUM(D53:D56) -> 1361.651813
A58: Costo de tarifa trimestral 2 a 4 | C58: =C53*1.05 -> 1676.829 | D58: =D53*1.05 -> 1282.901813
A59: TOTAL ANUAL | C59: =C57+(C58*3) -> 6786.066 | D59: =D57+(D58*3) -> 5210.35725
A61: TARIFAS MENSUALES
A62: Prima para Asegurado Titular | C62: =VLOOKUP($B$19,Tablas!$A$1212:$G$1278,3,TRUE) -> 182.07 | D62: =VLOOKUP($B$19,Tablas!$A$1212:$G$1278,4,TRUE) -> 138.6746667
A63: Prima para conyuge | C63: =IF($B$15=1,0,(VLOOKUP($D$19,Tablas!$A$1212:$G$1278,3,TRUE))) -> 250.2966667 | D63: =IF($B$15=1,0,(VLOOKUP($D$19,Tablas!$A$1212:$G$1278,4,TRUE))) -> 189.924
A64: Prima para hijo (s) | C64: =IF($B$17=0,0,(VLOOKUP($B$17,Tablas!$A$1279:$G$1281,3,TRUE))) -> 109.6386667 | D64: =IF($B$17=0,0,(VLOOKUP($B$17,Tablas!$A$1279:$G$1281,4,TRUE))) -> 86.07666667
A65: Total de Prima neta | C65: =SUM(C62:C64) -> 542.0053333 | D65: =SUM(D62:D64) -> 414.6753333
A66: Tarifa administrativa anual | C66: 75 | D66: 75
A67: VAT (5%) : | C67: =(C65+C66)*5% -> 30.85026667 | D67: =(D65+D66)*5% -> 24.48376667
A68: ITBMS (7%) | C68: 0 | D68: 0
A69: TOTAL de primera cuota | C69: =SUM(C65:C68) -> 647.8556 | D69: =SUM(D65:D68) -> 514.1591
A70: Costo de Tarifa mensual de 2 a 12 | C70: =C65*1.05 -> 569.1056 | D70: =D65*1.05 -> 435.4091
A71: TOTAL ANUAL | C71: =C69+(C70*11) -> 6908.0172 | D71: =D69+(D70*11) -> 5303.6592
A73: Este presupuesto solamente tiene carácter informativo y en ningún momento expresa compromiso legal para suministrarle cobertura de seguro. La emisión de una póliza de seguro Bupa está sujeta a todas las evaluaciones de riesgo por parte de Bupa y a la recepción de todos los pagos de prima requeridos.

Sheet Resumen Tarifas
A5: Cotización de Seguro Médico Internacional Bupa Global Major Health Plans Resumen de Tarifas Tarifas en US$ | Validas: 1 de enero de 2025
A13: Nombre del Asegurado Titular | B13: =+'INGRESO DE DATOS'!$C$37 -> John Doe
A15: Número de adultos en la póliza | B15: =+'INGRESO DE DATOS'!$C$39 -> 2
A17: Número de Dependientes en la póliza | B17: =+'INGRESO DE DATOS'!$C$41 -> 2 | C17: =IF('INGRESO DE DATOS'!$P$2=TRUE, "Cotización para dependiente de 24 años","") -> 
A19: Edad del Asegurado Titular | B19: =+'INGRESO DE DATOS'!$C$43 -> 32 | E19: Edad del/la conyuge | F19: =+'INGRESO DE DATOS'!$C$45 -> 46
A21: Fecha de la cotización | B21: =NOW() -> 2025-04-08T10:00:12.220
A23: BUPA GLOBAL ULTIMATE HEALTH PLAN
A24: DEDUCIBLES | B24: PLAN 1 | C24: PLAN 2 | D24: PLAN 3
A25: En el país de residencia | B25: $0 | C25: 1000 | D25: 2000
A26: Fuera del país de residencia | B26: $0 | C26: 1000 | D26: 2000
B27: TARIFAS ANUALES
B28: ='Bupa Global Ultimate'!C38 -> 50942.325 | C28: ='Bupa Global Ultimate'!D38 -> 32895.975 | D28: ='Bupa Global Ultimate'!E38 -> 27264.3
B29: TArIFAS SEMESTRALES
B30: ='Bupa Global Ultimate'!C50 -> 26957.69475 | C30: ='Bupa Global Ultimate'!D50 -> 17393.12925 | D30: ='Bupa Global Ultimate'!E50 -> 14408.3415
B31: TARIFAS TRIMESTRALES
B32: ='Bupa Global Ultimate'!C63 -> 13987.48313 | C32: ='Bupa Global Ultimate'!D63 -> 9024.736875 | D32: ='Bupa Global Ultimate'!E63 -> 7476.02625
B33: TARIFAS MENSUALES
B34: ='Bupa Global Ultimate'!C76 -> 4747.267 | C34: ='Bupa Global Ultimate'!D76 -> 3062.941 | D34: ='Bupa Global Ultimate'!E76 -> 2537.318
A35: Ahorros en tarifas de prima para Dependientes* | B35: ='Bupa Global Ultimate'!C39 -> 6253.45 | C35: ='Bupa Global Ultimate'!D39 -> 4035.8 | D35: ='Bupa Global Ultimate'!E39 -> 3382.15
A37: BUPA GLOBAL ELITE HEALTH PLAN
A38: DEDUCIBLES | B38: PLAN 1 | C38: PLAN 2 | D38: PLAN 3 | E38: PLAN 4 | F38: PLAN 5 | G38: PLAN 6
A39: En el país de residencia | B39: 1000 | C39: 2000 | D39: 3500 | E39: 5000 | F39: 10000 | G39: 20000
A40: Fuera del país de residencia | B40: 1000 | C40: 2000 | D40: 3500 | E40: 5000 | F40: 10000 | G40: 20000
A41: =IF('INGRESO DE DATOS'!P3=TRUE,"Variante con coaseguro fuera del país de residencia: SI","Variante con coaseguro fuera del país de residencia: NO") -> Variante con coaseguro fuera del país de residencia: NO | B41: TARIFAS ANUALES
B42: =+'Bupa Global Elite'!C40 -> 26849.2875 | C42: =+'Bupa Global Elite'!D40 -> 19033.665 | D42: =+'Bupa Global Elite'!E40 -> 15476.16 | E42: =+'Bupa Global Elite'!F40 -> 13430.55 | F42: =+'Bupa Global Elite'!G40 -> 10251.465 | G42: =+'Bupa Global Elite'!H40 -> 8490.5625
B43: TARIFAS SEMESTRALES
B44: =+'Bupa Global Elite'!C53 -> 14188.38488 | C44: =+'Bupa Global Elite'!D53 -> 10046.10495 | D44: =+'Bupa Global Elite'!E53 -> 8160.6273 | E44: =+'Bupa Global Elite'!F53 -> 7076.454 | F44: =+'Bupa Global Elite'!G53 -> 5391.53895 | G44: =+'Bupa Global Elite'!H53 -> 4458.260625
B45: TARIFAS TRIMESTRALES
B46: =+'Bupa Global Elite'!C67 -> 7361.897813 | C46: =+'Bupa Global Elite'!D67 -> 5212.601625 | D46: =+'Bupa Global Elite'!E67 -> 4234.28775 | E46: =+'Bupa Global Elite'!F67 -> 3671.745 | F46: =+'Bupa Global Elite'!G67 -> 2797.496625 | G46: =+'Bupa Global Elite'!H67 -> 2313.248437
B47: TARIFAS MENSUALES
B48: =+'Bupa Global Elite'!C81 -> 2498.5835 | C48: =+'Bupa Global Elite'!D81 -> 1769.1254 | D48: =+'Bupa Global Elite'!E81 -> 1437.0916 | E48: =+'Bupa Global Elite'!F81 -> 1246.168 | F48: =+'Bupa Global Elite'!G81 -> 949.4534 | G48: =+'Bupa Global Elite'!H81 -> 785.1025
A49: Ahorros en tarifas de prima para Dependientes* | B49: =+'Bupa Global Elite'!C41 -> 3292.9 | C49: =+'Bupa Global Elite'!D41 -> 2357.9 | D49: =+'Bupa Global Elite'!E41 -> 1962.65 | E49: =+'Bupa Global Elite'!F41 -> 1701.7 | F49: =+'Bupa Global Elite'!G41 -> 1297.95 | G49: =+'Bupa Global Elite'!H41 -> 1297.95
A51: BUPA GLOBAL PREMIER HEALTH PLAN
A52: DEDUCIBLES | B52: PLAN 1 | C52: PLAN 2 | D52: PLAN 3 | E52: PLAN 4 | F52: PLAN 5
A53: En el país de residencia | B53: 2000 | C53: 3500 | D53: 5000 | E53: 10000 | F53: 20000
A54: Fuera del país de residencia | B54: 2000 | C54: 3500 | D54: 5000 | E54: 10000 | F54: 20000
A55: =IF('INGRESO DE DATOS'!P3=TRUE,"Variante con coaseguro fuera del país de residencia: SI","Variante con coaseguro fuera del país de residencia: NO") -> Variante con coaseguro fuera del país de residencia: NO | B55: TARIFAS ANUALES
B56: =+'Bupa Global Premier'!C38 -> 16815.8025 | C56: =+'Bupa Global Premier'!D38 -> 13729.5375 | D56: =+'Bupa Global Premier'!E38 -> 11925.795 | E56: =+'Bupa Global Premier'!F38 -> 8736 | F56: =+'Bupa Global Premier'!G38 -> 7005.4425
B57: TARIFAS SEMESTRALES
B58: =+'Bupa Global Premier'!C50 -> 8870.637825 | C58: =+'Bupa Global Premier'!D50 -> 7234.917375 | D58: =+'Bupa Global Premier'!E50 -> 6278.93385 | E58: =+'Bupa Global Premier'!F50 -> 4588.3425 | F58: =+'Bupa Global Premier'!G50 -> 3671.147025
B59: TARIFAS TRIMESTRALES
B60: =+'Bupa Global Premier'!C63 -> 4602.689438 | C60: =+'Bupa Global Premier'!D63 -> 3753.966563 | D60: =+'Bupa Global Premier'!E63 -> 3257.937375 | E60: =+'Bupa Global Premier'!F63 -> 2380.74375 | F60: =+'Bupa Global Premier'!G63 -> 1904.840438
B61: TARIFAS MENSUALES
B62: =+'Bupa Global Premier'!C76 -> 1562.1249 | C62: =+'Bupa Global Premier'!D76 -> 1274.0735 | D62: =+'Bupa Global Premier'!E76 -> 1105.7242 | E62: =+'Bupa Global Premier'!F76 -> 808.01 | F62: =+'Bupa Global Premier'!G76 -> 646.4913
A64: BUPA GLOBAL SELECT HEALTH PLAN
A65: DEDUCIBLES | B65: PLAN 1 | C65: PLAN 2 | D65: PLAN 3 | E65: PLAN 4 | F65: PLAN 5
A66: En el país de residencia | B66: 2000 | C66: 3500 | D66: 5000 | E66: 10000 | F66: 20000
A67: Fuera del país de residencia | B67: 2000 | C67: 3500 | D67: 5000 | E67: 10000 | F67: 20000
A68: =IF('INGRESO DE DATOS'!P3=TRUE,"Variante con coaseguro fuera del país de residencia: SI","Variante con coaseguro fuera del país de residencia: NO") -> Variante con coaseguro fuera del país de residencia: NO | B68: TARIFAS ANUALES
B69: =+'Bupa Global Select'!C38 -> 12098.94 | C69: =+'Bupa Global Select'!D38 -> 9903.39 | D69: =+'Bupa Global Select'!E38 -> 8831.4975 | E69: =+'Bupa Global Select'!F38 -> 6476.19 | F69: =+'Bupa Global Select'!G38 -> 5198.2875
B70: TARIFAS SEMESTRALES
B71: =+'Bupa Global Select'!C50 -> 6370.7007 | C71: =+'Bupa Global Select'!D50 -> 5207.0592 | D71: =+'Bupa Global Select'!E50 -> 4638.956175 | E71: =+'Bupa Global Select'!F50 -> 3390.6432 | F71: =+'Bupa Global Select'!G50 -> 2712.798375
B72: TARIFAS TRIMESTRALES
B73: =+'Bupa Global Select'!C63 -> 3305.55225 | C73: =+'Bupa Global Select'!D63 -> 2701.776 | D73: =+'Bupa Global Select'!E63 -> 2407.005562 | E73: =+'Bupa Global Select'!F63 -> 1759.296 | F73: =+'Bupa Global Select'!G63 -> 1407.584063
B74: TARIFAS MENSUALES
B75: =+'Bupa Global Select'!C76 -> 1121.8844 | C75: =+'Bupa Global Select'!D76 -> 916.9664 | D75: =+'Bupa Global Select'!E76 -> 816.9231 | E75: =+'Bupa Global Select'!F76 -> 597.0944 | F75: =+'Bupa Global Select'!G76 -> 477.7255
A77: BUPA GLOBAL MAJOR MEDICAL HEALTH PLAN
A78: DEDUCIBLES | B78: PLAN 1 | C78: PLAN 2
A79: En el país de residencia | B79: 10000 | C79: 20000
A80: Fuera del país de residencia | B80: 10000 | C80: 20000
B81: TARIFAS ANUALES
B82: ='Bupa Global Major Medical'!C35 -> 6176.31 | C82: ='Bupa Global Major Medical'!D35 -> 4743.8475
B83: TARIFAS SEMESTRALES
B84: ='Bupa Global Major Medical'!C46 -> 3231.7068 | C84: ='Bupa Global Major Medical'!D46 -> 2472.501675
B85: TARIFAS TRIMESTRALES
B86: ='Bupa Global Major Medical'!C58 -> 1676.829 | C86: ='Bupa Global Major Medical'!D58 -> 1282.901813
B87: TARIFAS MENSUALES
B88: ='Bupa Global Major Medical'!C70 -> 569.1056 | C88: ='Bupa Global Major Medical'!D70 -> 435.4091
A90: Este presupuesto solamente tiene carácter informativo y en ningún momento expresa compromiso legal para suministrarle cobertura de seguro. La emisión de una póliza de seguro Bupa está sujeta a todas las evaluaciones de riesgo por parte de Bupa y a la recepción de todos los pagos de prima requeridos. Una tarifa administrativa de US$75 se cargará automáticamente al primer pago. *Basado en un modo de pago anual

Sheet Tablas (hidden)
A2: BUPA GLOBAL ELITE | I2: FACTOR MENSUAL: | K2: 0.09333333333 | M2: Descuento de 24 años | N2: ='INGRESO DE DATOS'!P30 -> 1 | O2: Ultimate | P2: Elite | Q2: Premier | R2: Select | S2: Major Medical
A3: TARIFAS ANUALES | I3: FACTOR TRIMESTRAL: | K3: 0.275 | M3: Descuento de producto (%) | O3: ='INGRESO DE DATOS'!O39 -> 0.15 | P3: ='INGRESO DE DATOS'!P39 -> 0.15 | Q3: ='INGRESO DE DATOS'!Q39 -> 0.15 | R3: ='INGRESO DE DATOS'!R39 -> 0.15 | S3: ='INGRESO DE DATOS'!S39 -> 0.15
I4: FACTOR SEMIANUAL: | K4: 0.53 | M4: Factor para el descuento combinado | O4: ='INGRESO DE DATOS'!O47 -> 0.85 | P4: ='INGRESO DE DATOS'!P47 -> 0.85 | Q4: ='INGRESO DE DATOS'!Q47 -> 0.85 | R4: ='INGRESO DE DATOS'!R47 -> 0.85 | S4: ='INGRESO DE DATOS'!S47 -> 0.85
A5: EDAD | C5: 1000 | D5: 2000 | E5: 3500 | F5: 5000 | G5: 10000 | I5: TARIFAS BASE | O5: TARIFAS BASE CON DESCUENTO
A6: 18 | C6: =O6 -> 7314.25 | D6: 5239.4 | E6: 4359.65 | F6: 3780.8 | G6: 2881.5 | H6: 2305.2 | I6: 8605 | J6: 6164 | K6: 5129 | L6: 4448 | M6: 3390 | N6: 2712 | O6: =I6*$P$4 -> 7314.25 | P6: 5239.4 | Q6: 4359.65 | R6: 3780.8 | S6: 2881.5 | T6: 2305.2
A7: 19 | C7: =O7 -> 7411.15 | D7: =P7 -> 5302.3 | E7: =Q7 -> 4405.55 | F7: =R7 -> 3821.6 | G7: =S7 -> 2911.25 | H7: =T7 -> 2329 | I7: 8719 | J7: 6238 | K7: 5183 | L7: 4496 | M7: 3425 | N7: 2740 | O7: =I7*$P$4 -> 7411.15 | P7: =J7*$P$4 -> 5302.3 | Q7: =K7*$P$4 -> 4405.55 | R7: =L7*$P$4 -> 3821.6 | S7: =M7*$P$4 -> 2911.25 | T7: =N7*$P$4 -> 2329
A8: 20 | C8: 7509.75 | D8: 5369.45 | E8: 4454.85 | F8: 3863.25 | G8: 2942.7 | H8: 2354.5 | I8: 8835 | J8: 6317 | K8: 5241 | L8: 4545 | M8: 3462 | N8: 2770 | O8: 7509.75 | P8: 5369.45 | Q8: 4454.85 | R8: 3863.25 | S8: 2942.7 | T8: 2354.5
A9: 21 | C9: 7611.75 | D9: 5437.45 | E9: 4505 | F9: 3906.6 | G9: 2976.7 | H9: 2381.7 | I9: 8955 | J9: 6397 | K9: 5300 | L9: 4596 | M9: 3502 | N9: 2802 | O9: 7611.75 | P9: 5437.45 | Q9: 4505 | R9: 3906.6 | S9: 2976.7 | T9: 2381.7
A10: 22 | C10: 7717.15 | D10: 5508 | E10: 4556.85 | F10: 3950.8 | G10: 3009.85 | H10: 2408.05 | I10: 9079 | J10: 6480 | K10: 5361 | L10: 4648 | M10: 3541 | N10: 2833 | O10: 7717.15 | P10: 5508 | Q10: 4556.85 | R10: 3950.8 | S10: 3009.85 | T10: 2408.05
A11: 23 | C11: 7828.5 | D11: 5579.4 | E11: 4612.1 | F11: 3999.25 | G11: 3048.1 | H11: 2438.65 | I11: 9210 | J11: 6564 | K11: 5426 | L11: 4705 | M11: 3586 | N11: 2869 | O11: 7828.5 | P11: 5579.4 | Q11: 4612.1 | R11: 3999.25 | S11: 3048.1 | T11: 2438.65
A12: 24 | C12: 7939 | D12: 5655.05 | E12: 4667.35 | F12: 4046.85 | G12: 3083.8 | H12: 2467.55 | I12: 9340 | J12: 6653 | K12: 5491 | L12: 4761 | M12: 3628 | N12: 2903 | O12: 7939 | P12: 5655.05 | Q12: 4667.35 | R12: 4046.85 | S12: 3083.8 | T12: 2467.55
A13: 25 | C13: 8053.75 | D13: 5734.1 | E13: 4724.3 | F13: 4097 | G13: 3122.05 | H13: 2498.15 | I13: 9475 | J13: 6746 | K13: 5558 | L13: 4820 | M13: 3673 | N13: 2939 | O13: 8053.75 | P13: 5734.1 | Q13: 4724.3 | R13: 4097 | S13: 3122.05 | T13: 2498.15
A14: 26 | C14: 8219.5 | D14: 5846.3 | E14: 4808.45 | F14: 4170.95 | G14: 3177.3 | H14: 2542.35 | I14: 9670 | J14: 6878 | K14: 5657 | L14: 4907 | M14: 3738 | N14: 2991 | O14: 8219.5 | P14: 5846.3 | Q14: 4808.45 | R14: 4170.95 | S14: 3177.3 | T14: 2542.35
A15: 27 | C15: 8392.05 | D15: 5963.6 | E15: 4897.7 | F15: 4245.75 | G15: 3235.95 | H15: 2589.1 | I15: 9873 | J15: 7016 | K15: 5762 | L15: 4995 | M15: 3807 | N15: 3046 | O15: 8392.05 | P15: 5963.6 | Q15: 4897.7 | R15: 4245.75 | S15: 3235.95 | T15: 2589.1
A16: 28 | C16: 8569.7 | D16: 6084.3 | E16: 4988.65 | F16: 4325.65 | G16: 3295.45 | H16: 2636.7 | I16: 10082 | J16: 7158 | K16: 5869 | L16: 5089 | M16: 3877 | N16: 3102 | O16: 8569.7 | P16: 6084.3 | Q16: 4988.65 | R16: 4325.65 | S16: 3295.45 | T16: 2636.7
A17: 29 | C17: 8755.85 | D17: 6210.1 | E17: 5084.7 | F17: 4408.95 | G17: 3360.05 | H17: 2688.55 | I17: 10301 | J17: 7306 | K17: 5982 | L17: 5187 | M17: 3953 | N17: 3163 | O17: 8755.85 | P17: 6210.1 | Q17: 5084.7 | R17: 4408.95 | S17: 3360.05 | T17: 2688.55
A18: 30 | C18: 8947.1 | D18: 6343.55 | E18: 5185.85 | F18: 4496.5 | G18: 3426.35 | H18: 2741.25 | I18: 10526 | J18: 7463 | K18: 6101 | L18: 5290 | M18: 4031 | N18: 3225 | O18: 8947.1 | P18: 6343.55 | Q18: 5185.85 | R18: 4496.5 | S18: 3426.35 | T18: 2741.25
A19: 31 | C19: 9145.15 | D19: 6478.7 | E19: 5290.4 | F19: 4586.6 | G19: 3496.05 | H19: 2797.35 | I19: 10759 | J19: 7622 | K19: 6224 | L19: 5396 | M19: 4113 | N19: 3291 | O19: 9145.15 | P19: 6478.7 | Q19: 5290.4 | R19: 4586.6 | S19: 3496.05 | T19: 2797.35
A20: 32 | C20: 9348.3 | D20: 6619.8 | E20: 5395.8 | F20: 4678.4 | G20: 3564.05 | H20: 2851.75 | I20: 10998 | J20: 7788 | K20: 6348 | L20: 5504 | M20: 4193 | N20: 3355 | O20: 9348.3 | P20: 6619.8 | Q20: 5395.8 | R20: 4678.4 | S20: 3564.05 | T20: 2851.75
A21: 33 | C21: 9559.1 | D21: 6764.3 | E21: 5508 | F21: 4775.3 | G21: 3639.7 | H21: 2912.1 | I21: 11246 | J21: 7958 | K21: 6480 | L21: 5618 | M21: 4282 | N21: 3426 | O21: 9559.1 | P21: 6764.3 | Q21: 5508 | R21: 4775.3 | S21: 3639.7 | T21: 2912.1
A22: 34 | C22: 9775.85 | D22: 6913.9 | E22: 5622.75 | F22: 4875.6 | G22: 3714.5 | H22: 2971.6 | I22: 11501 | J22: 8134 | K22: 6615 | L22: 5736 | M22: 4370 | N22: 3496 | O22: 9775.85 | P22: 6913.9 | Q22: 5622.75 | R22: 4875.6 | S22: 3714.5 | T22: 2971.6
A23: 35 | C23: 9996.85 | D23: 7067.75 | E23: 5742.6 | F23: 4980.15 | G23: 3795.25 | H23: 3036.2 | I23: 11761 | J23: 8315 | K23: 6756 | L23: 5859 | M23: 4465 | N23: 3572 | O23: 9996.85 | P23: 7067.75 | Q23: 5742.6 | R23: 4980.15 | S23: 3795.25 | T23: 3036.2
A24: 36 | C24: 10225.5 | D24: 7226.7 | E24: 5865 | F24: 5084.7 | G24: 3875.15 | H24: 3100.8 | I24: 12030 | J24: 8502 | K24: 6900 | L24: 5982 | M24: 4559 | N24: 3648 | O24: 10225.5 | P24: 7226.7 | Q24: 5865 | R24: 5084.7 | S24: 3875.15 | T24: 3100.8
A25: 37 | C25: 10460.95 | D25: 7392.45 | E25: 5990.8 | F25: 5196.05 | G25: 3958.45 | H25: 3167.1 | I25: 12307 | J25: 8697 | K25: 7048 | L25: 6113 | M25: 4657 | N25: 3726 | O25: 10460.95 | P25: 7392.45 | Q25: 5990.8 | R25: 5196.05 | S25: 3958.45 | T25: 3167.1
A26: 38 | C26: 10701.5 | D26: 7559.05 | E26: 6121.7 | F26: 5309.95 | G26: 4045.15 | H26: 3236.8 | I26: 12590 | J26: 8893 | K26: 7202 | L26: 6247 | M26: 4759 | N26: 3808 | O26: 10701.5 | P26: 7559.05 | Q26: 6121.7 | R26: 5309.95 | S26: 4045.15 | T26: 3236.8
A27: 39 | C27: 10949.7 | D27: 7733.3 | E27: 6256 | F27: 5424.7 | G27: 4132.7 | H27: 3306.5 | I27: 12882 | J27: 9098 | K27: 7360 | L27: 6382 | M27: 4862 | N27: 3890 | O27: 10949.7 | P27: 7733.3 | Q27: 6256 | R27: 5424.7 | S27: 4132.7 | T27: 3306.5
A28: 40 | C28: 11203 | D28: 7910.95 | E28: 6393.7 | F28: 5543.7 | G28: 4225.35 | H28: 3380.45 | I28: 13180 | J28: 9307 | K28: 7522 | L28: 6522 | M28: 4971 | N28: 3977 | O28: 11203 | P28: 7910.95 | Q28: 6393.7 | R28: 5543.7 | S28: 4225.35 | T28: 3380.45
A29: 41 | C29: 11463.95 | D29: 8093.7 | E29: 6536.5 | F29: 5667.8 | G29: 4319.7 | H29: 3456.1 | I29: 13487 | J29: 9522 | K29: 7690 | L29: 6668 | M29: 5082 | N29: 4066 | O29: 11463.95 | P29: 8093.7 | Q29: 6536.5 | R29: 5667.8 | S29: 4319.7 | T29: 3456.1
A30: 42 | C30: 11729.15 | D30: 8279.85 | E30: 6682.7 | F30: 5794.45 | G30: 4415.75 | H30: 3532.6 | I30: 13799 | J30: 9741 | K30: 7862 | L30: 6817 | M30: 5195 | N30: 4156 | O30: 11729.15 | P30: 8279.85 | Q30: 6682.7 | R30: 5794.45 | S30: 4415.75 | T30: 3532.6
A31: 43 | C31: 12000.3 | D31: 8472.8 | E31: 6833.15 | F31: 5924.5 | G31: 4515.2 | H31: 3612.5 | I31: 14118 | J31: 9968 | K31: 8039 | L31: 6970 | M31: 5312 | N31: 4250 | O31: 12000.3 | P31: 8472.8 | Q31: 6833.15 | R31: 5924.5 | S31: 4515.2 | T31: 3612.5
A32: 44 | C32: 12279.1 | D32: 8667.45 | E32: 6985.3 | F32: 6057.95 | G32: 4616.35 | H32: 3693.25 | I32: 14446 | J32: 10197 | K32: 8218 | L32: 7127 | M32: 5431 | N32: 4345 | O32: 12279.1 | P32: 8667.45 | Q32: 6985.3 | R32: 6057.95 | S32: 4616.35 | T32: 3693.25
A33: 45 | C33: 12563.85 | D33: 8869.75 | E33: 7144.25 | F33: 6193.1 | G33: 4719.2 | H33: 3775.7 | I33: 14781 | J33: 10435 | K33: 8405 | L33: 7286 | M33: 5552 | N33: 4442 | O33: 12563.85 | P33: 8869.75 | Q33: 7144.25 | R33: 6193.1 | S33: 4719.2 | T33: 3775.7
A34: 46 | C34: 12854.55 | D34: 9074.6 | E34: 7305.75 | F34: 6335.9 | G34: 4826.3 | H34: 3861.55 | I34: 15123 | J34: 10676 | K34: 8595 | L34: 7454 | M34: 5678 | N34: 4543 | O34: 12854.55 | P34: 9074.6 | Q34: 7305.75 | R34: 6335.9 | S34: 4826.3 | T34: 3861.55
A35: 47 | C35: 13152.05 | D35: 9286.25 | E35: 7469.8 | F35: 6476.15 | G35: 4935.95 | H35: 3949.1 | I35: 15473 | J35: 10925 | K35: 8788 | L35: 7619 | M35: 5807 | N35: 4646 | O35: 13152.05 | P35: 9286.25 | Q35: 7469.8 | R35: 6476.15 | S35: 4935.95 | T35: 3949.1
A36: 48 | C36: 13455.5 | D36: 9499.6 | E36: 7638.1 | F36: 6622.35 | G36: 5045.6 | H36: 4036.65 | I36: 15830 | J36: 11176 | K36: 8986 | L36: 7791 | M36: 5936 | N36: 4749 | O36: 13455.5 | P36: 9499.6 | Q36: 7638.1 | R36: 6622.35 | S36: 5045.6 | T36: 4036.65
A37: 49 | C37: 13765.75 | D37: 9720.6 | E37: 7811.5 | F37: 6773.65 | G37: 5160.35 | H37: 4128.45 | I37: 16195 | J37: 11436 | K37: 9190 | L37: 7969 | M37: 6071 | N37: 4857 | O37: 13765.75 | P37: 9720.6 | Q37: 7811.5 | R37: 6773.65 | S37: 5160.35 | T37: 4128.45
A38: 50 | C38: 14080.25 | D38: 9943.3 | E38: 7989.15 | F38: 6927.5 | G38: 5278.5 | H38: 4222.8 | I38: 16565 | J38: 11698 | K38: 9399 | L38: 8150 | M38: 6210 | N38: 4968 | O38: 14080.25 | P38: 9943.3 | Q38: 7989.15 | R38: 6927.5 | S38: 5278.5 | T38: 4222.8
A39: 51 | C39: 14403.25 | D39: 10171.95 | E39: 8171.05 | F39: 7084.75 | G39: 5397.5 | H39: 4318 | I39: 16945 | J39: 11967 | K39: 9613 | L39: 8335 | M39: 6350 | N39: 5080 | O39: 14403.25 | P39: 10171.95 | Q39: 8171.05 | R39: 7084.75 | S39: 5397.5 | T39: 4318
A40: 52 | C40: 14730.5 | D40: 10405.7 | E40: 8352.1 | F40: 7242 | G40: 5519.05 | H40: 4415.75 | I40: 17330 | J40: 12242 | K40: 9826 | L40: 8520 | M40: 6493 | N40: 5195 | O40: 14730.5 | P40: 10405.7 | Q40: 8352.1 | R40: 7242 | S40: 5519.05 | T40: 4415.75
A41: 53 | C41: 15065.4 | D41: 10646.25 | E41: 8542.5 | F41: 7406.9 | G41: 5644 | H41: 4515.2 | I41: 17724 | J41: 12525 | K41: 10050 | L41: 8714 | M41: 6640 | N41: 5312 | O41: 15065.4 | P41: 10646.25 | Q41: 8542.5 | R41: 7406.9 | S41: 5644 | T41: 4515.2
A42: 54 | C42: 15406.25 | D42: 10888.5 | E42: 8732.9 | F42: 7571.8 | G42: 5770.65 | H42: 4617.2 | I42: 18125 | J42: 12810 | K42: 10274 | L42: 8908 | M42: 6789 | N42: 5432 | O42: 15406.25 | P42: 10888.5 | Q42: 8732.9 | R42: 7571.8 | S42: 5770.65 | T42: 4617.2
A43: 55 | C43: 15753.9 | D43: 11135 | E43: 8930.1 | F43: 7742.65 | G43: 5899.85 | H43: 4720.05 | I43: 18534 | J43: 13100 | K43: 10506 | L43: 9109 | M43: 6941 | N43: 5553 | O43: 15753.9 | P43: 11135 | Q43: 8930.1 | R43: 7742.65 | S43: 5899.85 | T43: 4720.05
A44: 56 | C44: 16104.95 | D44: 11386.6 | E44: 9129 | F44: 7916.05 | G44: 6032.45 | H44: 4826.3 | I44: 18947 | J44: 13396 | K44: 10740 | L44: 9313 | M44: 7097 | N44: 5678 | O44: 16104.95 | P44: 11386.6 | Q44: 9129 | R44: 7916.05 | S44: 6032.45 | T44: 4826.3
A45: 57 | C45: 16465.35 | D45: 11643.3 | E45: 9333 | F45: 8091.15 | G45: 6165.9 | H45: 4933.4 | I45: 19371 | J45: 13698 | K45: 10980 | L45: 9519 | M45: 7254 | N45: 5804 | O45: 16465.35 | P45: 11643.3 | Q45: 9333 | R45: 8091.15 | S45: 6165.9 | T45: 4933.4
A46: 58 | C46: 16831.7 | D46: 11904.25 | E46: 9540.4 | F46: 8272.2 | G46: 6302.75 | H46: 5042.2 | I46: 19802 | J46: 14005 | K46: 11224 | L46: 9732 | M46: 7415 | N46: 5932 | O46: 16831.7 | P46: 11904.25 | Q46: 9540.4 | R46: 8272.2 | S46: 6302.75 | T46: 5042.2
A47: 59 | C47: 17202.3 | D47: 12170.3 | E47: 9750.35 | F47: 8454.95 | G47: 6441.3 | H47: 5153.55 | I47: 20238 | J47: 14318 | K47: 11471 | L47: 9947 | M47: 7578 | N47: 6063 | O47: 17202.3 | P47: 12170.3 | Q47: 9750.35 | R47: 8454.95 | S47: 6441.3 | T47: 5153.55
A48: 60 | C48: 17579.7 | D48: 12441.45 | E48: 9966.25 | F48: 8641.1 | G48: 6584.1 | H48: 5267.45 | I48: 20682 | J48: 14637 | K48: 11725 | L48: 10166 | M48: 7746 | N48: 6197 | O48: 17579.7 | P48: 12441.45 | Q48: 9966.25 | R48: 8641.1 | S48: 6584.1 | T48: 5267.45
A49: 61 | C49: 19564.45 | D49: 13864.35 | E49: 11099.3 | F49: 9624.55 | G49: 7334.65 | H49: 5868.4 | I49: 23017 | J49: 16311 | K49: 13058 | L49: 11323 | M49: 8629 | N49: 6904 | O49: 19564.45 | P49: 13864.35 | Q49: 11099.3 | R49: 9624.55 | S49: 7334.65 | T49: 5868.4
A50: 62 | C50: 21703.05 | D50: 15405.4 | E50: 12330.1 | F50: 10691.3 | G50: 8145.55 | H50: 6516.95 | I50: 25533 | J50: 18124 | K50: 14506 | L50: 12578 | M50: 9583 | N50: 7667 | O50: 21703.05 | P50: 15405.4 | Q50: 12330.1 | R50: 10691.3 | S50: 8145.55 | T50: 6516.95
A51: 63 | C51: 23998.9 | D51: 17060.35 | E51: 13654.4 | F51: 11839.65 | G51: 9021.9 | H51: 7218.2 | I51: 28234 | J51: 20071 | K51: 16064 | L51: 13929 | M51: 10614 | N51: 8492 | O51: 23998.9 | P51: 17060.35 | Q51: 13654.4 | R51: 11839.65 | S51: 9021.9 | T51: 7218.2
A52: 64 | C52: 26448.6 | D52: 18832.6 | E52: 15074.75 | F52: 13072.15 | G52: 9961.15 | H52: 7969.6 | I52: 31116 | J52: 22156 | K52: 17735 | L52: 15379 | M52: 11719 | N52: 9376 | O52: 26448.6 | P52: 18832.6 | Q52: 15074.75 | R52: 13072.15 | S52: 9961.15 | T52: 7969.6
A53: 65 | C53: 29053.85 | D53: 20721.3 | E53: 16592.85 | F53: 14387.1 | G53: 10962.45 | H53: 8770.3 | I53: 34181 | J53: 24378 | K53: 19521 | L53: 16926 | M53: 12897 | N53: 10318 | O53: 29053.85 | P53: 20721.3 | Q53: 16592.85 | R53: 14387.1 | S53: 10962.45 | T53: 8770.3
A54: 66 | C54: 31815.5 | D54: 22724.75 | E54: 18207 | F54: 15788.75 | G54: 12030.05 | H54: 9624.55 | I54: 37430 | J54: 26735 | K54: 21420 | L54: 18575 | M54: 14153 | N54: 11323 | O54: 31815.5 | P54: 22724.75 | Q54: 18207 | R54: 15788.75 | S54: 12030.05 | T54: 9624.55
A55: 67 | C55: 34733.55 | D55: 24844.65 | E55: 19916.35 | F55: 17270.3 | G55: 13158.85 | H55: 10527.25 | I55: 40863 | J55: 29229 | K55: 23431 | L55: 20318 | M55: 15481 | N55: 12385 | O55: 34733.55 | P55: 24844.65 | Q55: 19916.35 | R55: 17270.3 | S55: 13158.85 | T55: 10527.25
A56: 68 | C56: 37806.3 | D56: 27081.85 | E56: 21720.9 | F56: 18834.3 | G56: 14350.55 | H56: 11480.95 | I56: 44478 | J56: 31861 | K56: 25554 | L56: 22158 | M56: 16883 | N56: 13507 | O56: 37806.3 | P56: 27081.85 | Q56: 21720.9 | R56: 18834.3 | S56: 14350.55 | T56: 11480.95
A57: 69 | C57: 41033.75 | D57: 29434.65 | E57: 23624.05 | F57: 20484.15 | G57: 15607.7 | H57: 12486.5 | I57: 48275 | J57: 34629 | K57: 27793 | L57: 24099 | M57: 18362 | N57: 14690 | O57: 41033.75 | P57: 29434.65 | Q57: 23624.05 | R57: 20484.15 | S57: 15607.7 | T57: 12486.5
A58: 70 | C58: 44418.45 | D58: 31904.75 | E58: 25621.55 | F58: 22216.45 | G58: 16928.6 | H58: 13543.05 | I58: 52257 | J58: 37535 | K58: 30143 | L58: 26137 | M58: 19916 | N58: 15933 | O58: 44418.45 | P58: 31904.75 | Q58: 25621.55 | R58: 22216.45 | S58: 16928.6 | T58: 13543.05
A59: 71 | C59: 47959.55 | D59: 34489.6 | E59: 27715.95 | F59: 24032.9 | G59: 18312.4 | H59: 14650.6 | I59: 56423 | J59: 40576 | K59: 32607 | L59: 28274 | M59: 21544 | N59: 17236 | O59: 47959.55 | P59: 34489.6 | Q59: 27715.95 | R59: 24032.9 | S59: 18312.4 | T59: 14650.6
A60: 72 | C60: 51653.65 | D60: 37193.45 | E60: 29905.55 | F60: 25930.95 | G60: 19758.25 | H60: 15806.6 | I60: 60769 | J60: 43757 | K60: 35183 | L60: 30507 | M60: 23245 | N60: 18596 | O60: 51653.65 | P60: 37193.45 | Q60: 29905.55 | R60: 25930.95 | S60: 19758.25 | T60: 15806.6
A61: 73 | C61: 55504.15 | D61: 40010.35 | E61: 32190.35 | F61: 27912.3 | G61: 21267.85 | H61: 17014.45 | I61: 65299 | J61: 47071 | K61: 37871 | L61: 32838 | M61: 25021 | N61: 20017 | O61: 55504.15 | P61: 40010.35 | Q61: 32190.35 | R61: 27912.3 | S61: 21267.85 | T61: 17014.45
A62: 74 | C62: 59511.05 | D62: 42944.55 | E62: 34573.75 | F62: 29979.5 | G62: 22842.9 | H62: 18275 | I62: 70013 | J62: 50523 | K62: 40675 | L62: 35270 | M62: 26874 | N62: 21500 | O62: 59511.05 | P62: 42944.55 | Q62: 34573.75 | R62: 29979.5 | S62: 22842.9 | T62: 18275
A63: 75 | C63: 63673.5 | D63: 45996.05 | E63: 37052.35 | F63: 32127.45 | G63: 24479.15 | H63: 19584 | I63: 74910 | J63: 54113 | K63: 43591 | L63: 37797 | M63: 28799 | N63: 23040 | O63: 63673.5 | P63: 45996.05 | Q63: 37052.35 | R63: 32127.45 | S63: 24479.15 | T63: 19584
A64: 76 | C64: 63673.5 | D64: 45996.05 | E64: 37052.35 | F64: 32127.45 | G64: 24479.15 | H64: 19584 | I64: 74910 | J64: 54113 | K64: 43591 | L64: 37797 | M64: 28799 | N64: 23040 | O64: 63673.5 | P64: 45996.05 | Q64: 37052.35 | R64: 32127.45 | S64: 24479.15 | T64: 19584
A65: 77 | C65: 63673.5 | D65: 45996.05 | E65: 37052.35 | F65: 32127.45 | G65: 24479.15 | H65: 19584 | I65: 74910 | J65: 54113 | K65: 43591 | L65: 37797 | M65: 28799 | N65: 23040 | O65: 63673.5 | P65: 45996.05 | Q65: 37052.35 | R65: 32127.45 | S65: 24479.15 | T65: 19584
A66: 78 | C66: 63673.5 | D66: 45996.05 | E66: 37052.35 | F66: 32127.45 | G66: 24479.15 | H66: 19584 | I66: 74910 | J66: 54113 | K66: 43591 | L66: 37797 | M66: 28799 | N66: 23040 | O66: 63673.5 | P66: 45996.05 | Q66: 37052.35 | R66: 32127.45 | S66: 24479.15 | T66: 19584
A67: 79 | C67: 63673.5 | D67: 45996.05 | E67: 37052.35 | F67: 32127.45 | G67: 24479.15 | H67: 19584 | I67: 74910 | J67: 54113 | K67: 43591 | L67: 37797 | M67: 28799 | N67: 23040 | O67: 63673.5 | P67: 45996.05 | Q67: 37052.35 | R67: 32127.45 | S67: 24479.15 | T67: 19584
A68: 80 | C68: 63673.5 | D68: 45996.05 | E68: 37052.35 | F68: 32127.45 | G68: 24479.15 | H68: 19584 | I68: 74910 | J68: 54113 | K68: 43591 | L68: 37797 | M68: 28799 | N68: 23040 | O68: 63673.5 | P68: 45996.05 | Q68: 37052.35 | R68: 32127.45 | S68: 24479.15 | T68: 19584
A69: 81 | C69: 63673.5 | D69: 45996.05 | E69: 37052.35 | F69: 32127.45 | G69: 24479.15 | H69: 19584 | I69: 74910 | J69: 54113 | K69: 43591 | L69: 37797 | M69: 28799 | N69: 23040 | O69: 63673.5 | P69: 45996.05 | Q69: 37052.35 | R69: 32127.45 | S69: 24479.15 | T69: 19584
A70: 82 | C70: 63673.5 | D70: 45996.05 | E70: 37052.35 | F70: 32127.45 | G70: 24479.15 | H70: 19584 | I70: 74910 | J70: 54113 | K70: 43591 | L70: 37797 | M70: 28799 | N70: 23040 | O70: 63673.5 | P70: 45996.05 | Q70: 37052.35 | R70: 32127.45 | S70: 24479.15 | T70: 19584
A71: 83 | C71: =O71 -> 63673.5 | D71: 45996.05 | E71: 37052.35 | F71: 32127.45 | G71: =S71 -> 24479.15 | H71: 19584 | I71: 74910 | J71: 54113 | K71: 43591 | L71: 37797 | M71: 28799 | N71: 23040 | O71: =I71*$P$4 -> 63673.5 | P71: 45996.05 | Q71: 37052.35 | R71: 32127.45 | S71: =M71*$P$4 -> 24479.15 | T71: 19584
A72: 84 | B72: o más | C72: 63673.5 | D72: 45996.05 | E72: 37052.35 | F72: 32127.45 | G72: 24479.15 | H72: 19584 | I72: 74910 | J72: 54113 | K72: 43591 | L72: 37797 | M72: 28799 | N72: 23040 | O72: 63673.5 | P72: 45996.05 | Q72: 37052.35 | R72: 32127.45 | S72: 24479.15 | T72: 19584
A73: 1 | B73: Hijo | C73: 3292.9 | D73: 2357.9 | E73: 1962.65 | F73: 1701.7 | G73: 1297.95 | H73: 1038.7 | I73: 3874 | J73: 2774 | K73: 2309 | L73: 2002 | M73: 1527 | N73: 1222 | O73: 3292.9 | P73: 2357.9 | Q73: 1962.65 | R73: 1701.7 | S73: 1297.95 | T73: 1038.7
A74: 2 | B74: Hijos | C74: 5595.55 | D74: 4008.6 | E74: 3335.4 | F74: 2891.7 | G74: 2204.9 | H74: 1764.6 | I74: 6583 | J74: 4716 | K74: 3924 | L74: 3402 | M74: 2594 | N74: 2076 | O74: 5595.55 | P74: 4008.6 | Q74: 3335.4 | R74: 2891.7 | S74: 2204.9 | T74: 1764.6
A75: 3 | B75: Hijos o más | C75: 7899.05 | D75: 5658.45 | E75: 4709.85 | F75: 4082.55 | G75: 3111.85 | H75: 2489.65 | I75: 9293 | J75: 6657 | K75: 5541 | L75: 4803 | M75: 3661 | N75: 2929 | O75: 7899.05 | P75: 5658.45 | Q75: 4709.85 | R75: 4082.55 | S75: 3111.85 | T75: 2489.65
A77: BUPA GLOBAL ELITE - MENSUALES
A79: EDAD | C79: 1000 | D79: 2000 | E79: 3500
A80: 18 | C80: =C6*$K$2 -> 682.6633333 | D80: 489.0106667 | E80: 406.9006667 | F80: 352.8746667 | G80: 268.94 | H80: 215.152
A81: 19 | C81: =C7*$K$2 -> 691.7073333 | D81: 494.8813333 | E81: 411.1846667 | F81: 356.6826667 | G81: 271.7166667 | H81: 217.3733333
A82: 20 | C82: =C8*$K$2 -> 700.91 | D82: 501.1486667 | E82: 415.786 | F82: 360.57 | G82: 274.652 | H82: 219.7533333
A83: 21 | C83: =C9*$K$2 -> 710.43 | D83: 507.4953333 | E83: 420.4666667 | F83: 364.616 | G83: 277.8253333 | H83: 222.292
A84: 22 | C84: =C10*$K$2 -> 720.2673333 | D84: 514.08 | E84: 425.306 | F84: 368.7413333 | G84: 280.9193333 | H84: 224.7513333
A85: 23 | C85: =C11*$K$2 -> 730.66 | D85: 520.744 | E85: 430.4626667 | F85: 373.2633333 | G85: 284.4893333 | H85: 227.6073333
A86: 24 | C86: =C12*$K$2 -> 740.9733333 | D86: 527.8046667 | E86: 435.6193333 | F86: 377.706 | G86: 287.8213333 | H86: 230.3046667
A87: 25 | C87: =C13*$K$2 -> 751.6833333 | D87: 535.1826667 | E87: 440.9346667 | F87: 382.3866667 | G87: 291.3913333 | H87: 233.1606667
A88: 26 | C88: =C14*$K$2 -> 767.1533333 | D88: 545.6546667 | E88: 448.7886667 | F88: 389.2886667 | G88: 296.548 | H88: 237.286
A89: 27 | C89: =C15*$K$2 -> 783.258 | D89: 556.6026667 | E89: 457.1186667 | F89: 396.27 | G89: 302.022 | H89: 241.6493333
A90: 28 | C90: =C16*$K$2 -> 799.8386667 | D90: 567.868 | E90: 465.6073333 | F90: 403.7273333 | G90: 307.5753333 | H90: 246.092
A91: 29 | C91: =C17*$K$2 -> 817.2126667 | D91: 579.6093333 | E91: 474.572 | F91: 411.502 | G91: 313.6046667 | H91: 250.9313333
A92: 30 | C92: =C18*$K$2 -> 835.0626667 | D92: 592.0646667 | E92: 484.0126667 | F92: 419.6733333 | G92: 319.7926667 | H92: 255.85
A93: 31 | C93: =C19*$K$2 -> 853.5473333 | D93: 604.6786667 | E93: 493.7706667 | F93: 428.0826667 | G93: 326.298 | H93: 261.086
A94: 32 | C94: =C20*$K$2 -> 872.508 | D94: 617.848 | E94: 503.608 | F94: 436.6506667 | G94: 332.6446667 | H94: 266.1633333
A95: 33 | C95: =C21*$K$2 -> 892.1826667 | D95: 631.3346667 | E95: 514.08 | F95: 445.6946667 | G95: 339.7053333 | H95: 271.796
A96: 34 | C96: =C22*$K$2 -> 912.4126667 | D96: 645.2973333 | E96: 524.79 | F96: 455.056 | G96: 346.6866667 | H96: 277.3493333
A97: 35 | C97: =C23*$K$2 -> 933.0393333 | D97: 659.6566667 | E97: 535.976 | F97: 464.814 | G97: 354.2233333 | H97: 283.3786667
A98: 36 | C98: =C24*$K$2 -> 954.38 | D98: 674.492 | E98: 547.4 | F98: 474.572 | G98: 361.6806667 | H98: 289.408
A99: 37 | C99: =C25*$K$2 -> 976.3553333 | D99: 689.962 | E99: 559.1413333 | F99: 484.9646667 | G99: 369.4553333 | H99: 295.596
A100: 38 | C100: =C26*$K$2 -> 998.8066667 | D100: 705.5113333 | E100: 571.3586667 | F100: 495.5953333 | G100: 377.5473333 | H100: 302.1013333
A101: 39 | C101: =C27*$K$2 -> 1021.972 | D101: 721.7746667 | E101: 583.8933333 | F101: 506.3053333 | G101: 385.7186667 | H101: 308.6066667
A102: 40 | C102: =C28*$K$2 -> 1045.613333 | D102: 738.3553333 | E102: 596.7453333 | F102: 517.412 | G102: 394.366 | H102: 315.5086667
A103: 41 | C103: =C29*$K$2 -> 1069.968667 | D103: 755.412 | E103: 610.0733333 | F103: 528.9946667 | G103: 403.172 | H103: 322.5693333
A104: 42 | C104: =C30*$K$2 -> 1094.720667 | D104: 772.786 | E104: 623.7186667 | F104: 540.8153333 | G104: 412.1366667 | H104: 329.7093333
A105: 43 | C105: =C31*$K$2 -> 1120.028 | D105: 790.7946667 | E105: 637.7606667 | F105: 552.9533333 | G105: 421.4186667 | H105: 337.1666667
A106: 44 | C106: =C32*$K$2 -> 1146.049333 | D106: 808.962 | E106: 651.9613333 | F106: 565.4086667 | G106: 430.8593333 | H106: 344.7033333
A107: 45 | C107: =C33*$K$2 -> 1172.626 | D107: 827.8433333 | E107: 666.7966667 | F107: 578.0226667 | G107: 440.4586667 | H107: 352.3986667
A108: 46 | C108: =C34*$K$2 -> 1199.758 | D108: 846.9626667 | E108: 681.87 | F108: 591.3506667 | G108: 450.4546667 | H108: 360.4113333
A109: 47 | C109: =C35*$K$2 -> 1227.524667 | D109: 866.7166667 | E109: 697.1813333 | F109: 604.4406667 | G109: 460.6886667 | H109: 368.5826667
A110: 48 | C110: =C36*$K$2 -> 1255.846667 | D110: 886.6293333 | E110: 712.8893333 | F110: 618.086 | G110: 470.9226667 | H110: 376.754
A111: 49 | C111: =C37*$K$2 -> 1284.803333 | D111: 907.256 | E111: 729.0733333 | F111: 632.2073333 | G111: 481.6326667 | H111: 385.322
A112: 50 | C112: =C38*$K$2 -> 1314.156667 | D112: 928.0413333 | E112: 745.654 | F112: 646.5666667 | G112: 492.66 | H112: 394.128
A113: 51 | C113: =C39*$K$2 -> 1344.303333 | D113: 949.382 | E113: 762.6313333 | F113: 661.2433333 | G113: 503.7666667 | H113: 403.0133333
A114: 52 | C114: =C40*$K$2 -> 1374.846667 | D114: 971.1986667 | E114: 779.5293333 | F114: 675.92 | G114: 515.1113333 | H114: 412.1366667
A115: 53 | C115: =C41*$K$2 -> 1406.104 | D115: 993.65 | E115: 797.3 | F115: 691.3106667 | G115: 526.7733333 | H115: 421.4186667
A116: 54 | C116: =C42*$K$2 -> 1437.916667 | D116: 1016.26 | E116: 815.0706667 | F116: 706.7013333 | G116: 538.594 | H116: 430.9386667
A117: 55 | C117: =C43*$K$2 -> 1470.364 | D117: 1039.266667 | E117: 833.476 | F117: 722.6473333 | G117: 550.6526667 | H117: 440.538
A118: 56 | C118: =C44*$K$2 -> 1503.128667 | D118: 1062.749333 | E118: 852.04 | F118: 738.8313333 | G118: 563.0286667 | H118: 450.4546667
A119: 57 | C119: =C45*$K$2 -> 1536.766 | D119: 1086.708 | E119: 871.08 | F119: 755.174 | G119: 575.484 | H119: 460.4506667
A120: 58 | C120: =C46*$K$2 -> 1570.958667 | D120: 1111.063333 | E120: 890.4373333 | F120: 772.072 | G120: 588.2566667 | H120: 470.6053333
A121: 59 | C121: =C47*$K$2 -> 1605.548 | D121: 1135.894667 | E121: 910.0326667 | F121: 789.1286667 | G121: 601.188 | H121: 480.998
A122: 60 | C122: =C48*$K$2 -> 1640.772 | D122: 1161.202 | E122: 930.1833333 | F122: 806.5026667 | G122: 614.516 | H122: 491.6286667
A123: 61 | C123: =C49*$K$2 -> 1826.015333 | D123: 1294.006 | E123: 1035.934667 | F123: 898.2913333 | G123: 684.5673333 | H123: 547.7173333
A124: 62 | C124: =C50*$K$2 -> 2025.618 | D124: 1437.837333 | E124: 1150.809333 | F124: 997.8546667 | G124: 760.2513333 | H124: 608.2486667
A125: 63 | C125: =C51*$K$2 -> 2239.897333 | D125: 1592.299333 | E125: 1274.410667 | F125: 1105.034 | G125: 842.044 | H125: 673.6986667
A126: 64 | C126: =C52*$K$2 -> 2468.536 | D126: 1757.709333 | E126: 1406.976667 | F126: 1220.067333 | G126: 929.7073333 | H126: 743.8293333
A127: 65 | C127: =C53*$K$2 -> 2711.692667 | D127: 1933.988 | E127: 1548.666 | F127: 1342.796 | G127: 1023.162 | H127: 818.5613333
A128: 66 | C128: =C54*$K$2 -> 2969.446667 | D128: 2120.976667 | E128: 1699.32 | F128: 1473.616667 | G128: 1122.804667 | H128: 898.2913333
A129: 67 | C129: =C55*$K$2 -> 3241.798 | D129: 2318.834 | E129: 1858.859333 | F129: 1611.894667 | G129: 1228.159333 | H129: 982.5433333
A130: 68 | C130: =C56*$K$2 -> 3528.588 | D130: 2527.639333 | E130: 2027.284 | F130: 1757.868 | G130: 1339.384667 | H130: 1071.555333
A131: 69 | C131: =C57*$K$2 -> 3829.816667 | D131: 2747.234 | E131: 2204.911333 | F131: 1911.854 | G131: 1456.718667 | H131: 1165.406667
A132: 70 | C132: =C58*$K$2 -> 4145.722 | D132: 2977.776667 | E132: 2391.344667 | F132: 2073.535333 | G132: 1580.002667 | H132: 1264.018
A133: 71 | C133: =C59*$K$2 -> 4476.224667 | D133: 3219.029333 | E133: 2586.822 | F133: 2243.070667 | G133: 1709.157333 | H133: 1367.389333
A134: 72 | C134: =C60*$K$2 -> 4821.007333 | D134: 3471.388667 | E134: 2791.184667 | F134: 2420.222 | G134: 1844.103333 | H134: 1475.282667
A135: 73 | C135: =C61*$K$2 -> 5180.387333 | D135: 3734.299333 | E135: 3004.432667 | F135: 2605.148 | G135: 1984.999333 | H135: 1588.015333
A136: 74 | C136: =C62*$K$2 -> 5554.364667 | D136: 4008.158 | E136: 3226.883333 | F136: 2798.086667 | G136: 2132.004 | H136: 1705.666667
A137: 75 | C137: =C63*$K$2 -> 5942.86 | D137: 4292.964667 | E137: 3458.219333 | F137: 2998.562 | G137: 2284.720667 | H137: 1827.84
A138: 76 | C138: =C64*$K$2 -> 5942.86 | D138: 4292.964667 | E138: 3458.219333 | F138: 2998.562 | G138: 2284.720667 | H138: 1827.84
A139: 77 | C139: =C65*$K$2 -> 5942.86 | D139: 4292.964667 | E139: 3458.219333 | F139: 2998.562 | G139: 2284.720667 | H139: 1827.84
A140: 78 | C140: =C66*$K$2 -> 5942.86 | D140: 4292.964667 | E140: 3458.219333 | F140: 2998.562 | G140: 2284.720667 | H140: 1827.84
A141: 79 | C141: =C67*$K$2 -> 5942.86 | D141: 4292.964667 | E141: 3458.219333 | F141: 2998.562 | G141: 2284.720667 | H141: 1827.84
A142: 80 | C142: =C68*$K$2 -> 5942.86 | D142: 4292.964667 | E142: 3458.219333 | F142: 2998.562 | G142: 2284.720667 | H142: 1827.84
A143: 81 | C143: =C69*$K$2 -> 5942.86 | D143: 4292.964667 | E143: 3458.219333 | F143: 2998.562 | G143: 2284.720667 | H143: 1827.84
A144: 82 | C144: =C70*$K$2 -> 5942.86 | D144: 4292.964667 | E144: 3458.219333 | F144: 2998.562 | G144: 2284.720667 | H144: 1827.84
A145: 83 | C145: =C71*$K$2 -> 5942.86 | D145: 4292.964667 | E145: 3458.219333 | F145: 2998.562 | G145: 2284.720667 | H145: 1827.84
A146: 84 | B146: o más | C146: =C72*$K$2 -> 5942.86 | D146: 4292.964667 | E146: 3458.219333 | F146: 2998.562 | G146: 2284.720667 | H146: 1827.84
A147: 1 | B147: Hijo | C147: =C73*$K$2 -> 307.3373333 | D147: 220.0706667 | E147: 183.1806667 | F147: 158.8253333 | G147: 121.142 | H147: 96.94533333
A148: 2 | B148: Hijos | C148: =C74*$K$2 -> 522.2513333 | D148: 374.136 | E148: 311.304 | F148: 269.892 | G148: 205.7906667 | H148: 164.696
A149: 3 | B149: Hijos o más | C149: =C75*$K$2 -> 737.2446667 | D149: 528.122 | E149: 439.586 | F149: 381.038 | G149: 290.4393333 | H149: 232.3673333
A152: BUPA GLOBAL PREMIER
A153: TARIFAS ANUALES
A155: EDAD | C155: 2000 | D155: 3500 | E155: 5000 | F155: 10000 | I155: TARIFAS BASE | N155: TARIFAS BASE COND ESCUENTO
A156: 18 | C156: =N156 -> 4237.25 | D156: =O156 -> 3535.15 | E156: =P156 -> 3065.95 | F156: =Q156 -> 2240.6 | G156: =R156 -> 1792.65 | I156: 4985 | J156: 4159 | K156: 3607 | L156: 2636 | M156: 2109 | N156: =I156*$Q$4 -> 4237.25 | O156: =J156*$Q$4 -> 3535.15 | P156: =K156*$Q$4 -> 3065.95 | Q156: =L156*$Q$4 -> 2240.6 | R156: =M156*$Q$4 -> 1792.65
A157: 19 | C157: =N157 -> 4290.8 | D157: =O157 -> 3573.4 | E157: =P157 -> 3095.7 | F157: =Q157 -> 2263.55 | G157: =R157 -> 1811.35 | I157: 5048 | J157: 4204 | K157: 3642 | L157: 2663 | M157: 2131 | N157: =I157*$Q$4 -> 4290.8 | O157: =J157*$Q$4 -> 3573.4 | P157: =K157*$Q$4 -> 3095.7 | Q157: =L157*$Q$4 -> 2263.55 | R157: =M157*$Q$4 -> 1811.35
A158: 20 | C158: 4343.5 | D158: 3611.65 | E158: 3126.3 | F158: 2284.8 | G158: 1828.35 | I158: 5110 | J158: 4249 | K158: 3678 | L158: 2688 | M158: 2151 | N158: 4343.5 | O158: 3611.65 | P158: 3126.3 | Q158: 2284.8 | R158: 1828.35
A159: 21 | C159: 4397.9 | D159: 3652.45 | E159: 3158.6 | F159: 2308.6 | G159: 1847.05 | I159: 5174 | J159: 4297 | K159: 3716 | L159: 2716 | M159: 2173 | N159: 4397.9 | O159: 3652.45 | P159: 3158.6 | Q159: 2308.6 | R159: 1847.05
A160: 22 | C160: 4454 | D160: 3694.1 | E160: 3191.75 | F160: 2331.55 | G160: 1865.75 | I160: 5240 | J160: 4346 | K160: 3755 | L160: 2743 | M160: 2195 | N160: 4454 | O160: 3694.1 | P160: 3191.75 | Q160: 2331.55 | R160: 1865.75
A161: 23 | C161: 4513.5 | D161: 3739.15 | E161: 3227.45 | F161: 2358.75 | G161: 1887 | I161: 5310 | J161: 4399 | K161: 3797 | L161: 2775 | M161: 2220 | N161: 4513.5 | O161: 3739.15 | P161: 3227.45 | Q161: 2358.75 | R161: 1887
A162: 24 | C162: 4575.55 | D162: 3785.9 | E162: 3263.15 | F162: 2385.1 | G162: 1908.25 | I162: 5383 | J162: 4454 | K162: 3839 | L162: 2806 | M162: 2245 | N162: 4575.55 | O162: 3785.9 | P162: 3263.15 | Q162: 2385.1 | R162: 1908.25
A163: 25 | C163: 4637.6 | D163: 3830.95 | E163: 3299.7 | F163: 2411.45 | G163: 1929.5 | I163: 5456 | J163: 4507 | K163: 3882 | L163: 2837 | M163: 2270 | N163: 4637.6 | O163: 3830.95 | P163: 3299.7 | Q163: 2411.45 | R163: 1929.5
A164: 26 | C164: 4729.4 | D164: 3899.8 | E164: 3354.1 | F164: 2451.4 | G164: 1961.8 | I164: 5564 | J164: 4588 | K164: 3946 | L164: 2884 | M164: 2308 | N164: 4729.4 | O164: 3899.8 | P164: 3354.1 | Q164: 2451.4 | R164: 1961.8
A165: 27 | C165: 4823.75 | D165: 3971.2 | E165: 3413.6 | F165: 2494.75 | G165: 1995.8 | I165: 5675 | J165: 4672 | K165: 4016 | L165: 2935 | M165: 2348 | N165: 4823.75 | O165: 3971.2 | P165: 3413.6 | Q165: 2494.75 | R165: 1995.8
A166: 28 | C166: 4922.35 | D166: 4046.85 | E166: 3472.25 | F166: 2538.1 | G166: 2030.65 | I166: 5791 | J166: 4761 | K166: 4085 | L166: 2986 | M166: 2389 | N166: 4922.35 | O166: 4046.85 | P166: 3472.25 | Q166: 2538.1 | R166: 2030.65
A167: 29 | C167: 5025.2 | D167: 4122.5 | E167: 3535.15 | F167: 2584 | G167: 2067.2 | I167: 5912 | J167: 4850 | K167: 4159 | L167: 3040 | M167: 2432 | N167: 5025.2 | O167: 4122.5 | P167: 3535.15 | Q167: 2584 | R167: 2067.2
A168: 30 | C168: 5131.45 | D168: 4204.1 | E168: 3602.3 | F168: 2632.45 | G168: 2106.3 | I168: 6037 | J168: 4946 | K168: 4238 | L168: 3097 | M168: 2478 | N168: 5131.45 | O168: 4204.1 | P168: 3602.3 | Q168: 2632.45 | R168: 2106.3
A169: 31 | C169: 5241.1 | D169: 4289.1 | E169: 3667.75 | F169: 2680.9 | G169: 2145.4 | I169: 6166 | J169: 5046 | K169: 4315 | L169: 3154 | M169: 2524 | N169: 5241.1 | O169: 4289.1 | P169: 3667.75 | Q169: 2680.9 | R169: 2145.4
A170: 32 | C170: 5355 | D170: 4374.1 | E170: 3740 | F170: 2733.6 | G170: 2187.05 | I170: 6300 | J170: 5146 | K170: 4400 | L170: 3216 | M170: 2573 | N170: 5355 | O170: 4374.1 | P170: 3740 | Q170: 2733.6 | R170: 2187.05
A171: 33 | C171: 5471.45 | D171: 4465.9 | E171: 3813.1 | F171: 2787.15 | G171: 2230.4 | I171: 6437 | J171: 5254 | K171: 4486 | L171: 3279 | M171: 2624 | N171: 5471.45 | O171: 4465.9 | P171: 3813.1 | Q171: 2787.15 | R171: 2230.4
A172: 34 | C172: 5593.85 | D172: 4559.4 | E172: 3891.3 | F172: 2844.1 | G172: 2275.45 | I172: 6581 | J172: 5364 | K172: 4578 | L172: 3346 | M172: 2677 | N172: 5593.85 | O172: 4559.4 | P172: 3891.3 | Q172: 2844.1 | R172: 2275.45
A173: 35 | C173: 5718.8 | D173: 4655.45 | E173: 3969.5 | F173: 2901.05 | G173: 2321.35 | I173: 6728 | J173: 5477 | K173: 4670 | L173: 3413 | M173: 2731 | N173: 5718.8 | O173: 4655.45 | P173: 3969.5 | Q173: 2901.05 | R173: 2321.35
A174: 36 | C174: 5847.15 | D174: 4754.9 | E174: 4050.25 | F174: 2958.85 | G174: 2367.25 | I174: 6879 | J174: 5594 | K174: 4765 | L174: 3481 | M174: 2785 | N174: 5847.15 | O174: 4754.9 | P174: 4050.25 | Q174: 2958.85 | R174: 2367.25
A175: 37 | C175: 5979.75 | D175: 4857.75 | E175: 4142.05 | F175: 3027.7 | G175: 2422.5 | I175: 7035 | J175: 5715 | K175: 4873 | L175: 3562 | M175: 2850 | N175: 5979.75 | O175: 4857.75 | P175: 4142.05 | Q175: 3027.7 | R175: 2422.5
A176: 38 | C176: 6114.9 | D176: 4964 | E176: 4247.45 | F176: 3104.2 | G176: 2483.7 | I176: 7194 | J176: 5840 | K176: 4997 | L176: 3652 | M176: 2922 | N176: 6114.9 | O176: 4964 | P176: 4247.45 | Q176: 3104.2 | R176: 2483.7
A177: 39 | C177: 6256.85 | D177: 5074.5 | E177: 4356.25 | F177: 3184.1 | G177: 2547.45 | I177: 7361 | J177: 5970 | K177: 5125 | L177: 3746 | M177: 2997 | N177: 6256.85 | O177: 5074.5 | P177: 4356.25 | Q177: 3184.1 | R177: 2547.45
A178: 40 | C178: 6398.8 | D178: 5185.85 | E178: 4466.75 | F178: 3265.7 | G178: 2612.9 | I178: 7528 | J178: 6101 | K178: 5255 | L178: 3842 | M178: 3074 | N178: 6398.8 | O178: 5185.85 | P178: 4466.75 | Q178: 3265.7 | R178: 2612.9
A179: 41 | C179: 6546.7 | D179: 5299.75 | E179: 4581.5 | F179: 3349.85 | G179: 2680.05 | I179: 7702 | J179: 6235 | K179: 5390 | L179: 3941 | M179: 3153 | N179: 6546.7 | O179: 5299.75 | P179: 4581.5 | Q179: 3349.85 | R179: 2680.05
A180: 42 | C180: 6699.7 | D180: 5418.75 | E180: 4698.8 | F180: 3434.85 | G180: 2748.05 | I180: 7882 | J180: 6375 | K180: 5528 | L180: 4041 | M180: 3233 | N180: 6699.7 | O180: 5418.75 | P180: 4698.8 | Q180: 3434.85 | R180: 2748.05
A181: 43 | C181: 6851.85 | D181: 5540.3 | E181: 4818.65 | F181: 3521.55 | G181: 2817.75 | I181: 8061 | J181: 6518 | K181: 5669 | L181: 4143 | M181: 3315 | N181: 6851.85 | O181: 5540.3 | P181: 4818.65 | Q181: 3521.55 | R181: 2817.75
A182: 44 | C182: 7011.65 | D182: 5664.4 | E182: 4941.05 | F182: 3611.65 | G182: 2890 | I182: 8249 | J182: 6664 | K182: 5813 | L182: 4249 | M182: 3400 | N182: 7011.65 | O182: 5664.4 | P182: 4941.05 | Q182: 3611.65 | R182: 2890
A183: 45 | C183: 7175.7 | D183: 5791.9 | E183: 5067.7 | F183: 3704.3 | G183: 2963.95 | I183: 8442 | J183: 6814 | K183: 5962 | L183: 4358 | M183: 3487 | N183: 7175.7 | O183: 5791.9 | P183: 5067.7 | Q183: 3704.3 | R183: 2963.95
A184: 46 | C184: 7341.45 | D184: 5922.8 | E184: 5197.75 | F184: 3797.8 | G184: 3038.75 | I184: 8637 | J184: 6968 | K184: 6115 | L184: 4468 | M184: 3575 | N184: 7341.45 | O184: 5922.8 | P184: 5197.75 | Q184: 3797.8 | R184: 3038.75
A185: 47 | C185: 7513.15 | D185: 6056.25 | E185: 5329.5 | F185: 3894.7 | G185: 3116.1 | I185: 8839 | J185: 7125 | K185: 6270 | L185: 4582 | M185: 3666 | N185: 7513.15 | O185: 6056.25 | P185: 5329.5 | Q185: 3894.7 | R185: 3116.1
A186: 48 | C186: 7685.7 | D186: 6193.1 | E186: 5465.5 | F186: 3994.15 | G186: 3196 | I186: 9042 | J186: 7286 | K186: 6430 | L186: 4699 | M186: 3760 | N186: 7685.7 | O186: 6193.1 | P186: 5465.5 | Q186: 3994.15 | R186: 3196
A187: 49 | C187: 7862.5 | D187: 6332.5 | E187: 5603.2 | F187: 4093.6 | G187: 3275.05 | I187: 9250 | J187: 7450 | K187: 6592 | L187: 4816 | M187: 3853 | N187: 7862.5 | O187: 6332.5 | P187: 5603.2 | Q187: 4093.6 | R187: 3275.05
A188: 50 | C188: 8044.4 | D188: 6477 | E188: 5742.6 | F188: 4198.15 | G188: 3359.2 | I188: 9464 | J188: 7620 | K188: 6756 | L188: 4939 | M188: 3952 | N188: 8044.4 | O188: 6477 | P188: 5742.6 | Q188: 4198.15 | R188: 3359.2
A189: 51 | C189: 8229.7 | D189: 6623.2 | E189: 5886.25 | F189: 4302.7 | G189: 3442.5 | I189: 9682 | J189: 7792 | K189: 6925 | L189: 5062 | M189: 4050 | N189: 8229.7 | O189: 6623.2 | P189: 5886.25 | Q189: 4302.7 | R189: 3442.5
A190: 52 | C190: 8419.25 | D190: 6772.8 | E190: 6034.15 | F190: 4409.8 | G190: 3528.35 | I190: 9905 | J190: 7968 | K190: 7099 | L190: 5188 | M190: 4151 | N190: 8419.25 | O190: 6772.8 | P190: 6034.15 | Q190: 4409.8 | R190: 3528.35
A191: 53 | C191: 8611.35 | D191: 6926.65 | E191: 6184.6 | F191: 4519.45 | G191: 3615.9 | I191: 10131 | J191: 8149 | K191: 7276 | L191: 5317 | M191: 4254 | N191: 8611.35 | O191: 6926.65 | P191: 6184.6 | Q191: 4519.45 | R191: 3615.9
A192: 54 | C192: 8806 | D192: 7082.2 | E192: 6336.75 | F192: 4630.8 | G192: 3705.15 | I192: 10360 | J192: 8332 | K192: 7455 | L192: 5448 | M192: 4359 | N192: 8806 | O192: 7082.2 | P192: 6336.75 | Q192: 4630.8 | R192: 3705.15
A193: 55 | C193: 9007.45 | D193: 7239.45 | E193: 6492.3 | F193: 4745.55 | G193: 3796.95 | I193: 10597 | J193: 8517 | K193: 7638 | L193: 5583 | M193: 4467 | N193: 9007.45 | O193: 7239.45 | P193: 6492.3 | Q193: 4745.55 | R193: 3796.95
A194: 56 | C194: 9211.45 | D194: 7402.65 | E194: 6651.25 | F194: 4862 | G194: 3889.6 | I194: 10837 | J194: 8709 | K194: 7825 | L194: 5720 | M194: 4576 | N194: 9211.45 | O194: 7402.65 | P194: 6651.25 | Q194: 4862 | R194: 3889.6
A195: 57 | C195: 9418 | D195: 7566.7 | E195: 6811.9 | F195: 4977.6 | G195: 3982.25 | I195: 11080 | J195: 8902 | K195: 8014 | L195: 5856 | M195: 4685 | N195: 9418 | O195: 7566.7 | P195: 6811.9 | Q195: 4977.6 | R195: 3982.25
A196: 58 | C196: 9629.65 | D196: 7735 | E196: 6975.1 | F196: 5098.3 | G196: 4079.15 | I196: 11329 | J196: 9100 | K196: 8206 | L196: 5998 | M196: 4799 | N196: 9629.65 | O196: 7735 | P196: 6975.1 | Q196: 5098.3 | R196: 4079.15
A197: 59 | C197: 9846.4 | D197: 7906.7 | E197: 7145.1 | F197: 5221.55 | G197: 4177.75 | I197: 11584 | J197: 9302 | K197: 8406 | L197: 6143 | M197: 4915 | N197: 9846.4 | O197: 7906.7 | P197: 7145.1 | Q197: 5221.55 | R197: 4177.75
A198: 60 | C198: 10065.7 | D198: 8080.1 | E198: 7314.25 | F198: 5344.8 | G198: 4276.35 | I198: 11842 | J198: 9506 | K198: 8605 | L198: 6288 | M198: 5031 | N198: 10065.7 | O198: 8080.1 | P198: 7314.25 | Q198: 5344.8 | R198: 4276.35
A199: 61 | C199: 11215.75 | D199: 9000.65 | E199: 8210.15 | F199: 6001 | G199: 4800.8 | I199: 13195 | J199: 10589 | K199: 9659 | L199: 7060 | M199: 5648 | N199: 11215.75 | O199: 9000.65 | P199: 8210.15 | Q199: 6001 | R199: 4800.8
A200: 62 | C200: 12462.7 | D200: 9996 | E200: 9181.7 | F200: 6709.05 | G200: 5367.75 | I200: 14662 | J200: 11760 | K200: 10802 | L200: 7893 | M200: 6315 | N200: 12462.7 | O200: 9996 | P200: 9181.7 | Q200: 6709.05 | R200: 5367.75
A201: 63 | C201: 13801.45 | D201: 11070.4 | E201: 10225.5 | F201: 7472.35 | G201: 5978.05 | I201: 16237 | J201: 13024 | K201: 12030 | L201: 8791 | M201: 7033 | N201: 13801.45 | O201: 11070.4 | P201: 10225.5 | Q201: 7472.35 | R201: 5978.05
A202: 64 | C202: 15235.4 | D202: 12223 | E202: 11343.25 | F202: 8289.2 | G202: 6631.7 | I202: 17924 | J202: 14380 | K202: 13345 | L202: 9752 | M202: 7802 | N202: 15235.4 | O202: 12223 | P202: 11343.25 | Q202: 8289.2 | R202: 6631.7
A203: 65 | C203: 16762 | D203: 13452.95 | E203: 12535.8 | F203: 9160.45 | G203: 7328.7 | I203: 19720 | J203: 15827 | K203: 14748 | L203: 10777 | M203: 8622 | N203: 16762 | O203: 13452.95 | P203: 12535.8 | Q203: 9160.45 | R203: 7328.7
A204: 66 | C204: 18383.8 | D204: 14762.8 | E204: 13802.3 | F204: 10086.1 | G204: 8069.05 | I204: 21628 | J204: 17368 | K204: 16238 | L204: 11866 | M204: 9493 | N204: 18383.8 | O204: 14762.8 | P204: 13802.3 | Q204: 10086.1 | R204: 8069.05
A205: 67 | C205: 20098.25 | D205: 16149.15 | E205: 15141.9 | F205: 11065.3 | G205: 8852.75 | I205: 23645 | J205: 18999 | K205: 17814 | L205: 13018 | M205: 10415 | N205: 20098.25 | O205: 16149.15 | P205: 15141.9 | Q205: 11065.3 | R205: 8852.75
A206: 68 | C206: 21908.75 | D206: 17612.85 | E206: 16552.9 | F206: 12097.2 | G206: 9678.1 | I206: 25775 | J206: 20721 | K206: 19474 | L206: 14232 | M206: 11386 | N206: 21908.75 | O206: 17612.85 | P206: 16552.9 | Q206: 12097.2 | R206: 9678.1
... 1257 more rows
